Workbook

Sheet Actual Triangle
C2: Actual Development Triangle
B5: Actual Incremental Triangle
B6: ="0-"&TEXT(B19,"#") -> 0-12 | C6: =TEXT(B19,"#")&"-"&TEXT(C19,"#") -> 12-24 | D6: 24-36 | E6: 36-48 | F6: 48-60 | G6: 60-72 | H6: 72-84 | I6: 84-96 | J6: 96-108 | K6: 108-120
A7: ='Source Data'!A8 -> 1988 | B7: ='Source Data'!B20 -> 267 | C7: ='Source Data'!C20 -> 177 | D7: ='Source Data'!D20 -> -29 | E7: ='Source Data'!E20 -> 167 | F7: ='Source Data'!F20 -> 29 | G7: ='Source Data'!G20 -> 20 | H7: ='Source Data'!H20 -> -50 | I7: ='Source Data'!I20 -> 0 | J7: ='Source Data'!J20 -> 0 | K7: ='Source Data'!K20 -> 0
A8: ='Source Data'!A9 -> 1989 | B8: ='Source Data'!B21 -> 2071 | C8: ='Source Data'!C21 -> 947 | D8: ='Source Data'!D21 -> -1240 | E8: ='Source Data'!E21 -> 48 | F8: ='Source Data'!F21 -> 85 | G8: ='Source Data'!G21 -> 60 | H8: ='Source Data'!H21 -> 9 | I8: ='Source Data'!I21 -> -10 | J8: ='Source Data'!J21 -> 11
A9: ='Source Data'!A10 -> 1990 | B9: ='Source Data'!B22 -> 4183 | C9: ='Source Data'!C22 -> -86 | D9: ='Source Data'!D22 -> 977 | E9: ='Source Data'!E22 -> 92 | F9: ='Source Data'!F22 -> 109 | G9: ='Source Data'!G22 -> 6 | H9: ='Source Data'!H22 -> -97 | I9: ='Source Data'!I22 -> 18
A10: ='Source Data'!A11 -> 1991 | B10: ='Source Data'!B23 -> 3837 | C10: ='Source Data'!C23 -> 1587 | D10: ='Source Data'!D23 -> 571 | E10: ='Source Data'!E23 -> 305 | F10: ='Source Data'!F23 -> 215 | G10: ='Source Data'!G23 -> 75 | H10: ='Source Data'!H23 -> 92
A11: ='Source Data'!A12 -> 1992 | B11: ='Source Data'!B24 -> 9195 | C11: ='Source Data'!C24 -> 4594 | D11: ='Source Data'!D24 -> 729 | E11: ='Source Data'!E24 -> 137 | F11: ='Source Data'!F24 -> -115 | G11: ='Source Data'!G24 -> 68
A12: ='Source Data'!A13 -> 1993 | B12: ='Source Data'!B25 -> 10839 | C12: ='Source Data'!C25 -> 4026 | D12: ='Source Data'!D25 -> 838 | E12: ='Source Data'!E25 -> 251 | F12: ='Source Data'!F25 -> 153
A13: ='Source Data'!A14 -> 1994 | B13: ='Source Data'!B26 -> 9949 | C13: ='Source Data'!C26 -> 6157 | D13: ='Source Data'!D26 -> 558 | E13: ='Source Data'!E26 -> 578
A14: ='Source Data'!A15 -> 1995 | B14: ='Source Data'!B27 -> 10114 | C14: ='Source Data'!C27 -> 4980 | D14: ='Source Data'!D27 -> 256
A15: ='Source Data'!A16 -> 1996 | B15: ='Source Data'!B28 -> 11644 | C15: ='Source Data'!C28 -> 4480
A16: ='Source Data'!A17 -> 1997 | B16: ='Source Data'!B29 -> 14280
B18: Actual Cumulative Triangle
B19: 12 | C19: =B19+12 -> 24 | D19: =C19+12 -> 36 | E19: 48 | F19: 60 | G19: 72 | H19: 84 | I19: 96 | J19: 108 | K19: 120
A20: =A7 -> 1988 | B20: =B7 -> 267 | C20: =B20+C7 -> 444 | D20: 415 | E20: 582 | F20: 611 | G20: 631 | H20: 581 | I20: 581 | J20: 581 | K20: 581
A21: =A8 -> 1989 | B21: 2071 | C21: =B21+C8 -> 3018 | D21: 1778 | E21: 1826 | F21: 1911 | G21: 1971 | H21: 1980 | I21: 1970 | J21: 1981
A22: 1990 | B22: 4183 | C22: =B22+C9 -> 4097 | D22: 5074 | E22: 5166 | F22: 5275 | G22: 5281 | H22: 5184 | I22: 5202
A23: 1991 | B23: 3837 | C23: =B23+C10 -> 5424 | D23: 5995 | E23: 6300 | F23: 6515 | G23: 6590 | H23: 6682
A24: 1992 | B24: 9195 | C24: =B24+C11 -> 13789 | D24: =C24+D11 -> 14518 | E24: =D24+E11 -> 14655 | F24: =E24+F11 -> 14540 | G24: =F24+G11 -> 14608
A25: 1993 | B25: 10839 | C25: =B25+C12 -> 14865 | D25: =C25+D12 -> 15703 | E25: =D25+E12 -> 15954 | F25: =E25+F12 -> 16107
A26: 1994 | B26: 9949 | C26: =B26+C13 -> 16106 | D26: =C26+D13 -> 16664 | E26: =D26+E13 -> 17242
A27: 1995 | B27: 10114 | C27: =B27+C14 -> 15094 | D27: =C27+D14 -> 15350
A28: 1996 | B28: 11644 | C28: =B28+C15 -> 16124
A29: 1997 | B29: 14280
C32: Age-to-Age Factors
A33: =A20 -> 1988 | B33: =C20/B20 -> 1.662921348 | C33: 0.9346846847 | D33: 1.402409639 | E33: 1.049828179 | F33: 1.032733224 | G33: 0.9207606973 | H33: 1 | I33: 1 | J33: 1
A34: =A21 -> 1989 | B34: 1.457267021 | C34: 0.5891318754 | D34: 1.026996625 | E34: 1.046549836 | F34: 1.031397174 | G34: 1.00456621 | H34: 0.9949494949 | I34: 1.005583756
A35: 1990 | B35: 0.9794405929 | C35: 1.238467171 | D35: 1.018131652 | E35: 1.021099497 | F35: 1.001137441 | G35: 0.9816322666 | H35: 1.003472222
A36: 1991 | B36: 1.413604378 | C36: 1.105272861 | D36: 1.05087573 | E36: 1.034126984 | F36: 1.011511896 | G36: 1.013960546
A37: 1992 | B37: =C24/B24 -> 1.499619358 | C37: =D24/C24 -> 1.052868228 | D37: =E24/D24 -> 1.009436562 | E37: =F24/E24 -> 0.9921528489 | F37: =G24/F24 -> 1.004676754
A38: 1993 | B38: =C25/B25 -> 1.371436479 | C38: =D25/C25 -> 1.056374033 | D38: =E25/D25 -> 1.015984207 | E38: =F25/E25 -> 1.009590071
A39: 1994 | B39: =C26/B26 -> 1.618856166 | C39: =D26/C26 -> 1.034645474 | D39: =E26/D26 -> 1.03468555
A40: 1995 | B40: =C27/B27 -> 1.492386791 | C40: =D27/C27 -> 1.016960382
A41: 1996 | B41: =C28/B28 -> 1.384747509
A43: ATA | B43: =SUM(C$20:C28)/SUM(B$20:B28) -> 1.432567352 | C43: =SUM(D$20:D27)/SUM(C$20:C27) -> 1.036519901 | D43: =SUM(E$20:E26)/SUM(D$20:D26) -> 1.026235722 | E43: =SUM(F$20:F25)/SUM(E$20:E25) -> 1.010700717 | F43: =SUM(G$20:G24)/SUM(F$20:F24) -> 1.007937058 | G43: =SUM(H$20:H23)/SUM(G$20:G23) -> 0.9968216679 | H43: =SUM(I$20:I22)/SUM(H$20:H22) -> 1.001032924 | I43: =SUM(J$20:J21)/SUM(I$20:I21) -> 1.004312034 | J43: =SUM(K$20:K20)/SUM(J$20:J20) -> 1
A44: LDF | B44: =B43*C44 -> 1.555715961 | C44: 1.085963573 | D44: 1.047701614 | E44: 1.020917116 | F44: 1.010108234 | G44: 1.002154079 | H44: 1.005349413 | I44: 1.004312034 | J44: =J43*K44 -> 1 | K44: 1
A45: Increm | B45: =1/B44 -> 0.6427908598 | C45: =1/C44-1/B44 -> 0.2780503402 | D45: =1/D44-1/C44 -> 0.03362902909 | E45: 0.02504121605 | F45: 0.0104814749 | G45: 0.007857631315 | H45: -0.003171500405 | I45: 0.001027428329 | J45: 0.004293520687 | K45: 0

Sheet GLM Calculation - Expon Decay
I1: Generalized Linear Model
I2: Poisson with Log-Link
I3: Smoothing with Exponential Decay
D5: Suggested Starting Values
D6: Value: | F6: 1 | G6: 1 | H6: 1 | I6: 1 | J6: 1 | K6: 1 | L6: 1 | M6: 1 | N6: 1 | O6: =$U$22 -> 1966.490909 | P6: =$U$22 -> 1966.490909 | Q6: =$U$22 -> 1966.490909 | R6: =$U$22 -> 1966.490909 | S6: 1
D7: Parameter: | F7: =LN(F6) -> 0 | G7: 0 | H7: 0 | I7: 0 | J7: 0 | K7: 0 | L7: 0 | M7: 0 | N7: 0 | O7: =LN(O6) -> 7.584005969 | P7: =LN(P6) -> 7.584005969 | Q7: =LN(Q6) -> 7.584005969 | R7: =LN(R6) -> 7.584005969 | S7: 0
D9: GLM Fitted Values
D10: Value: | F10: =EXP(F11) -> 0.02618925999 | G10: =EXP(G11) -> 0.08931008519 | H10: 0.2346102136 | I10: 0.3016178565 | J10: 0.6607138227 | K10: 0.7319383362 | L10: 0.7921875749 | M10: 0.7239148376 | N10: 0.788187481 | O10: 14280 | P10: 6177.061788 | Q10: 747.0898631 | R10: 560.8956002 | S10: 0.4295004175 | W10: =SUM(W84:W128) -> 10501.44861 | X10: check
D11: Parameter: | F11: -3.642405876 | G11: -2.415640861 | H11: -1.449829807 | I11: -1.198594439 | J11: -0.4144344789 | K11: -0.3120590088 | L11: -0.2329570782 | M11: -0.3230815211 | N11: -0.2380192974 | O11: 9.566615236 | P11: 8.728597999 | Q11: 6.616185477 | R11: 6.329534792 | S11: -0.8451325655 | W11: 10501.44861 | X11: Future Payments
D12: Std Error: | F12: 1.346932306 | G12: 0.7659047726 | H12: 0.5206825978 | I12: 0.4775382075 | J12: 0.3820364133 | K12: 0.373299893 | L12: 0.3674292902 | M12: 0.3765845102 | N12: 0.3717144818 | O12: 0.2658447633 | P12: 0.3528393397 | Q12: 0.6847198644 | R12: 0.8263209279 | S12: 0.9664480948 | W12: 3860.526142 | X12: Standard Error
Z15: Sum VM | AA15: =SUM(AA24:AA78) -> 41377.88549
D16: Weighted Actual: | F16: =SUMPRODUCT(F$24:F$78,$U$24:$U$78)/SUM(F$24:F$78) -> 58.1 | G16: =SUMPRODUCT(G$24:G$78,$U$24:$U$78)/SUM(G$24:G$78) -> 220.1111111 | H16: 650.25 | I16: 954.5714286 | J16: 2434.666667 | K16: 3221.4 | L16: 4310.5 | M16: 5116.666667 | N16: 8062 | O16: 7637.9 | P16: 2984.666667 | Q16: 332.5 | R16: 80.57142857 | S16: 15.76785714 | Z16: # Points | AA16: =COUNT($U$24:$U$78) -> 55
D17: Weighted Fitted: | F17: =SUMPRODUCT(F$24:F$78,$W$24:$W$78)/SUM(F$24:F$78) -> 58.1 | G17: =SUMPRODUCT(G$24:G$78,$W$24:$W$78)/SUM(G$24:G$78) -> 220.1111111 | H17: 650.25 | I17: 954.5714286 | J17: 2434.666667 | K17: 3221.4 | L17: 4310.5 | M17: 5116.666667 | N17: 8062 | O17: 7637.9 | P17: 2984.666667 | Q17: 332.5 | R17: 80.57142857 | S17: 15.76785714 | Z17: # Param | AA17: =COUNT($F$11:$S$11) -> 14
Z18: Avg VM | AA18: =AA15/(AA16-AA17) -> 1009.216719
F21: DESIGN MATRIX (X) | U21: RESPONSE (Y) | W21: RESULTS OF GLM FIT | AD21: WEIGHTS
F22: Accident Year (excl. latest) | O22: Development Age | U22: =SUMPRODUCT(CountWts,ActualLRs)/SUM(CountWts) -> 1966.490909 | W22: =SUMPRODUCT(CountWts,X$24:X$78)/SUM(CountWts) -> 1966.490909
A23: Index | B23: Accident Year | C23: Calendar Year | D23: Age | F23: ='Source Data'!$A$8 -> 1988 | G23: =F23+1 -> 1989 | H23: =G23+1 -> 1990 | I23: 1991 | J23: 1992 | K23: 1993 | L23: 1994 | M23: 1995 | N23: 1996 | O23: ='Source Data'!B6 -> 12 | P23: ='Source Data'!C6 -> 24 | Q23: ='Source Data'!D6 -> 36 | R23: 48 | S23: Time Lag | U23: Actual Loss | W23: Expected Loss | X23: Fitted LR | Z23: QLL | AA23: V/M Ratio | AB23: Standard Residual | AD23: Earned Premium | AE23: Loss Dollars
A24: 1 | B24: ='Source Data'!N8 -> 1988 | C24: =B24+D24/12-1 -> 1988 | D24: ='Source Data'!O8 -> 12 | F24: =($B24=F$23)*1 -> 1 | G24: 0 | H24: 0 | I24: 0 | J24: 0 | K24: 0 | L24: 0 | M24: 0 | N24: 0 | O24: =($D24=O$23)*1 -> 1 | P24: 0 | Q24: 0 | R24: =($D24>=R$23)*1 -> 0 | S24: =MAX($D24-R$23,0)/12 -> 0 | U24: =AE24/AD24 -> 267 | W24: =$AD24*X24 -> 373.9826327 | X24: =EXP(SUMPRODUCT($F$11:$S$11,$F24:$S24)) -> 373.9826327 | Z24: =$AD24*($U24*LN(X24)-X24) -> 1207.781266 | AA24: =($AE24-W24)^2/W24 -> 30.60378396 | AB24: =($AE24-W24)/(W24*AA$18)^0.5 -> -0.174138719 | AD24: ='Source Data'!P8 -> 1 | AE24: ='Source Data'!Q8 -> 267 | AG24: 12 | AH24: =SUMPRODUCT(($AG24=$D$24:$D$78)*1,$AB$24:$AB$78)/SUMPRODUCT(($AG24=$D$24:$D$78)*1) -> 0.04385583648
A25: =A24+1 -> 2 | B25: ='Source Data'!N9 -> 1989 | C25: 1989 | D25: ='Source Data'!O9 -> 12 | F25: 0 | G25: 1 | H25: 0 | I25: 0 | J25: 0 | K25: 0 | L25: 0 | M25: 0 | N25: 0 | O25: 1 | P25: 0 | Q25: 0 | R25: 0 | S25: =MAX($D25-R$23,0)/12 -> 0 | U25: 2071 | W25: 1275.348016 | X25: 1275.348016 | Z25: 13534.31991 | AA25: 496.3837876 | AB25: 0.7013205681 | AD25: ='Source Data'!P9 -> 1 | AE25: ='Source Data'!Q9 -> 2071 | AG25: =AG24+12 -> 24 | AH25: =SUMPRODUCT(($AG25=$D$24:$D$78)*1,$AB$24:$AB$78)/SUMPRODUCT(($AG25=$D$24:$D$78)*1) -> -0.02777106472
A26: 3 | B26: ='Source Data'!N10 -> 1990 | C26: 1990 | D26: ='Source Data'!O10 -> 12 | F26: 0 | G26: 0 | H26: 1 | I26: 0 | J26: 0 | K26: 0 | L26: 0 | M26: 0 | N26: 0 | O26: 1 | P26: 0 | Q26: 0 | R26: 0 | S26: 0 | U26: 4183 | W26: 3350.23385 | X26: 3350.23385 | Z26: 30602.2796 | AA26: 207.0003142 | AB26: 0.4528905763 | AD26: ='Source Data'!P10 -> 1 | AE26: ='Source Data'!Q10 -> 4183 | AG26: =AG25+12 -> 36 | AH26: -0.3067543179
A27: 4 | B27: ='Source Data'!N11 -> 1991 | C27: 1991 | D27: ='Source Data'!O11 -> 12 | F27: 0 | G27: 0 | H27: 0 | I27: 1 | J27: 0 | K27: 0 | L27: 0 | M27: 0 | N27: 0 | O27: 1 | P27: 0 | Q27: 0 | R27: 0 | S27: 0 | U27: 3837 | W27: 4307.102991 | X27: 4307.102991 | Z27: 27800.99281 | AA27: 51.30985328 | AB27: -0.2254800737 | AD27: ='Source Data'!P11 -> 1 | AE27: ='Source Data'!Q11 -> 3837 | AG27: 48 | AH27: 0.1473545976
A28: 5 | B28: ='Source Data'!N12 -> 1992 | C28: 1992 | D28: ='Source Data'!O12 -> 12 | F28: 0 | G28: 0 | H28: 0 | I28: 0 | J28: 1 | K28: 0 | L28: 0 | M28: 0 | N28: 0 | O28: 1 | P28: 0 | Q28: 0 | R28: 0 | S28: 0 | U28: 9195 | W28: 9434.993388 | X28: 9434.993388 | Z28: 74719.30867 | AA28: 6.104596374 | AB28: -0.07777432648 | AD28: ='Source Data'!P12 -> 1 | AE28: ='Source Data'!Q12 -> 9195 | AG28: 60 | AH28: 0.1202003203
A29: 6 | B29: ='Source Data'!N13 -> 1993 | C29: 1993 | D29: ='Source Data'!O13 -> 12 | F29: 0 | G29: 0 | H29: 0 | I29: 0 | J29: 0 | K29: 1 | L29: 0 | M29: 0 | N29: 0 | O29: 1 | P29: 0 | Q29: 0 | R29: 0 | S29: 0 | U29: 10839 | W29: 10452.07944 | X29: 10452.07944 | Z29: 89858.05551 | AA29: 14.32322822 | AB29: 0.1191319464 | AD29: ='Source Data'!P13 -> 1 | AE29: ='Source Data'!Q13 -> 10839 | AG29: 72 | AH29: 0.1969723798
A30: 7 | B30: ='Source Data'!N14 -> 1994 | C30: 1994 | D30: ='Source Data'!O14 -> 12 | F30: 0 | G30: 0 | H30: 0 | I30: 0 | J30: 0 | K30: 0 | L30: 1 | M30: 0 | N30: 0 | O30: 1 | P30: 0 | Q30: 0 | R30: 0 | S30: 0 | U30: 9949 | W30: 11312.43857 | X30: 11312.43857 | Z30: 81548.12644 | AA30: 164.3292666 | AB30: -0.4035201628 | AD30: ='Source Data'!P14 -> 1 | AE30: ='Source Data'!Q14 -> 9949 | AG30: 84 | AH30: -0.4462211505
A31: 8 | B31: ='Source Data'!N15 -> 1995 | C31: 1995 | D31: ='Source Data'!O15 -> 12 | F31: 0 | G31: 0 | H31: 0 | I31: 0 | J31: 0 | K31: 0 | L31: 0 | M31: 1 | N31: 0 | O31: 1 | P31: 0 | Q31: 0 | R31: 0 | S31: 0 | U31: 10114 | W31: 10337.50388 | X31: 10337.50388 | Z31: 83151.59611 | AA31: 4.832306289 | AB31: -0.06919664026 | AD31: ='Source Data'!P15 -> 1 | AE31: ='Source Data'!Q15 -> 10114 | AG31: 96 | AH31: -0.03443518493
A32: 9 | B32: ='Source Data'!N16 -> 1996 | C32: 1996 | D32: ='Source Data'!O16 -> 12 | F32: 0 | G32: 0 | H32: 0 | I32: 0 | J32: 0 | K32: 0 | L32: 0 | M32: 0 | N32: 1 | O32: 1 | P32: 0 | Q32: 0 | R32: 0 | S32: 0 | U32: 11644 | W32: 11255.31723 | X32: 11255.31723 | Z32: 97366.85388 | AA32: 13.42248232 | AB32: 0.1153251962 | AD32: ='Source Data'!P16 -> 1 | AE32: ='Source Data'!Q16 -> 11644 | AG32: 108 | AH32: 0.1815746935
A33: 10 | B33: ='Source Data'!N17 -> 1997 | C33: 1997 | D33: ='Source Data'!O17 -> 12 | F33: 0 | G33: 0 | H33: 0 | I33: 0 | J33: 0 | K33: 0 | L33: 0 | M33: 0 | N33: 0 | O33: 1 | P33: 0 | Q33: 0 | R33: 0 | S33: 0 | U33: 14280 | W33: 14280 | X33: 14280 | Z33: 122331.2656 | AA33: 1.689116713e-25 | AB33: 1.293712014e-14 | AD33: ='Source Data'!P17 -> 1 | AE33: ='Source Data'!Q17 -> 14280 | AG33: 120 | AH33: -0.009558751754
A34: 11 | B34: ='Source Data'!N18 -> 1988 | C34: 1989 | D34: ='Source Data'!O18 -> 24 | F34: 1 | G34: 0 | H34: 0 | I34: 0 | J34: 0 | K34: 0 | L34: 0 | M34: 0 | N34: 0 | O34: 0 | P34: 1 | Q34: 0 | R34: 0 | S34: 0 | U34: 177 | W34: 161.7726772 | X34: 161.7726772 | Z34: 738.4833285 | AA34: 1.433315964 | AB34: 0.03768588779 | AD34: ='Source Data'!P18 -> 1 | AE34: ='Source Data'!Q18 -> 177
A35: 12 | B35: ='Source Data'!N19 -> 1989 | C35: 1990 | D35: ='Source Data'!O19 -> 24 | F35: 0 | G35: 1 | H35: 0 | I35: 0 | J35: 0 | K35: 0 | L35: 0 | M35: 0 | N35: 0 | O35: 0 | P35: 1 | Q35: 0 | R35: 0 | S35: 0 | U35: 947 | W35: 551.6739145 | X35: 551.6739145 | Z35: 5426.696494 | AA35: 283.2882066 | AB35: 0.529812291 | AD35: ='Source Data'!P19 -> 1 | AE35: ='Source Data'!Q19 -> 947
A36: 13 | B36: ='Source Data'!N20 -> 1990 | C36: 1991 | D36: ='Source Data'!O20 -> 24 | F36: 0 | G36: 0 | H36: 1 | I36: 0 | J36: 0 | K36: 0 | L36: 0 | M36: 0 | N36: 0 | O36: 0 | P36: 1 | Q36: 0 | R36: 0 | S36: 0 | U36: -86 | W36: 1449.201786 | X36: 1449.201786 | Z36: -2075.17585 | AA36: 1626.305285 | AB36: -1.269430177 | AD36: ='Source Data'!P20 -> 1 | AE36: ='Source Data'!Q20 -> -86
A37: 14 | B37: ='Source Data'!N21 -> 1991 | C37: 1992 | D37: ='Source Data'!O21 -> 24 | F37: 0 | G37: 0 | H37: 0 | I37: 1 | J37: 0 | K37: 0 | L37: 0 | M37: 0 | N37: 0 | O37: 0 | P37: 1 | Q37: 0 | R37: 0 | S37: 0 | U37: 1587 | W37: 1863.112136 | X37: 1863.112136 | Z37: 10087.00351 | AA37: 40.91965822 | AB37: -0.201360268 | AD37: ='Source Data'!P21 -> 1 | AE37: ='Source Data'!Q21 -> 1587
A38: 15 | B38: ='Source Data'!N22 -> 1992 | C38: 1993 | D38: ='Source Data'!O22 -> 24 | F38: 0 | G38: 0 | H38: 0 | I38: 0 | J38: 1 | K38: 0 | L38: 0 | M38: 0 | N38: 0 | O38: 0 | P38: 1 | Q38: 0 | R38: 0 | S38: 0 | U38: 4594 | W38: 4081.270107 | X38: 4081.270107 | Z38: 34113.9971 | AA38: 64.4142475 | AB38: 0.2526380441 | AD38: ='Source Data'!P22 -> 1 | AE38: ='Source Data'!Q22 -> 4594
A39: 16 | B39: ='Source Data'!N23 -> 1993 | C39: 1994 | D39: ='Source Data'!O23 -> 24 | F39: 0 | G39: 0 | H39: 0 | I39: 0 | J39: 0 | K39: 1 | L39: 0 | M39: 0 | N39: 0 | O39: 0 | P39: 1 | Q39: 0 | R39: 0 | S39: 0 | U39: 4026 | W39: 4521.228328 | X39: 4521.228328 | Z39: 29363.75765 | AA39: 54.24435109 | AB39: -0.2318382238 | AD39: ='Source Data'!P23 -> 1 | AE39: ='Source Data'!Q23 -> 4026
A40: 17 | B40: ='Source Data'!N24 -> 1994 | C40: 1995 | D40: ='Source Data'!O24 -> 24 | F40: =($B40=F$23)*1 -> 0 | G40: 0 | H40: 0 | I40: 0 | J40: 0 | K40: 0 | L40: 1 | M40: 0 | N40: 0 | O40: 0 | P40: 1 | Q40: 0 | R40: 0 | S40: 0 | U40: 6157 | W40: 4893.391598 | X40: 4893.391598 | Z40: 47414.26955 | AA40: 326.2984703 | AB40: 0.568611057 | AD40: ='Source Data'!P24 -> 1 | AE40: ='Source Data'!Q24 -> 6157
A41: 18 | B41: ='Source Data'!N25 -> 1995 | C41: 1996 | D41: ='Source Data'!O25 -> 24 | F41: 0 | G41: 0 | H41: 0 | I41: 0 | J41: 0 | K41: 0 | L41: 0 | M41: 1 | N41: 0 | O41: 0 | P41: 1 | Q41: 0 | R41: 0 | S41: 0 | U41: 4980 | W41: 4471.666682 | X41: 4471.666682 | Z41: 37387.80538 | AA41: 57.78667798 | AB41: 0.2392884001 | AD41: ='Source Data'!P25 -> 1 | AE41: ='Source Data'!Q25 -> 4980
A42: 19 | B42: ='Source Data'!N26 -> 1996 | C42: 1997 | D42: ='Source Data'!O26 -> 24 | F42: 0 | G42: 0 | H42: 0 | I42: 0 | J42: 0 | K42: 0 | L42: 0 | M42: 0 | N42: 1 | O42: 0 | P42: 1 | Q42: 0 | R42: 0 | S42: 0 | U42: 4480 | W42: 4868.682771 | X42: 4868.682771 | Z42: 33169.10981 | AA42: 31.02980902 | AB42: -0.1753465934 | AD42: ='Source Data'!P26 -> 1 | AE42: ='Source Data'!Q26 -> 4480
A43: 20 | B43: ='Source Data'!N27 -> 1988 | C43: 1990 | D43: ='Source Data'!O27 -> 36 | F43: 1 | G43: 0 | H43: 0 | I43: 0 | J43: 0 | K43: 0 | L43: 0 | M43: 0 | N43: 0 | O43: 0 | P43: 0 | Q43: 1 | R43: 0 | S43: 0 | U43: -29 | W43: 19.56573066 | X43: 19.56573066 | Z43: -105.8053391 | AA43: 120.5490475 | AB43: -0.3456126844 | AD43: ='Source Data'!P27 -> 1 | AE43: ='Source Data'!Q27 -> -29
A44: 21 | B44: ='Source Data'!N28 -> 1989 | C44: 1991 | D44: ='Source Data'!O28 -> 36 | F44: 0 | G44: 1 | H44: 0 | I44: 0 | J44: 0 | K44: 0 | L44: 0 | M44: 0 | N44: 0 | O44: =($D44=O$23)*1 -> 0 | P44: 0 | Q44: 1 | R44: 0 | S44: 0 | U44: -1240 | W44: 66.72265931 | X44: 66.72265931 | Z44: -5275.397982 | AA44: 25591.3677 | AB44: -5.035638324 | AD44: ='Source Data'!P28 -> 1 | AE44: ='Source Data'!Q28 -> -1240
A45: 22 | B45: ='Source Data'!N29 -> 1990 | C45: 1992 | D45: ='Source Data'!O29 -> 36 | F45: 0 | G45: 0 | H45: 1 | I45: 0 | J45: 0 | K45: 0 | L45: 0 | M45: 0 | N45: 0 | O45: 0 | P45: 0 | Q45: 1 | R45: 0 | S45: 0 | U45: 977 | W45: 175.2749124 | X45: 175.2749124 | Z45: 4872.254576 | AA45: 3667.171231 | AB45: 1.906221555 | AD45: ='Source Data'!P29 -> 1 | AE45: ='Source Data'!Q29 -> 977
A46: 23 | B46: ='Source Data'!N30 -> 1991 | C46: 1993 | D46: ='Source Data'!O30 -> 36 | F46: 0 | G46: 0 | H46: 0 | I46: 1 | J46: 0 | K46: 0 | L46: 0 | M46: 0 | N46: 0 | O46: 0 | P46: 0 | Q46: 1 | R46: 0 | S46: 0 | U46: 571 | W46: 225.3356431 | X46: 225.3356431 | Z46: 2868.10884 | AA46: 530.2483261 | AB46: 0.7248488176 | AD46: ='Source Data'!P30 -> 1 | AE46: ='Source Data'!Q30 -> 571
A47: 24 | B47: ='Source Data'!N31 -> 1992 | C47: 1994 | D47: ='Source Data'!O31 -> 36 | F47: 0 | G47: 0 | H47: 0 | I47: 0 | J47: 1 | K47: 0 | L47: 0 | M47: 0 | N47: 0 | O47: 0 | P47: 0 | Q47: 1 | R47: 0 | S47: 0 | U47: 729 | W47: 493.6125993 | X47: 493.6125993 | Z47: 4027.463878 | AA47: 112.2484079 | AB47: 0.3335015652 | AD47: ='Source Data'!P31 -> 1 | AE47: ='Source Data'!Q31 -> 729
A48: 25 | B48: ='Source Data'!N32 -> 1993 | C48: 1995 | D48: ='Source Data'!O32 -> 36 | F48: 0 | G48: 0 | H48: 0 | I48: 0 | J48: 0 | K48: 1 | L48: 0 | M48: 0 | N48: 0 | O48: 0 | P48: 0 | Q48: 1 | R48: 0 | S48: 0 | U48: 838 | W48: 546.8237114 | X48: 546.8237114 | Z48: 4736.034269 | AA48: 155.0474665 | AB48: 0.3919585287 | AD48: ='Source Data'!P32 -> 1 | AE48: ='Source Data'!Q32 -> 838
A49: 26 | B49: ='Source Data'!N33 -> 1994 | C49: 1996 | D49: ='Source Data'!O33 -> 36 | F49: 0 | G49: 0 | H49: 0 | I49: 0 | J49: 0 | K49: 0 | L49: 1 | M49: 0 | N49: 0 | O49: 0 | P49: 0 | Q49: 1 | R49: 0 | S49: 0 | U49: 558 | W49: 591.8353069 | X49: 591.8353069 | Z49: 2970.006139 | AA49: 1.934369203 | AB49: -0.04378017228 | AD49: ='Source Data'!P33 -> 1 | AE49: ='Source Data'!Q33 -> 558
A50: 27 | B50: ='Source Data'!N34 -> 1995 | C50: 1997 | D50: ='Source Data'!O34 -> 36 | F50: 0 | G50: 0 | H50: 0 | I50: 0 | J50: 0 | K50: 0 | L50: 0 | M50: 1 | N50: 0 | O50: 0 | P50: 0 | Q50: 1 | R50: 0 | S50: 0 | U50: 256 | W50: 540.8294369 | X50: 540.8294369 | Z50: 1070.205176 | AA50: 150.006273 | AB50: -0.3855338294 | AD50: ='Source Data'!P34 -> 1 | AE50: ='Source Data'!Q34 -> 256
A51: 28 | B51: ='Source Data'!N35 -> 1988 | C51: 1991 | D51: ='Source Data'!O35 -> 48 | F51: 1 | G51: 0 | H51: 0 | I51: 0 | J51: 0 | K51: 0 | L51: 0 | M51: 0 | N51: 0 | O51: 0 | P51: 0 | Q51: 0 | R51: 1 | S51: 0 | U51: 167 | W51: 14.6894407 | X51: 14.6894407 | Z51: 434.0610883 | AA51: 1579.264109 | AB51: 1.250936211 | AD51: ='Source Data'!P35 -> 1 | AE51: ='Source Data'!Q35 -> 167
A52: 29 | B52: ='Source Data'!N36 -> 1989 | C52: 1992 | D52: ='Source Data'!O36 -> 48 | F52: 0 | G52: 1 | H52: 0 | I52: 0 | J52: 0 | K52: 0 | L52: 0 | M52: 0 | N52: 0 | O52: 0 | P52: 0 | Q52: 0 | R52: 1 | S52: 0 | U52: 48 | W52: 50.09363383 | X52: 50.09363383 | Z52: 137.7732748 | AA52: 0.08750218922 | AB52: -0.009311448402 | AD52: ='Source Data'!P36 -> 1 | AE52: ='Source Data'!Q36 -> 48
A53: 30 | B53: ='Source Data'!N37 -> 1990 | C53: 1993 | D53: ='Source Data'!O37 -> 48 | F53: 0 | G53: 0 | H53: 1 | I53: 0 | J53: 0 | K53: 0 | L53: 0 | M53: 0 | N53: 0 | O53: 0 | P53: 0 | Q53: 0 | R53: 1 | S53: 0 | U53: 92 | W53: 131.5918366 | X53: 131.5918366 | Z53: 317.341022 | AA53: 11.91193591 | AB53: -0.1086423011 | AD53: ='Source Data'!P37 -> 1 | AE53: ='Source Data'!Q37 -> 92
A54: 31 | B54: ='Source Data'!N38 -> 1991 | C54: 1994 | D54: ='Source Data'!O38 -> 48 | F54: 0 | G54: 0 | H54: 0 | I54: 1 | J54: 0 | K54: 0 | L54: 0 | M54: 0 | N54: 0 | O54: 0 | P54: 0 | Q54: 0 | R54: 1 | S54: 0 | U54: 305 | W54: 169.1761287 | X54: 169.1761287 | Z54: 1395.760679 | AA54: 109.0468506 | AB54: 0.3287110815 | AD54: ='Source Data'!P38 -> 1 | AE54: ='Source Data'!Q38 -> 305
A55: 32 | B55: ='Source Data'!N39 -> 1992 | C55: 1995 | D55: ='Source Data'!O39 -> 48 | F55: 0 | G55: 0 | H55: 0 | I55: 0 | J55: 1 | K55: 0 | L55: 0 | M55: 0 | N55: 0 | O55: 0 | P55: 0 | Q55: 0 | R55: 1 | S55: 0 | U55: 137 | W55: 370.5914761 | X55: 370.5914761 | Z55: 439.7772668 | AA55: 147.2375412 | AB55: -0.3819592745 | AD55: ='Source Data'!P39 -> 1 | AE55: ='Source Data'!Q39 -> 137
A56: 33 | B56: ='Source Data'!N40 -> 1993 | C56: 1996 | D56: ='Source Data'!O40 -> 48 | F56: =($B56=F$23)*1 -> 0 | G56: 0 | H56: 0 | I56: 0 | J56: 0 | K56: 1 | L56: 0 | M56: 0 | N56: 0 | O56: 0 | P56: 0 | Q56: 0 | R56: 1 | S56: 0 | U56: 251 | W56: 410.5409924 | X56: =EXP(SUMPRODUCT($F$11:$S$11,$F56:$S56)) -> 410.5409924 | Z56: 1099.845429 | AA56: 61.99948049 | AB56: -0.2478573527 | AD56: ='Source Data'!P40 -> 1 | AE56: ='Source Data'!Q40 -> 251
A57: 34 | B57: ='Source Data'!N41 -> 1994 | C57: 1997 | D57: ='Source Data'!O41 -> 48 | F57: 0 | G57: 0 | H57: 0 | I57: 0 | J57: 0 | K57: 0 | L57: 1 | M57: 0 | N57: 0 | O57: 0 | P57: 0 | Q57: 0 | R57: 1 | S57: 0 | U57: 578 | W57: 444.3345253 | X57: 444.3345253 | Z57: 3079.487393 | AA57: 40.20947758 | AB57: 0.199605267 | AD57: ='Source Data'!P41 -> 1 | AE57: ='Source Data'!Q41 -> 578
A58: 35 | B58: ='Source Data'!N42 -> 1988 | C58: 1992 | D58: ='Source Data'!O42 -> 60 | F58: 1 | G58: 0 | H58: 0 | I58: 0 | J58: 0 | K58: 0 | L58: 0 | M58: 0 | N58: 0 | O58: 0 | P58: 0 | Q58: 0 | R58: 1 | S58: 1 | U58: 29 | W58: 6.309120914 | X58: 6.309120914 | Z58: 47.10877325 | AA58: 81.60819878 | AB58: 0.2843640414 | AD58: ='Source Data'!P42 -> 1 | AE58: ='Source Data'!Q42 -> 29
A59: 36 | B59: ='Source Data'!N43 -> 1989 | C59: 1993 | D59: ='Source Data'!O43 -> 60 | F59: 0 | G59: 1 | H59: 0 | I59: 0 | J59: 0 | K59: 0 | L59: 0 | M59: 0 | N59: 0 | O59: 0 | P59: 0 | Q59: 0 | R59: 1 | S59: 1 | U59: 85 | W59: 21.51523665 | X59: 21.51523665 | Z59: 239.3294794 | AA59: 187.3237671 | AB59: 0.4308282998 | AD59: ='Source Data'!P43 -> 1 | AE59: ='Source Data'!Q43 -> 85
A60: 37 | B60: ='Source Data'!N44 -> 1990 | C60: 1994 | D60: ='Source Data'!O44 -> 60 | F60: 0 | G60: 0 | H60: 1 | I60: 0 | J60: 0 | K60: 0 | L60: 0 | M60: 0 | N60: 0 | O60: 0 | P60: 0 | Q60: 0 | R60: 1 | S60: 1 | U60: 109 | W60: 56.51874875 | X60: 56.51874875 | Z60: 383.249645 | AA60: 48.73217815 | AB60: 0.2197433258 | AD60: ='Source Data'!P44 -> 1 | AE60: ='Source Data'!Q44 -> 109
A61: 38 | B61: ='Source Data'!N45 -> 1991 | C61: 1995 | D61: ='Source Data'!O45 -> 60 | F61: 0 | G61: 0 | H61: 0 | I61: 1 | J61: 0 | K61: 0 | L61: 0 | M61: 0 | N61: 0 | O61: 0 | P61: 0 | Q61: 0 | R61: 1 | S61: 1 | U61: 215 | W61: 72.6612179 | X61: 72.6612179 | Z61: 848.7874566 | AA61: 278.8327732 | AB61: 0.525629451 | AD61: ='Source Data'!P45 -> 1 | AE61: ='Source Data'!Q45 -> 215
A62: 39 | B62: ='Source Data'!N46 -> 1992 | C62: 1996 | D62: ='Source Data'!O46 -> 60 | F62: 0 | G62: 0 | H62: 0 | I62: 0 | J62: 1 | K62: 0 | L62: 0 | M62: 0 | N62: 0 | O62: 0 | P62: 0 | Q62: 0 | R62: 1 | S62: 1 | U62: -115 | W62: 159.1691937 | X62: 159.1691937 | Z62: -742.2154847 | AA62: 472.2568798 | AB62: -0.6840643037 | AD62: ='Source Data'!P46 -> 1 | AE62: ='Source Data'!Q46 -> -115
A63: 40 | B63: ='Source Data'!N47 -> 1993 | C63: 1997 | D63: ='Source Data'!O47 -> 60 | F63: 0 | G63: 0 | H63: 0 | I63: 0 | J63: 0 | K63: 1 | L63: 0 | M63: 0 | N63: 0 | O63: 0 | P63: 0 | Q63: 0 | R63: 1 | S63: 1 | U63: 153 | W63: 176.3275276 | X63: 176.3275276 | Z63: 615.0409847 | AA63: 3.086151961 | AB63: -0.05529889269 | AD63: ='Source Data'!P47 -> 1 | AE63: ='Source Data'!Q47 -> 153
A64: 41 | B64: ='Source Data'!N48 -> 1988 | C64: 1993 | D64: ='Source Data'!O48 -> 72 | F64: 1 | G64: 0 | H64: 0 | I64: 0 | J64: 0 | K64: 0 | L64: 0 | M64: 0 | N64: 0 | O64: =($D64=O$23)*1 -> 0 | P64: 0 | Q64: 0 | R64: 1 | S64: 2 | U64: 20 | W64: 2.709770067 | X64: 2.709770067 | Z64: 17.22750563 | AA64: 110.3237706 | AB64: 0.3306300554 | AD64: ='Source Data'!P48 -> 1 | AE64: ='Source Data'!Q48 -> 20
A65: 42 | B65: ='Source Data'!N49 -> 1989 | C65: 1994 | D65: ='Source Data'!O49 -> 72 | F65: 0 | G65: 1 | H65: 0 | I65: 0 | J65: 0 | K65: 0 | L65: 0 | M65: 0 | N65: 0 | O65: 0 | P65: 0 | Q65: 0 | R65: 1 | S65: 2 | U65: 60 | W65: 9.240803122 | X65: 9.240803122 | Z65: 124.1769249 | AA65: 278.8173315 | AB65: 0.5256148962 | AD65: ='Source Data'!P49 -> 1 | AE65: ='Source Data'!Q49 -> 60
A66: 43 | B66: ='Source Data'!N50 -> 1990 | C66: 1995 | D66: ='Source Data'!O50 -> 72 | F66: 0 | G66: 0 | H66: 1 | I66: 0 | J66: 0 | K66: 0 | L66: 0 | M66: 0 | N66: 0 | O66: 0 | P66: 0 | Q66: 0 | R66: 1 | S66: 2 | U66: 6 | W66: 24.27482619 | X66: 24.27482619 | Z66: -5.138187062 | AA66: 13.75784401 | AB66: -0.116757012 | AD66: ='Source Data'!P50 -> 1 | AE66: ='Source Data'!Q50 -> 6
A67: 44 | B67: ='Source Data'!N51 -> 1991 | C67: 1996 | D67: ='Source Data'!O51 -> 72 | F67: 0 | G67: 0 | H67: 0 | I67: 1 | J67: 0 | K67: 0 | L67: 0 | M67: 0 | N67: 0 | O67: 0 | P67: 0 | Q67: 0 | R67: 1 | S67: 2 | U67: 75 | W67: 31.20802342 | X67: 31.20802342 | Z67: 226.8426183 | AA67: 61.45013372 | AB67: 0.2467568388 | AD67: ='Source Data'!P51 -> 1 | AE67: ='Source Data'!Q51 -> 75
A68: 45 | B68: ='Source Data'!N52 -> 1992 | C68: 1997 | D68: ='Source Data'!O52 -> 72 | F68: 0 | G68: 0 | H68: 0 | I68: 0 | J68: 1 | K68: 0 | L68: 0 | M68: 0 | N68: 0 | O68: 0 | P68: 0 | Q68: 0 | R68: 1 | S68: 2 | U68: 68 | W68: 68.36323516 | X68: 68.36323516 | Z68: 218.9255572 | AA68: 0.001929981528 | AB68: -0.001382879561 | AD68: ='Source Data'!P52 -> 1 | AE68: ='Source Data'!Q52 -> 68
A69: 46 | B69: ='Source Data'!N53 -> 1988 | C69: 1994 | D69: ='Source Data'!O53 -> 84 | F69: 1 | G69: 0 | H69: 0 | I69: 0 | J69: 0 | K69: 0 | L69: 0 | M69: 0 | N69: 0 | O69: 0 | P69: 0 | Q69: 0 | R69: 1 | S69: 3 | U69: -50 | W69: 1.163847375 | X69: 1.163847375 | Z69: -8.750408355 | AA69: 2249.211825 | AB69: -1.492873334 | AD69: ='Source Data'!P53 -> 1 | AE69: ='Source Data'!Q53 -> -50
A70: 47 | B70: ='Source Data'!N54 -> 1989 | C70: 1995 | D70: ='Source Data'!O54 -> 84 | F70: 0 | G70: 1 | H70: 0 | I70: 0 | J70: 0 | K70: 0 | L70: 0 | M70: 0 | N70: 0 | O70: 0 | P70: 0 | Q70: 0 | R70: 1 | S70: 3 | U70: 9 | W70: 3.968928799 | X70: 3.968928799 | Z70: 8.43753731 | AA70: 6.377458178 | AB70: 0.07949349496 | AD70: ='Source Data'!P54 -> 1 | AE70: ='Source Data'!Q54 -> 9
A71: 48 | B71: ='Source Data'!N55 -> 1990 | C71: 1996 | D71: ='Source Data'!O55 -> 84 | F71: 0 | G71: 0 | H71: 1 | I71: 0 | J71: 0 | K71: 0 | L71: 0 | M71: 0 | N71: 0 | O71: 0 | P71: 0 | Q71: 0 | R71: 1 | S71: 3 | U71: -97 | W71: 10.42604798 | X71: 10.42604798 | Z71: -237.823855 | AA71: 1106.877295 | AB71: -1.047267247 | AD71: ='Source Data'!P55 -> 1 | AE71: ='Source Data'!Q55 -> -97
A72: 49 | B72: ='Source Data'!N56 -> 1991 | C72: 1997 | D72: ='Source Data'!O56 -> 84 | F72: =($B72=F$23)*1 -> 0 | G72: 0 | H72: 0 | I72: 1 | J72: 0 | K72: 0 | L72: 0 | M72: 0 | N72: 0 | O72: 0 | P72: 0 | Q72: 0 | R72: 1 | S72: 3 | U72: 92 | W72: 13.40385909 | X72: 13.40385909 | Z72: 225.3860654 | AA72: 460.8637949 | AB72: 0.6757624838 | AD72: ='Source Data'!P56 -> 1 | AE72: ='Source Data'!Q56 -> 92
A73: 50 | B73: ='Source Data'!N57 -> 1988 | C73: 1995 | D73: ='Source Data'!O57 -> 96 | F73: 1 | G73: 0 | H73: 0 | I73: 0 | J73: 0 | K73: 0 | L73: 0 | M73: 0 | N73: 0 | O73: 0 | P73: 0 | Q73: 0 | R73: 1 | S73: 4 | U73: 0 | W73: 0.4998729335 | X73: 0.4998729335 | Z73: -0.4998729335 | AA73: 0.4998729335 | AB73: -0.02225551213 | AD73: ='Source Data'!P57 -> 1 | AE73: ='Source Data'!Q57 -> 0
A74: 51 | B74: ='Source Data'!N58 -> 1989 | C74: 1996 | D74: ='Source Data'!O58 -> 96 | F74: 0 | G74: 1 | H74: 0 | I74: 0 | J74: 0 | K74: 0 | L74: 0 | M74: 0 | N74: 0 | O74: 0 | P74: 0 | Q74: 0 | R74: 1 | S74: 4 | U74: -10 | W74: 1.704656576 | X74: 1.704656576 | Z74: -7.038293265 | AA74: 80.36749893 | AB74: -0.2821941512 | AD74: ='Source Data'!P58 -> 1 | AE74: ='Source Data'!Q58 -> -10
A75: 52 | B75: ='Source Data'!N59 -> 1990 | C75: 1997 | D75: ='Source Data'!O59 -> 96 | F75: 0 | G75: 0 | H75: 1 | I75: 0 | J75: 0 | K75: 0 | L75: 0 | M75: 0 | N75: 0 | O75: 0 | P75: 0 | Q75: 0 | R75: 1 | S75: 4 | U75: 18 | W75: 4.477991961 | X75: 4.477991961 | Z75: 22.50715305 | AA75: 40.8318512 | AB75: 0.2011441085 | AD75: ='Source Data'!P59 -> 1 | AE75: ='Source Data'!Q59 -> 18
A76: 53 | B76: ='Source Data'!N60 -> 1988 | C76: 1996 | D76: ='Source Data'!O60 -> 108 | F76: 1 | G76: 0 | H76: 0 | I76: 0 | J76: 0 | K76: 0 | L76: 0 | M76: 0 | N76: 0 | O76: 0 | P76: 0 | Q76: 0 | R76: 1 | S76: 5 | U76: 0 | W76: 0.2146956336 | X76: 0.2146956336 | Z76: -0.2146956336 | AA76: 0.2146956336 | AB76: -0.01458543505 | AD76: ='Source Data'!P60 -> 1 | AE76: ='Source Data'!Q60 -> 0
A77: 54 | B77: ='Source Data'!N61 -> 1989 | C77: 1997 | D77: ='Source Data'!O61 -> 108 | F77: 0 | G77: 1 | H77: 0 | I77: 0 | J77: 0 | K77: 0 | L77: 0 | M77: 0 | N77: 0 | O77: 0 | P77: 0 | Q77: 0 | R77: 1 | S77: 5 | U77: 11 | W77: 0.7321507112 | X77: 0.7321507112 | Z77: -4.161608574 | AA77: 143.9986705 | AB77: 0.3777348221 | AD77: ='Source Data'!P61 -> 1 | AE77: ='Source Data'!Q61 -> 11
A78: 55 | B78: ='Source Data'!N62 -> 1988 | C78: 1997 | D78: ='Source Data'!O62 -> 120 | F78: 1 | G78: 0 | H78: 0 | I78: 0 | J78: 0 | K78: 0 | L78: 0 | M78: 0 | N78: 0 | O78: 0 | P78: 0 | Q78: 0 | R78: 1 | S78: 6 | U78: 0 | W78: 0.09221186428 | X78: 0.09221186428 | Z78: -0.09221186428 | AA78: 0.09221186428 | AB78: -0.009558751754 | AD78: ='Source Data'!P62 -> 1 | AE78: ='Source Data'!Q62 -> 0
B82: Inputs for Future Payments (lower right triangle)
A84: =A78+1 -> 56 | B84: ='Source Data'!N68 -> 1989 | C84: =B84+D84/12-1 -> 1998 | D84: ='Source Data'!O68 -> 120 | F84: =($B84=F$23)*1 -> 0 | G84: 1 | H84: 0 | I84: 0 | J84: 0 | K84: 0 | L84: 0 | M84: 0 | N84: 0 | O84: =($D84=O$23)*1 -> 0 | P84: 0 | Q84: 0 | R84: =($D84>=R$23)*1 -> 1 | S84: =MAX($D84-R$23,0)/12 -> 6 | U84: =AE84/AD84 -> 13 | W84: =$AD84*X84 -> 0.3144590361 | X84: =EXP(SUMPRODUCT($F$11:$S$11,$F84:$S84)) -> 0.3144590361 | AD84: ='Source Data'!P68 -> 1 | AE84: =VLOOKUP(B84&"_"&D84,'Validation Data'!$N$5:$R$49,5,FALSE) -> 13
A85: =A84+1 -> 57 | B85: ='Source Data'!N69 -> 1990 | C85: 1999 | D85: ='Source Data'!O69 -> 120 | F85: 0 | G85: 0 | H85: 1 | I85: 0 | J85: 0 | K85: 0 | L85: 0 | M85: 0 | N85: 0 | O85: 0 | P85: 0 | Q85: 0 | R85: 1 | S85: 6 | U85: -7 | W85: 0.8260579025 | X85: 0.8260579025 | AD85: ='Source Data'!P69 -> 1 | AE85: =VLOOKUP(B85&"_"&D85,'Validation Data'!$N$5:$R$49,5,FALSE) -> -7
A86: 58 | B86: ='Source Data'!N70 -> 1990 | C86: 1998 | D86: ='Source Data'!O70 -> 108 | F86: 0 | G86: 0 | H86: 1 | I86: 0 | J86: 0 | K86: 0 | L86: 0 | M86: 0 | N86: 0 | O86: 0 | P86: 0 | Q86: 0 | R86: 1 | S86: 5 | U86: -19 | W86: 1.923299417 | X86: 1.923299417 | AD86: ='Source Data'!P70 -> 1 | AE86: =VLOOKUP(B86&"_"&D86,'Validation Data'!$N$5:$R$49,5,FALSE) -> -19
A87: 59 | B87: ='Source Data'!N71 -> 1991 | C87: 2000 | D87: ='Source Data'!O71 -> 120 | F87: 0 | G87: 0 | H87: 0 | I87: 1 | J87: 0 | K87: 0 | L87: 0 | M87: 0 | N87: 0 | O87: 0 | P87: 0 | Q87: 0 | R87: 1 | S87: 6 | U87: 5 | W87: 1.061990482 | X87: 1.061990482 | AD87: ='Source Data'!P71 -> 1 | AE87: =VLOOKUP(B87&"_"&D87,'Validation Data'!$N$5:$R$49,5,FALSE) -> 5
A88: 60 | B88: ='Source Data'!N72 -> 1991 | C88: 1999 | D88: ='Source Data'!O72 -> 108 | F88: 0 | G88: 0 | H88: 0 | I88: 1 | J88: 0 | K88: 0 | L88: 0 | M88: 0 | N88: 0 | O88: 0 | P88: 0 | Q88: 0 | R88: 1 | S88: 5 | U88: 14 | W88: 2.472618044 | X88: 2.472618044 | AD88: ='Source Data'!P72 -> 1 | AE88: =VLOOKUP(B88&"_"&D88,'Validation Data'!$N$5:$R$49,5,FALSE) -> 14
A89: 61 | B89: ='Source Data'!N73 -> 1991 | C89: 1998 | D89: ='Source Data'!O73 -> 96 | F89: 0 | G89: 0 | H89: 0 | I89: 1 | J89: 0 | K89: 0 | L89: 0 | M89: 0 | N89: 0 | O89: 0 | P89: 0 | Q89: 0 | R89: 1 | S89: 4 | U89: 11 | W89: 5.756963075 | X89: 5.756963075 | AD89: ='Source Data'!P73 -> 1 | AE89: =VLOOKUP(B89&"_"&D89,'Validation Data'!$N$5:$R$49,5,FALSE) -> 11
A90: 62 | B90: ='Source Data'!N74 -> 1992 | C90: 2001 | D90: ='Source Data'!O74 -> 120 | F90: 0 | G90: 0 | H90: 0 | I90: 0 | J90: 1 | K90: 0 | L90: 0 | M90: 0 | N90: 0 | O90: 0 | P90: 0 | Q90: 0 | R90: 1 | S90: 6 | U90: -22 | W90: 2.326360247 | X90: 2.326360247 | AD90: ='Source Data'!P74 -> 1 | AE90: =VLOOKUP(B90&"_"&D90,'Validation Data'!$N$5:$R$49,5,FALSE) -> -22
A91: 63 | B91: ='Source Data'!N75 -> 1992 | C91: 2000 | D91: ='Source Data'!O75 -> 108 | F91: 0 | G91: 0 | H91: 0 | I91: 0 | J91: 1 | K91: 0 | L91: 0 | M91: 0 | N91: 0 | O91: 0 | P91: 0 | Q91: 0 | R91: 1 | S91: 5 | U91: 60 | W91: 5.416433029 | X91: 5.416433029 | AD91: ='Source Data'!P75 -> 1 | AE91: =VLOOKUP(B91&"_"&D91,'Validation Data'!$N$5:$R$49,5,FALSE) -> 60
A92: 64 | B92: ='Source Data'!N76 -> 1992 | C92: 1999 | D92: ='Source Data'!O76 -> 96 | F92: 0 | G92: 0 | H92: 0 | I92: 0 | J92: 1 | K92: 0 | L92: 0 | M92: 0 | N92: 0 | O92: 0 | P92: 0 | Q92: 0 | R92: 1 | S92: 4 | U92: 172 | W92: 12.6110076 | X92: 12.6110076 | AD92: ='Source Data'!P76 -> 1 | AE92: =VLOOKUP(B92&"_"&D92,'Validation Data'!$N$5:$R$49,5,FALSE) -> 172
A93: 65 | B93: ='Source Data'!N77 -> 1992 | C93: 1998 | D93: ='Source Data'!O77 -> 84 | F93: 0 | G93: 0 | H93: 0 | I93: 0 | J93: 1 | K93: 0 | L93: 0 | M93: 0 | N93: 0 | O93: 0 | P93: 0 | Q93: 0 | R93: 1 | S93: 3 | U93: 25 | W93: 29.36203804 | X93: 29.36203804 | AD93: ='Source Data'!P77 -> 1 | AE93: =VLOOKUP(B93&"_"&D93,'Validation Data'!$N$5:$R$49,5,FALSE) -> 25
A94: 66 | B94: ='Source Data'!N78 -> 1993 | C94: 2002 | D94: ='Source Data'!O78 -> 120 | F94: 0 | G94: 0 | H94: 0 | I94: 0 | J94: 0 | K94: 1 | L94: 0 | M94: 0 | N94: 0 | O94: 0 | P94: 0 | Q94: 0 | R94: 1 | S94: 6 | U94: -11 | W94: 2.577140345 | X94: 2.577140345 | AD94: ='Source Data'!P78 -> 1 | AE94: =VLOOKUP(B94&"_"&D94,'Validation Data'!$N$5:$R$49,5,FALSE) -> -11
A95: 67 | B95: ='Source Data'!N79 -> 1993 | C95: 2001 | D95: ='Source Data'!O79 -> 108 | F95: 0 | G95: 0 | H95: 0 | I95: 0 | J95: 0 | K95: 1 | L95: 0 | M95: 0 | N95: 0 | O95: 0 | P95: 0 | Q95: 0 | R95: 1 | S95: 5 | U95: -6 | W95: 6.00032093 | X95: 6.00032093 | AD95: ='Source Data'!P79 -> 1 | AE95: =VLOOKUP(B95&"_"&D95,'Validation Data'!$N$5:$R$49,5,FALSE) -> -6
A96: 68 | B96: ='Source Data'!N80 -> 1993 | C96: 2000 | D96: ='Source Data'!O80 -> 96 | F96: 0 | G96: 0 | H96: 0 | I96: 0 | J96: 0 | K96: 1 | L96: 0 | M96: 0 | N96: 0 | O96: 0 | P96: 0 | Q96: 0 | R96: 1 | S96: 4 | U96: 32 | W96: 13.97046588 | X96: 13.97046588 | AD96: ='Source Data'!P80 -> 1 | AE96: =VLOOKUP(B96&"_"&D96,'Validation Data'!$N$5:$R$49,5,FALSE) -> 32
A97: 69 | B97: ='Source Data'!N81 -> 1993 | C97: 1999 | D97: ='Source Data'!O81 -> 84 | F97: 0 | G97: 0 | H97: 0 | I97: 0 | J97: 0 | K97: 1 | L97: 0 | M97: 0 | N97: 0 | O97: 0 | P97: 0 | Q97: 0 | R97: 1 | S97: 3 | U97: 29 | W97: 32.52724634 | X97: 32.52724634 | AD97: ='Source Data'!P81 -> 1 | AE97: =VLOOKUP(B97&"_"&D97,'Validation Data'!$N$5:$R$49,5,FALSE) -> 29
A98: 70 | B98: ='Source Data'!N82 -> 1993 | C98: 1998 | D98: ='Source Data'!O82 -> 72 | F98: 0 | G98: 0 | H98: 0 | I98: 0 | J98: 0 | K98: 1 | L98: 0 | M98: 0 | N98: 0 | O98: 0 | P98: 0 | Q98: 0 | R98: 1 | S98: 2 | U98: 78 | W98: 75.73274673 | X98: 75.73274673 | AD98: ='Source Data'!P82 -> 1 | AE98: =VLOOKUP(B98&"_"&D98,'Validation Data'!$N$5:$R$49,5,FALSE) -> 78
A99: 71 | B99: ='Source Data'!N83 -> 1994 | C99: 2003 | D99: ='Source Data'!O83 -> 120 | F99: 0 | G99: 0 | H99: 0 | I99: 0 | J99: 0 | K99: 0 | L99: 1 | M99: 0 | N99: 0 | O99: 0 | P99: 0 | Q99: 0 | R99: 1 | S99: 6 | U99: 1 | W99: 2.789276718 | X99: 2.789276718 | AD99: ='Source Data'!P83 -> 1 | AE99: =VLOOKUP(B99&"_"&D99,'Validation Data'!$N$5:$R$49,5,FALSE) -> 1
A100: 72 | B100: ='Source Data'!N84 -> 1994 | C100: 2002 | D100: ='Source Data'!O84 -> 108 | F100: =($B100=F$23)*1 -> 0 | G100: 0 | H100: 0 | I100: 0 | J100: 0 | K100: 0 | L100: 1 | M100: 0 | N100: 0 | O100: 0 | P100: 0 | Q100: 0 | R100: 1 | S100: 5 | U100: 84 | W100: 6.494235171 | X100: 6.494235171 | AD100: ='Source Data'!P84 -> 1 | AE100: =VLOOKUP(B100&"_"&D100,'Validation Data'!$N$5:$R$49,5,FALSE) -> 84
A101: 73 | B101: ='Source Data'!N85 -> 1994 | C101: 2001 | D101: ='Source Data'!O85 -> 96 | F101: 0 | G101: 0 | H101: 0 | I101: 0 | J101: 0 | K101: 0 | L101: 1 | M101: 0 | N101: 0 | O101: 0 | P101: 0 | Q101: 0 | R101: 1 | S101: 4 | U101: 47 | W101: 15.12043972 | X101: 15.12043972 | AD101: ='Source Data'!P85 -> 1 | AE101: =VLOOKUP(B101&"_"&D101,'Validation Data'!$N$5:$R$49,5,FALSE) -> 47
A102: 74 | B102: ='Source Data'!N86 -> 1994 | C102: 2000 | D102: ='Source Data'!O86 -> 84 | F102: 0 | G102: 0 | H102: 0 | I102: 0 | J102: 0 | K102: 0 | L102: 1 | M102: 0 | N102: 0 | O102: 0 | P102: 0 | Q102: 0 | R102: 1 | S102: 3 | U102: -96 | W102: 35.20471483 | X102: 35.20471483 | AD102: ='Source Data'!P86 -> 1 | AE102: =VLOOKUP(B102&"_"&D102,'Validation Data'!$N$5:$R$49,5,FALSE) -> -96
A103: 75 | B103: ='Source Data'!N87 -> 1994 | C103: 1999 | D103: ='Source Data'!O87 -> 72 | F103: 0 | G103: 0 | H103: 0 | I103: 0 | J103: 0 | K103: 0 | L103: 1 | M103: 0 | N103: 0 | O103: 0 | P103: 0 | Q103: 0 | R103: 1 | S103: 2 | U103: 143 | W103: 81.96666032 | X103: 81.96666032 | AD103: ='Source Data'!P87 -> 1 | AE103: =VLOOKUP(B103&"_"&D103,'Validation Data'!$N$5:$R$49,5,FALSE) -> 143
A104: 76 | B104: ='Source Data'!N88 -> 1994 | C104: 1998 | D104: ='Source Data'!O88 -> 60 | F104: 0 | G104: 0 | H104: 0 | I104: 0 | J104: 0 | K104: 0 | L104: 1 | M104: 0 | N104: 0 | O104: =($D104=O$23)*1 -> 0 | P104: 0 | Q104: 0 | R104: 1 | S104: 1 | U104: 44 | W104: 190.8418641 | X104: 190.8418641 | AD104: ='Source Data'!P88 -> 1 | AE104: =VLOOKUP(B104&"_"&D104,'Validation Data'!$N$5:$R$49,5,FALSE) -> 44
A105: 77 | B105: ='Source Data'!N89 -> 1995 | C105: 2004 | D105: ='Source Data'!O89 -> 120 | F105: 0 | G105: 0 | H105: 0 | I105: 0 | J105: 0 | K105: 0 | L105: 0 | M105: 1 | N105: 0 | O105: 0 | P105: 0 | Q105: 0 | R105: 1 | S105: 6 | U105: 22 | W105: 2.548889766 | X105: 2.548889766 | AD105: ='Source Data'!P89 -> 1 | AE105: =VLOOKUP(B105&"_"&D105,'Validation Data'!$N$5:$R$49,5,FALSE) -> 22
A106: 78 | B106: ='Source Data'!N90 -> 1995 | C106: 2003 | D106: ='Source Data'!O90 -> 108 | F106: 0 | G106: 0 | H106: 0 | I106: 0 | J106: 0 | K106: 0 | L106: 0 | M106: 1 | N106: 0 | O106: 0 | P106: 0 | Q106: 0 | R106: 1 | S106: 5 | U106: 73 | W106: 5.93454549 | X106: 5.93454549 | AD106: ='Source Data'!P90 -> 1 | AE106: =VLOOKUP(B106&"_"&D106,'Validation Data'!$N$5:$R$49,5,FALSE) -> 73
A107: 79 | B107: ='Source Data'!N91 -> 1995 | C107: 2002 | D107: ='Source Data'!O91 -> 96 | F107: 0 | G107: 0 | H107: 0 | I107: 0 | J107: 0 | K107: 0 | L107: 0 | M107: 1 | N107: 0 | O107: 0 | P107: 0 | Q107: 0 | R107: 1 | S107: 4 | U107: 67 | W107: 13.81732182 | X107: 13.81732182 | AD107: ='Source Data'!P91 -> 1 | AE107: =VLOOKUP(B107&"_"&D107,'Validation Data'!$N$5:$R$49,5,FALSE) -> 67
A108: 80 | B108: ='Source Data'!N92 -> 1995 | C108: 2001 | D108: ='Source Data'!O92 -> 84 | F108: 0 | G108: 0 | H108: 0 | I108: 0 | J108: 0 | K108: 0 | L108: 0 | M108: 1 | N108: 0 | O108: 0 | P108: 0 | Q108: 0 | R108: 1 | S108: 3 | U108: 46 | W108: 32.17068309 | X108: 32.17068309 | AD108: ='Source Data'!P92 -> 1 | AE108: =VLOOKUP(B108&"_"&D108,'Validation Data'!$N$5:$R$49,5,FALSE) -> 46
A109: 81 | B109: ='Source Data'!N93 -> 1995 | C109: 2000 | D109: ='Source Data'!O93 -> 72 | F109: 0 | G109: 0 | H109: 0 | I109: 0 | J109: 0 | K109: 0 | L109: 0 | M109: 1 | N109: 0 | O109: 0 | P109: 0 | Q109: 0 | R109: 1 | S109: 2 | U109: 27 | W109: 74.90256535 | X109: 74.90256535 | AD109: ='Source Data'!P93 -> 1 | AE109: =VLOOKUP(B109&"_"&D109,'Validation Data'!$N$5:$R$49,5,FALSE) -> 27
A110: 82 | B110: ='Source Data'!N94 -> 1995 | C110: 1999 | D110: ='Source Data'!O94 -> 60 | F110: 0 | G110: 0 | H110: 0 | I110: 0 | J110: 0 | K110: 0 | L110: 0 | M110: 1 | N110: 0 | O110: 0 | P110: 0 | Q110: 0 | R110: 1 | S110: 1 | U110: -49 | W110: 174.3946276 | X110: 174.3946276 | AD110: ='Source Data'!P94 -> 1 | AE110: =VLOOKUP(B110&"_"&D110,'Validation Data'!$N$5:$R$49,5,FALSE) -> -49
A111: 83 | B111: ='Source Data'!N95 -> 1995 | C111: 1998 | D111: ='Source Data'!O95 -> 48 | F111: 0 | G111: 0 | H111: 0 | I111: 0 | J111: 0 | K111: 0 | L111: 0 | M111: 1 | N111: 0 | O111: 0 | P111: 0 | Q111: 0 | R111: 1 | S111: 0 | U111: 399 | W111: 406.0406473 | X111: 406.0406473 | AD111: ='Source Data'!P95 -> 1 | AE111: =VLOOKUP(B111&"_"&D111,'Validation Data'!$N$5:$R$49,5,FALSE) -> 399
A112: 84 | B112: ='Source Data'!N96 -> 1996 | C112: 2005 | D112: ='Source Data'!O96 -> 120 | F112: 0 | G112: 0 | H112: 0 | I112: 0 | J112: 0 | K112: 0 | L112: 0 | M112: 0 | N112: 1 | O112: 0 | P112: 0 | Q112: 0 | R112: 1 | S112: 6 | U112: 32 | W112: 2.775192466 | X112: 2.775192466 | AD112: ='Source Data'!P96 -> 1 | AE112: =VLOOKUP(B112&"_"&D112,'Validation Data'!$N$5:$R$49,5,FALSE) -> 32
A113: 85 | B113: ='Source Data'!N97 -> 1996 | C113: 2004 | D113: ='Source Data'!O97 -> 108 | F113: 0 | G113: 0 | H113: 0 | I113: 0 | J113: 0 | K113: 0 | L113: 0 | M113: 0 | N113: 1 | O113: 0 | P113: 0 | Q113: 0 | R113: 1 | S113: 5 | U113: 184 | W113: 6.461443 | X113: 6.461443 | AD113: ='Source Data'!P97 -> 1 | AE113: =VLOOKUP(B113&"_"&D113,'Validation Data'!$N$5:$R$49,5,FALSE) -> 184
A114: 86 | B114: ='Source Data'!N98 -> 1996 | C114: 2003 | D114: ='Source Data'!O98 -> 96 | F114: 0 | G114: 0 | H114: 0 | I114: 0 | J114: 0 | K114: 0 | L114: 0 | M114: 0 | N114: 1 | O114: 0 | P114: 0 | Q114: 0 | R114: 1 | S114: 4 | U114: 102 | W114: 15.04409015 | X114: 15.04409015 | AD114: ='Source Data'!P98 -> 1 | AE114: =VLOOKUP(B114&"_"&D114,'Validation Data'!$N$5:$R$49,5,FALSE) -> 102
A115: 87 | B115: ='Source Data'!N99 -> 1996 | C115: 2002 | D115: ='Source Data'!O99 -> 84 | F115: 0 | G115: 0 | H115: 0 | I115: 0 | J115: 0 | K115: 0 | L115: 0 | M115: 0 | N115: 1 | O115: 0 | P115: 0 | Q115: 0 | R115: 1 | S115: 3 | U115: 227 | W115: 35.02695117 | X115: 35.02695117 | AD115: ='Source Data'!P99 -> 1 | AE115: =VLOOKUP(B115&"_"&D115,'Validation Data'!$N$5:$R$49,5,FALSE) -> 227
A116: 88 | B116: ='Source Data'!N100 -> 1996 | C116: 2001 | D116: ='Source Data'!O100 -> 72 | F116: =($B116=F$23)*1 -> 0 | G116: 0 | H116: 0 | I116: 0 | J116: 0 | K116: 0 | L116: 0 | M116: 0 | N116: 1 | O116: 0 | P116: 0 | Q116: 0 | R116: 1 | S116: 2 | U116: 331 | W116: 81.55277559 | X116: 81.55277559 | AD116: ='Source Data'!P100 -> 1 | AE116: =VLOOKUP(B116&"_"&D116,'Validation Data'!$N$5:$R$49,5,FALSE) -> 331
A117: 89 | B117: ='Source Data'!N101 -> 1996 | C117: 2000 | D117: ='Source Data'!O101 -> 60 | F117: 0 | G117: 0 | H117: 0 | I117: 0 | J117: 0 | K117: 0 | L117: 0 | M117: 0 | N117: 1 | O117: 0 | P117: 0 | Q117: 0 | R117: 1 | S117: 1 | U117: 463 | W117: 189.8782219 | X117: 189.8782219 | AD117: ='Source Data'!P101 -> 1 | AE117: =VLOOKUP(B117&"_"&D117,'Validation Data'!$N$5:$R$49,5,FALSE) -> 463
A118: 90 | B118: ='Source Data'!N102 -> 1996 | C118: 1999 | D118: ='Source Data'!O102 -> 48 | F118: 0 | G118: 0 | H118: 0 | I118: 0 | J118: 0 | K118: 0 | L118: 0 | M118: 0 | N118: 1 | O118: 0 | P118: 0 | Q118: 0 | R118: 1 | S118: 0 | U118: 337 | W118: 442.0908902 | X118: 442.0908902 | AD118: ='Source Data'!P102 -> 1 | AE118: =VLOOKUP(B118&"_"&D118,'Validation Data'!$N$5:$R$49,5,FALSE) -> 337
A119: 91 | B119: ='Source Data'!N103 -> 1996 | C119: 1998 | D119: ='Source Data'!O103 -> 36 | F119: 0 | G119: 0 | H119: 0 | I119: 0 | J119: 0 | K119: 0 | L119: 0 | M119: 0 | N119: 1 | O119: 0 | P119: 0 | Q119: 1 | R119: 0 | S119: 0 | U119: 948 | W119: 588.8468773 | X119: 588.8468773 | AD119: ='Source Data'!P103 -> 1 | AE119: =VLOOKUP(B119&"_"&D119,'Validation Data'!$N$5:$R$49,5,FALSE) -> 948
A120: 92 | B120: ='Source Data'!N104 -> 1997 | C120: 2006 | D120: ='Source Data'!O104 -> 120 | F120: 0 | G120: 0 | H120: 0 | I120: 0 | J120: 0 | K120: 0 | L120: 0 | M120: 0 | N120: 0 | O120: 0 | P120: 0 | Q120: 0 | R120: 1 | S120: 6 | U120: 309 | W120: 3.520980139 | X120: 3.520980139 | AD120: ='Source Data'!P104 -> 1 | AE120: =VLOOKUP(B120&"_"&D120,'Validation Data'!$N$5:$R$49,5,FALSE) -> 309
A121: 93 | B121: ='Source Data'!N105 -> 1997 | C121: 2005 | D121: ='Source Data'!O105 -> 108 | F121: 0 | G121: 0 | H121: 0 | I121: 0 | J121: 0 | K121: 0 | L121: 0 | M121: 0 | N121: 0 | O121: 0 | P121: 0 | Q121: 0 | R121: 1 | S121: 5 | U121: 473 | W121: 8.197850329 | X121: 8.197850329 | AD121: ='Source Data'!P105 -> 1 | AE121: =VLOOKUP(B121&"_"&D121,'Validation Data'!$N$5:$R$49,5,FALSE) -> 473
A122: 94 | B122: ='Source Data'!N106 -> 1997 | C122: 2004 | D122: ='Source Data'!O106 -> 96 | F122: 0 | G122: 0 | H122: 0 | I122: 0 | J122: 0 | K122: 0 | L122: 0 | M122: 0 | N122: 0 | O122: 0 | P122: 0 | Q122: 0 | R122: 1 | S122: 4 | U122: 517 | W122: 19.08694379 | X122: 19.08694379 | AD122: ='Source Data'!P106 -> 1 | AE122: =VLOOKUP(B122&"_"&D122,'Validation Data'!$N$5:$R$49,5,FALSE) -> 517
A123: 95 | B123: ='Source Data'!N107 -> 1997 | C123: 2003 | D123: ='Source Data'!O107 -> 84 | F123: 0 | G123: 0 | H123: 0 | I123: 0 | J123: 0 | K123: 0 | L123: 0 | M123: 0 | N123: 0 | O123: 0 | P123: 0 | Q123: 0 | R123: 1 | S123: 3 | U123: 496 | W123: 44.4398725 | X123: 44.4398725 | AD123: ='Source Data'!P107 -> 1 | AE123: =VLOOKUP(B123&"_"&D123,'Validation Data'!$N$5:$R$49,5,FALSE) -> 496
A124: 96 | B124: ='Source Data'!N108 -> 1997 | C124: 2002 | D124: ='Source Data'!O108 -> 72 | F124: 0 | G124: 0 | H124: 0 | I124: 0 | J124: 0 | K124: 0 | L124: 0 | M124: 0 | N124: 0 | O124: 0 | P124: 0 | Q124: 0 | R124: 1 | S124: 2 | U124: 368 | W124: 103.4687527 | X124: 103.4687527 | AD124: ='Source Data'!P108 -> 1 | AE124: =VLOOKUP(B124&"_"&D124,'Validation Data'!$N$5:$R$49,5,FALSE) -> 368
A125: 97 | B125: ='Source Data'!N109 -> 1997 | C125: 2001 | D125: ='Source Data'!O109 -> 60 | F125: 0 | G125: 0 | H125: 0 | I125: 0 | J125: 0 | K125: 0 | L125: 0 | M125: 0 | N125: 0 | O125: 0 | P125: 0 | Q125: 0 | R125: 1 | S125: 1 | U125: 898 | W125: 240.9048945 | X125: 240.9048945 | AD125: ='Source Data'!P109 -> 1 | AE125: =VLOOKUP(B125&"_"&D125,'Validation Data'!$N$5:$R$49,5,FALSE) -> 898
A126: 98 | B126: ='Source Data'!N110 -> 1997 | C126: 2000 | D126: ='Source Data'!O110 -> 48 | F126: 0 | G126: 0 | H126: 0 | I126: 0 | J126: 0 | K126: 0 | L126: 0 | M126: 0 | N126: 0 | O126: 0 | P126: 0 | Q126: 0 | R126: 1 | S126: 0 | U126: 1008 | W126: 560.8956002 | X126: 560.8956002 | AD126: ='Source Data'!P110 -> 1 | AE126: =VLOOKUP(B126&"_"&D126,'Validation Data'!$N$5:$R$49,5,FALSE) -> 1008
A127: 99 | B127: ='Source Data'!N111 -> 1997 | C127: 1999 | D127: ='Source Data'!O111 -> 36 | F127: 0 | G127: 0 | H127: 0 | I127: 0 | J127: 0 | K127: 0 | L127: 0 | M127: 0 | N127: 0 | O127: 0 | P127: 0 | Q127: 1 | R127: 0 | S127: 0 | U127: 2034 | W127: 747.0898631 | X127: 747.0898631 | AD127: ='Source Data'!P111 -> 1 | AE127: =VLOOKUP(B127&"_"&D127,'Validation Data'!$N$5:$R$49,5,FALSE) -> 2034
A128: 100 | B128: ='Source Data'!N112 -> 1997 | C128: 1998 | D128: ='Source Data'!O112 -> 24 | F128: 0 | G128: 0 | H128: 0 | I128: 0 | J128: 0 | K128: 0 | L128: 0 | M128: 0 | N128: 0 | O128: 0 | P128: 1 | Q128: 0 | R128: 0 | S128: 0 | U128: 6512 | W128: 6177.061788 | X128: 6177.061788 | AD128: ='Source Data'!P112 -> 1 | AE128: =VLOOKUP(B128&"_"&D128,'Validation Data'!$N$5:$R$49,5,FALSE) -> 6512

Sheet GLM Calculation - Smooth w Log
I1: Generalized Linear Model
I2: Poisson with Log-Link
I3: Smoothing with Pareto Decay (Inverse Power)
D5: Suggested Starting Values
D6: Value: | F6: 1 | G6: 1 | H6: 1 | I6: 1 | J6: 1 | K6: 1 | L6: 1 | M6: 1 | N6: 1 | O6: =$U$22 -> 1966.490909 | P6: =$U$22 -> 1966.490909 | Q6: =$U$22 -> 1966.490909 | R6: =$U$22 -> 1966.490909 | S6: 1
D7: Parameter: | F7: =LN(F6) -> 0 | G7: 0 | H7: 0 | I7: 0 | J7: 0 | K7: 0 | L7: 0 | M7: =LN(M6) -> 0 | N7: 0 | O7: =LN(O6) -> 7.584005969 | P7: =LN(P6) -> 7.584005969 | Q7: =LN(Q6) -> 7.584005969 | R7: =LN(R6) -> 7.584005969 | S7: =LN(S6) -> 0
D9: GLM Fitted Values
D10: Value: | F10: =EXP(F11) -> 0.02607214943 | G10: =EXP(G11) -> 0.08902070446 | H10: 0.234175435 | I10: 0.3014977254 | J10: 0.6612693469 | K10: 0.7327925111 | L10: 0.7917392768 | M10: 0.7239148376 | N10: 0.788187481 | O10: 14280 | P10: 6177.061788 | Q10: 747.0898631 | R10: 573.2193918 | W10: =SUM(W84:W128) -> 11034.43719 | X10: check
D11: Parameter: | F11: -3.646887606 | G11: -2.418886302 | H11: -1.451684722 | I11: -1.198992807 | J11: -0.4135940381 | K11: -0.3108926852 | L11: -0.2335231373 | M11: -0.3230815211 | N11: -0.2380192974 | O11: 9.566615236 | P11: 8.728597999 | Q11: 6.616185477 | R11: 6.351268526 | S11: -1.498105225 | W11: 11034.43719 | X11: Future Payments
D12: Std Error: | F12: 1.324945668 | G12: 0.7534904734 | H12: 0.5122404969 | I12: 0.4696998646 | J12: 0.3757046763 | K12: 0.3671119271 | L12: 0.3614167205 | M12: 0.3703888742 | N12: 0.3655989684 | O12: 0.2614710375 | P12: 0.3470343636 | Q12: 0.6734547302 | R12: 0.8185599165 | S12: 1.577731045 | W12: 4485.671331 | X12: Standard Error
Z15: Sum VM | AA15: =SUM(AA24:AA78) -> 40027.57202
D16: Weighted Actual: | F16: =SUMPRODUCT(F$24:F$78,$U$24:$U$78)/SUM(F$24:F$78) -> 58.1 | G16: =SUMPRODUCT(G$24:G$78,$U$24:$U$78)/SUM(G$24:G$78) -> 220.1111111 | H16: 650.25 | I16: 954.5714286 | J16: 2434.666667 | K16: 3221.4 | L16: 4310.5 | M16: 5116.666667 | N16: 8062 | O16: 7637.9 | P16: 2984.666667 | Q16: 332.5 | R16: 80.57142857 | S16: 21.53545297 | Z16: # Points | AA16: =COUNT($U$24:$U$78) -> 55
D17: Weighted Fitted: | F17: =SUMPRODUCT(F$24:F$78,$W$24:$W$78)/SUM(F$24:F$78) -> 58.1 | G17: 220.1111111 | H17: 650.25 | I17: 954.5714286 | J17: 2434.666667 | K17: 3221.4 | L17: 4310.5 | M17: 5116.666667 | N17: 8062 | O17: 7637.9 | P17: 2984.666667 | Q17: 332.5 | R17: 80.57142857 | S17: 21.53545297 | Z17: # Param | AA17: =COUNT($F$11:$S$11) -> 14
Z18: Avg VM | AA18: =AA15/(AA16-AA17) -> 976.2822443
F21: DESIGN MATRIX (X) | U21: RESPONSE (Y) | W21: RESULTS OF GLM FIT | AD21: WEIGHTS
F22: Accident Year (excl. latest) | O22: Development Age | U22: =SUMPRODUCT(CountWts,ActualLRs)/SUM(CountWts) -> 1966.490909 | W22: =SUMPRODUCT(CountWts,X$24:X$78)/SUM(CountWts) -> 1966.490909
A23: Index | B23: Accident Year | C23: Calendar Year | D23: Age | F23: ='Source Data'!$A$8 -> 1988 | G23: =F23+1 -> 1989 | H23: =G23+1 -> 1990 | I23: 1991 | J23: 1992 | K23: 1993 | L23: 1994 | M23: 1995 | N23: 1996 | O23: ='Source Data'!B6 -> 12 | P23: ='Source Data'!C6 -> 24 | Q23: ='Source Data'!D6 -> 36 | R23: 48 | S23: log(t) | U23: Actual Loss | W23: Expected Loss | X23: Fitted LR | Z23: QLL | AA23: V/M Ratio | AB23: Standard Residual | AD23: Earned Premium | AE23: Loss Dollars
A24: 1 | B24: ='Source Data'!N8 -> 1988 | C24: =B24+D24/12-1 -> 1988 | D24: ='Source Data'!O8 -> 12 | F24: =($B24=F$23)*1 -> 1 | G24: 0 | H24: 0 | I24: 0 | J24: 0 | K24: 0 | L24: 0 | M24: 0 | N24: 0 | O24: =($D24=O$23)*1 -> 1 | P24: 0 | Q24: 0 | R24: =($D24>=R$23)*1 -> 0 | S24: =LN(1+MAX($D24-R$23,0)/12) -> 0 | U24: =AE24/AD24 -> 267 | W24: =$AD24*X24 -> 372.3102938 | X24: =EXP(SUMPRODUCT($F$11:$S$11,$F24:$S24)) -> 372.3102938 | Z24: =$AD24*($U24*LN(X24)-X24) -> 1208.256983 | AA24: =($AE24-W24)^2/W24 -> 29.78767487 | AB24: =($AE24-W24)/(W24*AA$18)^0.5 -> -0.1746749417 | AD24: ='Source Data'!P8 -> 1 | AE24: ='Source Data'!Q8 -> 267 | AG24: 12 | AH24: =SUMPRODUCT(($AG24=$D$24:$D$78)*1,$AB$24:$AB$78)/SUMPRODUCT(($AG24=$D$24:$D$78)*1) -> 0.04531372803
A25: =A24+1 -> 2 | B25: ='Source Data'!N9 -> 1989 | C25: 1989 | D25: ='Source Data'!O9 -> 12 | F25: 0 | G25: 1 | H25: 0 | I25: 0 | J25: 0 | K25: 0 | L25: 0 | M25: 0 | N25: 0 | O25: 1 | P25: 0 | Q25: 0 | R25: 0 | S25: 0 | U25: 2071 | W25: 1271.21566 | X25: 1271.21566 | Z25: 13531.73096 | AA25: 503.1836937 | AB25: 0.717919226 | AD25: ='Source Data'!P9 -> 1 | AE25: ='Source Data'!Q9 -> 2071 | AG25: =AG24+12 -> 24 | AH25: =SUMPRODUCT(($AG25=$D$24:$D$78)*1,$AB$24:$AB$78)/SUMPRODUCT(($AG25=$D$24:$D$78)*1) -> -0.02778795034
A26: 3 | B26: ='Source Data'!N10 -> 1990 | C26: 1990 | D26: ='Source Data'!O10 -> 12 | F26: 0 | G26: 0 | H26: 1 | I26: 0 | J26: 0 | K26: 0 | L26: 0 | M26: 0 | N26: 0 | O26: 1 | P26: 0 | Q26: 0 | R26: 0 | S26: 0 | U26: 4183 | W26: 3344.025211 | X26: 3344.025211 | Z26: 30600.72913 | AA26: 210.4884537 | AB26: 0.4643296787 | AD26: ='Source Data'!P10 -> 1 | AE26: ='Source Data'!Q10 -> 4183 | AG26: =AG25+12 -> 36 | AH26: -0.3126498809
A27: 4 | B27: ='Source Data'!N11 -> 1991 | C27: 1991 | D27: ='Source Data'!O11 -> 12 | F27: 0 | G27: 0 | H27: 0 | I27: 1 | J27: 0 | K27: 0 | L27: 0 | M27: 0 | N27: 0 | O27: 1 | P27: 0 | Q27: 0 | R27: 0 | S27: 0 | U27: 3837 | W27: 4305.387519 | X27: 4305.387519 | Z27: 27801.17974 | AA27: 50.95635809 | AB27: -0.2284606957 | AD27: ='Source Data'!P11 -> 1 | AE27: ='Source Data'!Q11 -> 3837 | AG27: 48 | AH27: 0.1392875657
A28: 5 | B28: ='Source Data'!N12 -> 1992 | C28: 1992 | D28: ='Source Data'!O12 -> 12 | F28: 0 | G28: 0 | H28: 0 | I28: 0 | J28: 1 | K28: 0 | L28: 0 | M28: 0 | N28: 0 | O28: 1 | P28: 0 | Q28: 0 | R28: 0 | S28: 0 | U28: 9195 | W28: 9442.926274 | X28: 9442.926274 | Z28: 74719.10364 | AA28: 6.509363276 | AB28: -0.08165476989 | AD28: ='Source Data'!P12 -> 1 | AE28: ='Source Data'!Q12 -> 9195 | AG28: 60 | AH28: 0.1785835882
A29: 6 | B29: ='Source Data'!N13 -> 1993 | C29: 1993 | D29: ='Source Data'!O13 -> 12 | F29: 0 | G29: 0 | H29: 0 | I29: 0 | J29: 0 | K29: 1 | L29: 0 | M29: 0 | N29: 0 | O29: 1 | P29: 0 | Q29: 0 | R29: 0 | S29: 0 | U29: 10839 | W29: 10464.27706 | X29: 10464.27706 | Z29: 89858.49967 | AA29: 13.41872752 | AB29: 0.1172378841 | AD29: ='Source Data'!P13 -> 1 | AE29: ='Source Data'!Q13 -> 10839 | AG29: 72 | AH29: 0.1842512983
A30: 7 | B30: ='Source Data'!N14 -> 1994 | C30: 1994 | D30: ='Source Data'!O14 -> 12 | F30: 0 | G30: 0 | H30: 0 | I30: 0 | J30: 0 | K30: 0 | L30: 1 | M30: 0 | N30: 0 | O30: 1 | P30: 0 | Q30: 0 | R30: 0 | S30: 0 | U30: 9949 | W30: 11306.03687 | X30: 11306.03687 | Z30: 81548.89642 | AA30: 162.8819271 | AB30: -0.4084592673 | AD30: ='Source Data'!P14 -> 1 | AE30: ='Source Data'!Q14 -> 9949 | AG30: 84 | AH30: -0.3961321291
A31: 8 | B31: ='Source Data'!N15 -> 1995 | C31: 1995 | D31: ='Source Data'!O15 -> 12 | F31: 0 | G31: 0 | H31: 0 | I31: 0 | J31: 0 | K31: 0 | L31: 0 | M31: 1 | N31: 0 | O31: 1 | P31: 0 | Q31: 0 | R31: 0 | S31: 0 | U31: 10114 | W31: 10337.50388 | X31: 10337.50388 | Z31: 83151.59611 | AA31: 4.832306289 | AB31: -0.07035411938 | AD31: ='Source Data'!P15 -> 1 | AE31: ='Source Data'!Q15 -> 10114 | AG31: 96 | AH31: -0.06672596225
A32: 9 | B32: ='Source Data'!N16 -> 1996 | C32: 1996 | D32: ='Source Data'!O16 -> 12 | F32: 0 | G32: 0 | H32: 0 | I32: 0 | J32: 0 | K32: 0 | L32: 0 | M32: 0 | N32: 1 | O32: 1 | P32: 0 | Q32: 0 | R32: 0 | S32: 0 | U32: 11644 | W32: 11255.31723 | X32: 11255.31723 | Z32: 97366.85388 | AA32: 13.42248232 | AB32: 0.1172542856 | AD32: ='Source Data'!P16 -> 1 | AE32: ='Source Data'!Q16 -> 11644 | AG32: 108 | AH32: 0.0482746593
A33: 10 | B33: ='Source Data'!N17 -> 1997 | C33: 1997 | D33: ='Source Data'!O17 -> 12 | F33: 0 | G33: 0 | H33: 0 | I33: 0 | J33: 0 | K33: 0 | L33: 0 | M33: 0 | N33: 0 | O33: 1 | P33: 0 | Q33: 0 | R33: 0 | S33: 0 | U33: 14280 | W33: 14280 | X33: 14280 | Z33: 122331.2656 | AA33: 0 | AB33: 0 | AD33: ='Source Data'!P17 -> 1 | AE33: ='Source Data'!Q17 -> 14280 | AG33: 120 | AH33: -0.02880303586
A34: 11 | B34: ='Source Data'!N18 -> 1988 | C34: 1989 | D34: ='Source Data'!O18 -> 24 | F34: =($B34=F$23)*1 -> 1 | G34: 0 | H34: 0 | I34: 0 | J34: 0 | K34: 0 | L34: 0 | M34: 0 | N34: 0 | O34: 0 | P34: 1 | Q34: 0 | R34: 0 | S34: 0 | U34: 177 | W34: 161.049278 | X34: 161.049278 | Z34: 738.4134615 | AA34: 1.57979928 | AB34: 0.04022659383 | AD34: ='Source Data'!P18 -> 1 | AE34: ='Source Data'!Q18 -> 177
A35: 12 | B35: ='Source Data'!N19 -> 1989 | C35: 1990 | D35: ='Source Data'!O19 -> 24 | F35: 0 | G35: 1 | H35: 0 | I35: 0 | J35: 0 | K35: 0 | L35: 0 | M35: 0 | N35: 0 | O35: 0 | P35: 1 | Q35: 0 | R35: 0 | S35: 0 | U35: 947 | W35: 549.8863919 | X35: 549.8863919 | Z35: 5425.410585 | AA35: 286.7850889 | AB35: 0.5419891443 | AD35: ='Source Data'!P19 -> 1 | AE35: ='Source Data'!Q19 -> 947
A36: 13 | B36: ='Source Data'!N20 -> 1990 | C36: 1991 | D36: ='Source Data'!O20 -> 24 | F36: 0 | G36: 0 | H36: 1 | I36: 0 | J36: 0 | K36: 0 | L36: 0 | M36: 0 | N36: 0 | O36: 0 | P36: 1 | Q36: 0 | R36: 0 | S36: 0 | U36: -86 | W36: 1446.516131 | X36: 1446.516131 | Z36: -2072.330673 | AA36: 1623.629106 | AB36: -1.289602061 | AD36: ='Source Data'!P20 -> 1 | AE36: ='Source Data'!Q20 -> -86
A37: 14 | B37: ='Source Data'!N21 -> 1991 | C37: 1992 | D37: ='Source Data'!O21 -> 24 | F37: 0 | G37: 0 | H37: 0 | I37: 1 | J37: 0 | K37: 0 | L37: 0 | M37: 0 | N37: 0 | O37: 0 | P37: 1 | Q37: 0 | R37: 0 | S37: 0 | U37: 1587 | W37: 1862.370079 | X37: 1862.370079 | Z37: 10087.11336 | AA37: 40.71622569 | AB37: -0.2042189604 | AD37: ='Source Data'!P21 -> 1 | AE37: ='Source Data'!Q21 -> 1587
A38: 15 | B38: ='Source Data'!N22 -> 1992 | C38: 1993 | D38: ='Source Data'!O22 -> 24 | F38: 0 | G38: 0 | H38: 0 | I38: 0 | J38: 1 | K38: 0 | L38: 0 | M38: 0 | N38: 0 | O38: 0 | P38: 1 | Q38: 0 | R38: 0 | S38: 0 | U38: 4594 | W38: 4084.701615 | X38: 4084.701615 | Z38: 34114.42658 | AA38: 63.50154052 | AB38: 0.2550377306 | AD38: ='Source Data'!P22 -> 1 | AE38: ='Source Data'!Q22 -> 4594
A39: 16 | B39: ='Source Data'!N23 -> 1993 | C39: 1994 | D39: ='Source Data'!O23 -> 24 | F39: 0 | G39: 0 | H39: 0 | I39: 0 | J39: 0 | K39: 1 | L39: 0 | M39: 0 | N39: 0 | O39: 0 | P39: 1 | Q39: 0 | R39: 0 | S39: 0 | U39: 4026 | W39: 4526.504619 | X39: 4526.504619 | Z39: 29363.17697 | AA39: 55.3417913 | AB39: -0.2380887696 | AD39: ='Source Data'!P23 -> 1 | AE39: ='Source Data'!Q23 -> 4026
A40: 17 | B40: ='Source Data'!N24 -> 1994 | C40: 1995 | D40: ='Source Data'!O24 -> 24 | F40: 0 | G40: 0 | H40: 0 | I40: 0 | J40: 0 | K40: 0 | L40: 1 | M40: 0 | N40: 0 | O40: 0 | P40: 1 | Q40: 0 | R40: 0 | S40: 0 | U40: 6157 | W40: 4890.622433 | X40: 4890.622433 | Z40: 47413.55349 | AA40: 327.9157539 | AB40: 0.5795533833 | AD40: ='Source Data'!P24 -> 1 | AE40: ='Source Data'!Q24 -> 6157
A41: 18 | B41: ='Source Data'!N25 -> 1995 | C41: 1996 | D41: ='Source Data'!O25 -> 24 | F41: 0 | G41: 0 | H41: 0 | I41: 0 | J41: 0 | K41: 0 | L41: 0 | M41: 1 | N41: 0 | O41: 0 | P41: 1 | Q41: 0 | R41: 0 | S41: 0 | U41: 4980 | W41: 4471.666682 | X41: 4471.666682 | Z41: 37387.80538 | AA41: 57.78667798 | AB41: 0.2432910702 | AD41: ='Source Data'!P25 -> 1 | AE41: ='Source Data'!Q25 -> 4980
A42: 19 | B42: ='Source Data'!N26 -> 1996 | C42: 1997 | D42: ='Source Data'!O26 -> 24 | F42: 0 | G42: 0 | H42: 0 | I42: 0 | J42: 0 | K42: 0 | L42: 0 | M42: 0 | N42: 1 | O42: 0 | P42: 1 | Q42: 0 | R42: 0 | S42: 0 | U42: 4480 | W42: 4868.682771 | X42: 4868.682771 | Z42: 33169.10981 | AA42: 31.02980902 | AB42: -0.1782796841 | AD42: ='Source Data'!P26 -> 1 | AE42: ='Source Data'!Q26 -> 4480
A43: 20 | B43: ='Source Data'!N27 -> 1988 | C43: 1990 | D43: ='Source Data'!O27 -> 36 | F43: 1 | G43: 0 | H43: 0 | I43: 0 | J43: 0 | K43: 0 | L43: 0 | M43: 0 | N43: 0 | O43: 0 | P43: 0 | Q43: 1 | R43: 0 | S43: 0 | U43: -29 | W43: 19.47823855 | X43: 19.47823855 | Z43: -105.5878768 | AA43: 120.6546273 | AB43: -0.3515477283 | AD43: ='Source Data'!P27 -> 1 | AE43: ='Source Data'!Q27 -> -29
A44: 21 | B44: ='Source Data'!N28 -> 1989 | C44: 1991 | D44: ='Source Data'!O28 -> 36 | F44: =($B44=F$23)*1 -> 0 | G44: 1 | H44: 0 | I44: 0 | J44: 0 | K44: 0 | L44: 0 | M44: 0 | N44: 0 | O44: =($D44=O$23)*1 -> 0 | P44: 0 | Q44: 1 | R44: 0 | S44: 0 | U44: -1240 | W44: 66.5064659 | X44: 66.5064659 | Z44: -5271.157442 | AA44: 25666.06302 | AB44: -5.127337825 | AD44: ='Source Data'!P28 -> 1 | AE44: ='Source Data'!Q28 -> -1240
A45: 22 | B45: ='Source Data'!N29 -> 1990 | C45: 1992 | D45: ='Source Data'!O29 -> 36 | F45: 0 | G45: 0 | H45: 1 | I45: 0 | J45: 0 | K45: 0 | L45: 0 | M45: 0 | N45: 0 | O45: 0 | P45: 0 | Q45: 1 | R45: 0 | S45: 0 | U45: 977 | W45: 174.9500936 | X45: 174.9500936 | Z45: 4870.767143 | AA45: 3676.957462 | AB45: 1.940691963 | AD45: ='Source Data'!P29 -> 1 | AE45: ='Source Data'!Q29 -> 977
A46: 23 | B46: ='Source Data'!N30 -> 1991 | C46: 1993 | D46: ='Source Data'!O30 -> 36 | F46: 0 | G46: 0 | H46: 0 | I46: 1 | J46: 0 | K46: 0 | L46: 0 | M46: 0 | N46: 0 | O46: 0 | P46: 0 | Q46: 1 | R46: 0 | S46: 0 | U46: 571 | W46: 225.2458944 | X46: 225.2458944 | Z46: 2867.97112 | AA46: 530.7350966 | AB46: 0.7373118407 | AD46: ='Source Data'!P30 -> 1 | AE46: ='Source Data'!Q30 -> 571
A47: 24 | B47: ='Source Data'!N31 -> 1992 | C47: 1994 | D47: ='Source Data'!O31 -> 36 | F47: 0 | G47: 0 | H47: 0 | I47: 0 | J47: 1 | K47: 0 | L47: 0 | M47: 0 | N47: 0 | O47: 0 | P47: 0 | Q47: 1 | R47: 0 | S47: 0 | U47: 729 | W47: 494.0276259 | X47: 494.0276259 | Z47: 4027.661533 | AA47: 111.7589659 | AB47: 0.3383401145 | AD47: ='Source Data'!P31 -> 1 | AE47: ='Source Data'!Q31 -> 729
A48: 25 | B48: ='Source Data'!N32 -> 1993 | C48: 1995 | D48: ='Source Data'!O32 -> 36 | F48: 0 | G48: 0 | H48: 0 | I48: 0 | J48: 0 | K48: 1 | L48: 0 | M48: 0 | N48: 0 | O48: 0 | P48: 0 | Q48: 1 | R48: 0 | S48: 0 | U48: 838 | W48: 547.4618568 | X48: 547.4618568 | Z48: 4736.373502 | AA48: 154.1886647 | AB48: 0.3974097595 | AD48: ='Source Data'!P32 -> 1 | AE48: ='Source Data'!Q32 -> 838
A49: 26 | B49: ='Source Data'!N33 -> 1994 | C49: 1996 | D49: ='Source Data'!O33 -> 36 | F49: 0 | G49: 0 | H49: 0 | I49: 0 | J49: 0 | K49: 0 | L49: 1 | M49: 0 | N49: 0 | O49: 0 | P49: 0 | Q49: 1 | R49: 0 | S49: 0 | U49: 558 | W49: 591.5003879 | X49: 591.5003879 | Z49: 2970.025197 | AA49: 1.897337705 | AB49: -0.04408436843 | AD49: ='Source Data'!P33 -> 1 | AE49: ='Source Data'!Q33 -> 558
A50: 27 | B50: ='Source Data'!N34 -> 1995 | C50: 1997 | D50: ='Source Data'!O34 -> 36 | F50: 0 | G50: 0 | H50: 0 | I50: 0 | J50: 0 | K50: 0 | L50: 0 | M50: 1 | N50: 0 | O50: 0 | P50: 0 | Q50: 1 | R50: 0 | S50: 0 | U50: 256 | W50: 540.8294369 | X50: 540.8294369 | Z50: 1070.205176 | AA50: 150.006273 | AB50: -0.3919828037 | AD50: ='Source Data'!P34 -> 1 | AE50: ='Source Data'!Q34 -> 256
A51: 28 | B51: ='Source Data'!N35 -> 1988 | C51: 1991 | D51: ='Source Data'!O35 -> 48 | F51: 1 | G51: 0 | H51: 0 | I51: 0 | J51: 0 | K51: 0 | L51: 0 | M51: 0 | N51: 0 | O51: 0 | P51: 0 | Q51: 0 | R51: 1 | S51: 0 | U51: 167 | W51: 14.94506164 | X51: 14.94506164 | Z51: 436.686552 | AA51: 1547.046432 | AB51: 1.258820999 | AD51: ='Source Data'!P35 -> 1 | AE51: ='Source Data'!Q35 -> 167
A52: 29 | B52: ='Source Data'!N36 -> 1989 | C52: 1992 | D52: ='Source Data'!O36 -> 48 | F52: 0 | G52: 1 | H52: 0 | I52: 0 | J52: 0 | K52: 0 | L52: 0 | M52: 0 | N52: 0 | O52: 0 | P52: 0 | Q52: 0 | R52: 1 | S52: 0 | U52: 48 | W52: 51.02839406 | X52: 51.02839406 | Z52: 137.7259527 | AA52: 0.1797268124 | AB52: -0.01356809078 | AD52: ='Source Data'!P36 -> 1 | AE52: ='Source Data'!Q36 -> 48
A53: 30 | B53: ='Source Data'!N37 -> 1990 | C53: 1993 | D53: ='Source Data'!O37 -> 48 | F53: 0 | G53: 0 | H53: 1 | I53: 0 | J53: 0 | K53: 0 | L53: 0 | M53: 0 | N53: 0 | O53: 0 | P53: 0 | Q53: 0 | R53: 1 | S53: 0 | U53: 92 | W53: 134.2339004 | X53: 134.2339004 | Z53: 316.5278095 | AA53: 13.28801694 | AB53: -0.1166654851 | AD53: ='Source Data'!P37 -> 1 | AE53: ='Source Data'!Q37 -> 92
A54: 31 | B54: ='Source Data'!N38 -> 1991 | C54: 1994 | D54: ='Source Data'!O38 -> 48 | F54: =($B54=F$23)*1 -> 0 | G54: 0 | H54: 0 | I54: 1 | J54: 0 | K54: 0 | L54: 0 | M54: 0 | N54: 0 | O54: 0 | P54: 0 | Q54: 0 | R54: 1 | S54: 0 | U54: 305 | W54: 172.8243428 | X54: 172.8243428 | Z54: 1398.619752 | AA54: 101.0876366 | AB54: 0.3217816883 | AD54: ='Source Data'!P38 -> 1 | AE54: ='Source Data'!Q38 -> 305
A55: 32 | B55: ='Source Data'!N39 -> 1992 | C55: 1995 | D55: ='Source Data'!O39 -> 48 | F55: 0 | G55: 0 | H55: 0 | I55: 0 | J55: 1 | K55: 0 | L55: 0 | M55: 0 | N55: 0 | O55: 0 | P55: 0 | Q55: 0 | R55: 1 | S55: 0 | U55: 137 | W55: 379.0524129 | X55: 379.0524129 | Z55: 434.408992 | AA55: 154.5679927 | AB55: -0.397898304 | AD55: ='Source Data'!P39 -> 1 | AE55: ='Source Data'!Q39 -> 137
A56: 33 | B56: ='Source Data'!N40 -> 1993 | C56: 1996 | D56: ='Source Data'!O40 -> 48 | F56: 0 | G56: 0 | H56: 0 | I56: 0 | J56: 0 | K56: 1 | L56: 0 | M56: 0 | N56: 0 | O56: 0 | P56: 0 | Q56: 0 | R56: =($D56>=R$23)*1 -> 1 | S56: =LN(1+MAX($D56-R$23,0)/12) -> 0 | U56: =AE56/AD56 -> 251 | W56: =$AD56*X56 -> 420.0508775 | X56: =EXP(SUMPRODUCT($F$11:$S$11,$F56:$S56)) -> 420.0508775 | Z56: =$AD56*($U56*LN(X56)-X56) -> 1096.083459 | AA56: =($AE56-W56)^2/W56 -> 68.03508985 | AB56: =($AE56-W56)/(W56*AA$18)^0.5 -> -0.2639847177 | AD56: ='Source Data'!P40 -> 1 | AE56: ='Source Data'!Q40 -> 251
A57: 34 | B57: ='Source Data'!N41 -> 1994 | C57: 1997 | D57: ='Source Data'!O41 -> 48 | F57: 0 | G57: 0 | H57: 0 | I57: 0 | J57: 0 | K57: 0 | L57: 1 | M57: 0 | N57: 0 | O57: 0 | P57: 0 | Q57: 0 | R57: 1 | S57: 0 | U57: 578 | W57: 453.8403067 | X57: 453.8403067 | Z57: 3082.216528 | AA57: 33.96707877 | AB57: 0.1865268705 | AD57: ='Source Data'!P41 -> 1 | AE57: ='Source Data'!Q41 -> 578
A58: 35 | B58: ='Source Data'!N42 -> 1988 | C58: 1992 | D58: ='Source Data'!O42 -> 60 | F58: 1 | G58: 0 | H58: 0 | I58: 0 | J58: 0 | K58: 0 | L58: 0 | M58: 0 | N58: 0 | O58: 0 | P58: 0 | Q58: 0 | R58: 1 | S58: 0.6931471806 | U58: 29 | W58: 5.290821395 | X58: 5.290821395 | Z58: 43.02241031 | AA58: 106.2453461 | AB58: 0.3298885654 | AD58: ='Source Data'!P42 -> 1 | AE58: ='Source Data'!Q42 -> 29
A59: 36 | B59: ='Source Data'!N43 -> 1989 | C59: 1993 | D59: ='Source Data'!O43 -> 60 | F59: 0 | G59: 1 | H59: 0 | I59: 0 | J59: 0 | K59: 0 | L59: 0 | M59: 0 | N59: 0 | O59: 0 | P59: 0 | Q59: 0 | R59: 1 | S59: 0.6931471806 | U59: 85 | W59: 18.06497194 | X59: 18.06497194 | Z59: 227.922887 | AA59: 248.0102375 | AB59: 0.5040192326 | AD59: ='Source Data'!P43 -> 1 | AE59: ='Source Data'!Q43 -> 85
A60: 37 | B60: ='Source Data'!N44 -> 1990 | C60: 1994 | D60: ='Source Data'!O44 -> 60 | F60: 0 | G60: 0 | H60: 1 | I60: 0 | J60: 0 | K60: 0 | L60: 0 | M60: 0 | N60: 0 | O60: 0 | P60: 0 | Q60: 0 | R60: 1 | S60: 0.6931471806 | U60: 109 | W60: 47.52122202 | X60: 47.52122202 | Z60: 373.3470046 | AA60: 79.53583642 | AB60: 0.2854261312 | AD60: ='Source Data'!P44 -> 1 | AE60: ='Source Data'!Q44 -> 109
A61: 38 | B61: ='Source Data'!N45 -> 1991 | C61: 1995 | D61: ='Source Data'!O45 -> 60 | F61: 0 | G61: 0 | H61: 0 | I61: 1 | J61: 0 | K61: 0 | L61: 0 | M61: 0 | N61: 0 | O61: 0 | P61: 0 | Q61: 0 | R61: 1 | S61: 0.6931471806 | U61: 215 | W61: 61.18293472 | X61: 61.18293472 | Z61: 823.2987511 | AA61: 386.7040651 | AB61: 0.6293636753 | AD61: ='Source Data'!P45 -> 1 | AE61: ='Source Data'!Q45 -> 215
A62: 39 | B62: ='Source Data'!N46 -> 1992 | C62: 1996 | D62: ='Source Data'!O46 -> 60 | F62: 0 | G62: 0 | H62: 0 | I62: 0 | J62: 1 | K62: 0 | L62: 0 | M62: 0 | N62: 0 | O62: 0 | P62: 0 | Q62: 0 | R62: 1 | S62: 0.6931471806 | U62: -115 | W62: 134.1913914 | X62: 134.1913914 | Z62: -697.6071051 | AA62: 462.7446582 | AB62: -0.6884668151 | AD62: ='Source Data'!P46 -> 1 | AE62: ='Source Data'!Q46 -> -115
A63: 40 | B63: ='Source Data'!N47 -> 1993 | C63: 1997 | D63: ='Source Data'!O47 -> 60 | F63: 0 | G63: 0 | H63: 0 | I63: 0 | J63: 0 | K63: 1 | L63: 0 | M63: 0 | N63: 0 | O63: 0 | P63: 0 | Q63: 0 | R63: 1 | S63: 0.6931471806 | U63: 153 | W63: 148.7055874 | X63: 148.7055874 | Z63: 616.595582 | AA63: 0.1240167206 | AB63: 0.01127073987 | AD63: ='Source Data'!P47 -> 1 | AE63: ='Source Data'!Q47 -> 153
A64: 41 | B64: ='Source Data'!N48 -> 1988 | C64: 1993 | D64: ='Source Data'!O48 -> 72 | F64: =($B64=F$23)*1 -> 1 | G64: 0 | H64: 0 | I64: 0 | J64: 0 | K64: 0 | L64: 0 | M64: 0 | N64: 0 | O64: =($D64=O$23)*1 -> 0 | P64: 0 | Q64: 0 | R64: 1 | S64: 1.098612289 | U64: 20 | W64: 2.882171808 | X64: 2.882171808 | Z64: 18.28871039 | AA64: 101.6664035 | AB64: 0.3227015377 | AD64: ='Source Data'!P48 -> 1 | AE64: ='Source Data'!Q48 -> 20
A65: 42 | B65: ='Source Data'!N49 -> 1989 | C65: 1994 | D65: ='Source Data'!O49 -> 72 | F65: 0 | G65: 1 | H65: 0 | I65: 0 | J65: 0 | K65: 0 | L65: 0 | M65: 0 | N65: 0 | O65: 0 | P65: 0 | Q65: 0 | R65: 1 | S65: 1.098612289 | U65: 60 | W65: 9.840882718 | X65: 9.840882718 | Z65: 127.3518421 | AA65: 255.6617245 | AB65: 0.5117350473 | AD65: ='Source Data'!P49 -> 1 | AE65: ='Source Data'!Q49 -> 60
A66: 43 | B66: ='Source Data'!N50 -> 1990 | C66: 1995 | D66: ='Source Data'!O50 -> 72 | F66: 0 | G66: 0 | H66: 1 | I66: 0 | J66: 0 | K66: 0 | L66: 0 | M66: 0 | N66: 0 | O66: 0 | P66: 0 | Q66: 0 | R66: 1 | S66: 1.098612289 | U66: 6 | W66: 25.88715743 | X66: 25.88715743 | Z66: -6.36467547 | AA66: 15.27780838 | AB66: -0.1250958303 | AD66: ='Source Data'!P50 -> 1 | AE66: ='Source Data'!Q50 -> 6
A67: 44 | B67: ='Source Data'!N51 -> 1991 | C67: 1996 | D67: ='Source Data'!O51 -> 72 | F67: 0 | G67: 0 | H67: 0 | I67: 1 | J67: 0 | K67: 0 | L67: 0 | M67: 0 | N67: 0 | O67: 0 | P67: 0 | Q67: 0 | R67: 1 | S67: 1.098612289 | U67: 75 | W67: 33.3293673 | X67: 33.3293673 | Z67: 229.6535509 | AA67: 52.09944775 | AB67: 0.231008981 | AD67: ='Source Data'!P51 -> 1 | AE67: ='Source Data'!Q51 -> 75
A68: 45 | B68: ='Source Data'!N52 -> 1992 | C68: 1997 | D68: ='Source Data'!O52 -> 72 | F68: 0 | G68: 0 | H68: 0 | I68: 0 | J68: 1 | K68: 0 | L68: 0 | M68: 0 | N68: 0 | O68: 0 | P68: 0 | Q68: 0 | R68: 1 | S68: 1.098612289 | U68: 68 | W68: 73.10068066 | X68: 73.10068066 | Z68: 218.7442814 | AA68: 0.3559056213 | AB68: -0.01909324425 | AD68: ='Source Data'!P52 -> 1 | AE68: ='Source Data'!Q52 -> 68
A69: 46 | B69: ='Source Data'!N53 -> 1988 | C69: 1994 | D69: ='Source Data'!O53 -> 84 | F69: 1 | G69: 0 | H69: 0 | I69: 0 | J69: 0 | K69: 0 | L69: 0 | M69: 0 | N69: 0 | O69: 0 | P69: 0 | Q69: 0 | R69: 1 | S69: 1.386294361 | U69: -50 | W69: 1.873046209 | X69: 1.873046209 | Z69: -33.25135091 | AA69: 1436.597192 | AB69: -1.213053097 | AD69: ='Source Data'!P53 -> 1 | AE69: ='Source Data'!Q53 -> -50
A70: 47 | B70: ='Source Data'!N54 -> 1989 | C70: 1995 | D70: ='Source Data'!O54 -> 84 | F70: 0 | G70: 1 | H70: 0 | I70: 0 | J70: 0 | K70: 0 | L70: 0 | M70: 0 | N70: 0 | O70: 0 | P70: 0 | Q70: 0 | R70: 1 | S70: 1.386294361 | U70: 9 | W70: 6.395325918 | X70: 6.395325918 | Z70: 10.30478067 | AA70: 1.060825853 | AB70: 0.03296357849 | AD70: ='Source Data'!P54 -> 1 | AE70: ='Source Data'!Q54 -> 9
A71: 48 | B71: ='Source Data'!N55 -> 1990 | C71: 1996 | D71: ='Source Data'!O55 -> 84 | F71: 0 | G71: 0 | H71: 1 | I71: 0 | J71: 0 | K71: 0 | L71: 0 | M71: 0 | N71: 0 | O71: 0 | P71: 0 | Q71: 0 | R71: 1 | S71: 1.386294361 | U71: -97 | W71: 16.82336977 | X71: 16.82336977 | Z71: -290.6319606 | AA71: 770.1049005 | AB71: -0.8881518977 | AD71: ='Source Data'!P55 -> 1 | AE71: ='Source Data'!Q55 -> -97
A72: 49 | B72: ='Source Data'!N56 -> 1991 | C72: 1997 | D72: ='Source Data'!O56 -> 84 | F72: 0 | G72: 0 | H72: 0 | I72: 1 | J72: 0 | K72: 0 | L72: 0 | M72: 0 | N72: 0 | O72: 0 | P72: 0 | Q72: 0 | R72: 1 | S72: 1.386294361 | U72: 92 | W72: 21.6598625 | X72: 21.6598625 | Z72: 261.2825397 | AA72: 228.4287329 | AB72: 0.4837129003 | AD72: ='Source Data'!P56 -> 1 | AE72: ='Source Data'!Q56 -> 92
A73: 50 | B73: ='Source Data'!N57 -> 1988 | C73: 1995 | D73: ='Source Data'!O57 -> 96 | F73: 1 | G73: 0 | H73: 0 | I73: 0 | J73: 0 | K73: 0 | L73: 0 | M73: 0 | N73: 0 | O73: 0 | P73: 0 | Q73: 0 | R73: 1 | S73: 1.609437912 | U73: 0 | W73: 1.340809551 | X73: 1.340809551 | Z73: -1.340809551 | AA73: 1.340809551 | AB73: -0.03705918396 | AD73: ='Source Data'!P57 -> 1 | AE73: ='Source Data'!Q57 -> 0
A74: 51 | B74: ='Source Data'!N58 -> 1989 | C74: 1996 | D74: ='Source Data'!O58 -> 96 | F74: 0 | G74: 1 | H74: 0 | I74: 0 | J74: 0 | K74: 0 | L74: 0 | M74: 0 | N74: 0 | O74: 0 | P74: 0 | Q74: 0 | R74: 1 | S74: 1.609437912 | U74: -10 | W74: 4.578057942 | X74: 4.578057942 | Z74: -19.79080672 | AA74: 46.4213813 | AB74: -0.2180576534 | AD74: ='Source Data'!P58 -> 1 | AE74: ='Source Data'!Q58 -> -10
A75: 52 | B75: ='Source Data'!N59 -> 1990 | C75: 1997 | D75: ='Source Data'!O59 -> 96 | F75: 0 | G75: 0 | H75: 1 | I75: 0 | J75: 0 | K75: 0 | L75: 0 | M75: 0 | N75: 0 | O75: 0 | P75: 0 | Q75: 0 | R75: 1 | S75: 1.609437912 | U75: 18 | W75: 12.04291425 | X75: 12.04291425 | Z75: 32.74966199 | AA75: 2.946701268 | AB75: 0.05493895059 | AD75: ='Source Data'!P59 -> 1 | AE75: ='Source Data'!Q59 -> 18
A76: 53 | B76: ='Source Data'!N60 -> 1988 | C76: 1996 | D76: ='Source Data'!O60 -> 108 | F76: 1 | G76: 0 | H76: 0 | I76: 0 | J76: 0 | K76: 0 | L76: 0 | M76: 0 | N76: 0 | O76: 0 | P76: 0 | Q76: 0 | R76: 1 | S76: 1.791759469 | U76: 0 | W76: 1.020340808 | X76: 1.020340808 | Z76: -1.020340808 | AA76: 1.020340808 | AB76: -0.03232845373 | AD76: ='Source Data'!P60 -> 1 | AE76: ='Source Data'!Q60 -> 0
A77: 54 | B77: ='Source Data'!N61 -> 1989 | C77: 1997 | D77: ='Source Data'!O61 -> 108 | F77: 0 | G77: 1 | H77: 0 | I77: 0 | J77: 0 | K77: 0 | L77: 0 | M77: 0 | N77: 0 | O77: 0 | P77: 0 | Q77: 0 | R77: 1 | S77: 1.791759469 | U77: =AE77/AD77 -> 11 | W77: 3.48384999 | X77: 3.48384999 | Z77: 10.24566802 | AA77: 16.2155406 | AB77: 0.1288777723 | AD77: ='Source Data'!P61 -> 1 | AE77: ='Source Data'!Q61 -> 11
A78: 55 | B78: ='Source Data'!N62 -> 1988 | C78: 1997 | D78: ='Source Data'!O62 -> 120 | F78: 1 | G78: 0 | H78: 0 | I78: 0 | J78: 0 | K78: 0 | L78: 0 | M78: 0 | N78: 0 | O78: 0 | P78: 0 | Q78: 0 | R78: 1 | S78: 1.945910149 | U78: 0 | W78: 0.8099382718 | X78: 0.8099382718 | Z78: -0.8099382718 | AA78: 0.8099382718 | AB78: -0.02880303586 | AD78: ='Source Data'!P62 -> 1 | AE78: ='Source Data'!Q62 -> 0
B82: Inputs for Future Payments (lower right triangle)
A84: =A78+1 -> 56 | B84: ='Source Data'!N68 -> 1989 | C84: =B84+D84/12-1 -> 1998 | D84: ='Source Data'!O68 -> 120 | F84: =($B84=F$23)*1 -> 0 | G84: 1 | H84: 0 | I84: 0 | J84: 0 | K84: 0 | L84: 0 | M84: 0 | N84: 0 | O84: =($D84=O$23)*1 -> 0 | P84: 0 | Q84: 0 | R84: =($D84>=R$23)*1 -> 1 | S84: =LN(1+MAX($D84-R$23,0)/12) -> 1.945910149 | U84: =AE84/AD84 -> 13 | W84: =$AD84*X84 -> 2.765451914 | X84: =EXP(SUMPRODUCT($F$11:$S$11,$F84:$S84)) -> 2.765451914 | AD84: ='Source Data'!P68 -> 1 | AE84: =VLOOKUP(B84&"_"&D84,'Validation Data'!$N$5:$R$49,5,FALSE) -> 13
A85: =A84+1 -> 57 | B85: ='Source Data'!N69 -> 1990 | C85: 1999 | D85: ='Source Data'!O69 -> 120 | F85: 0 | G85: 0 | H85: 1 | I85: 0 | J85: 0 | K85: 0 | L85: 0 | M85: 0 | N85: 0 | O85: 0 | P85: 0 | Q85: 0 | R85: 1 | S85: 1.945910149 | U85: -7 | W85: 7.27472231 | X85: 7.27472231 | AD85: ='Source Data'!P69 -> 1 | AE85: =VLOOKUP(B85&"_"&D85,'Validation Data'!$N$5:$R$49,5,FALSE) -> -7
A86: 58 | B86: ='Source Data'!N70 -> 1990 | C86: 1998 | D86: ='Source Data'!O70 -> 108 | F86: 0 | G86: 0 | H86: 1 | I86: 0 | J86: 0 | K86: 0 | L86: 0 | M86: 0 | N86: 0 | O86: 0 | P86: 0 | Q86: 0 | R86: 1 | S86: 1.791759469 | U86: -19 | W86: 9.164520678 | X86: 9.164520678 | AD86: ='Source Data'!P70 -> 1 | AE86: =VLOOKUP(B86&"_"&D86,'Validation Data'!$N$5:$R$49,5,FALSE) -> -19
A87: 59 | B87: ='Source Data'!N71 -> 1991 | C87: 2000 | D87: ='Source Data'!O71 -> 120 | F87: 0 | G87: 0 | H87: 0 | I87: 1 | J87: 0 | K87: 0 | L87: 0 | M87: 0 | N87: 0 | O87: 0 | P87: 0 | Q87: 0 | R87: 1 | S87: 1.945910149 | U87: 5 | W87: 9.366107209 | X87: 9.366107209 | AD87: ='Source Data'!P71 -> 1 | AE87: =VLOOKUP(B87&"_"&D87,'Validation Data'!$N$5:$R$49,5,FALSE) -> 5
A88: 60 | B88: ='Source Data'!N72 -> 1991 | C88: 1999 | D88: ='Source Data'!O72 -> 108 | F88: 0 | G88: 0 | H88: 0 | I88: 1 | J88: 0 | K88: 0 | L88: 0 | M88: 0 | N88: 0 | O88: 0 | P88: 0 | Q88: 0 | R88: 1 | S88: 1.791759469 | U88: 14 | W88: 11.79919721 | X88: 11.79919721 | AD88: ='Source Data'!P72 -> 1 | AE88: =VLOOKUP(B88&"_"&D88,'Validation Data'!$N$5:$R$49,5,FALSE) -> 14
A89: 61 | B89: ='Source Data'!N73 -> 1991 | C89: 1998 | D89: ='Source Data'!O73 -> 96 | F89: 0 | G89: 0 | H89: 0 | I89: 1 | J89: 0 | K89: 0 | L89: 0 | M89: 0 | N89: 0 | O89: 0 | P89: 0 | Q89: 0 | R89: 1 | S89: 1.609437912 | U89: 11 | W89: 15.50509025 | X89: 15.50509025 | AD89: ='Source Data'!P73 -> 1 | AE89: =VLOOKUP(B89&"_"&D89,'Validation Data'!$N$5:$R$49,5,FALSE) -> 11
A90: 62 | B90: ='Source Data'!N74 -> 1992 | C90: 2001 | D90: ='Source Data'!O74 -> 120 | F90: 0 | G90: 0 | H90: 0 | I90: 0 | J90: 1 | K90: 0 | L90: 0 | M90: 0 | N90: 0 | O90: 0 | P90: 0 | Q90: 0 | R90: 1 | S90: 1.945910149 | U90: -22 | W90: 20.54250853 | X90: 20.54250853 | AD90: ='Source Data'!P74 -> 1 | AE90: =VLOOKUP(B90&"_"&D90,'Validation Data'!$N$5:$R$49,5,FALSE) -> -22
A91: 63 | B91: ='Source Data'!N75 -> 1992 | C91: 2000 | D91: ='Source Data'!O75 -> 108 | F91: 0 | G91: 0 | H91: 0 | I91: 0 | J91: 1 | K91: 0 | L91: 0 | M91: 0 | N91: 0 | O91: 0 | P91: 0 | Q91: 0 | R91: 1 | S91: 1.791759469 | U91: 60 | W91: 25.87895953 | X91: 25.87895953 | AD91: ='Source Data'!P75 -> 1 | AE91: =VLOOKUP(B91&"_"&D91,'Validation Data'!$N$5:$R$49,5,FALSE) -> 60
A92: 64 | B92: ='Source Data'!N76 -> 1992 | C92: 1999 | D92: ='Source Data'!O76 -> 96 | F92: 0 | G92: 0 | H92: 0 | I92: 0 | J92: 1 | K92: 0 | L92: 0 | M92: 0 | N92: 0 | O92: 0 | P92: 0 | Q92: 0 | R92: 1 | S92: 1.609437912 | U92: 172 | W92: 34.00702572 | X92: 34.00702572 | AD92: ='Source Data'!P76 -> 1 | AE92: =VLOOKUP(B92&"_"&D92,'Validation Data'!$N$5:$R$49,5,FALSE) -> 172
A93: 65 | B93: ='Source Data'!N77 -> 1992 | C93: 1998 | D93: ='Source Data'!O77 -> 84 | F93: 0 | G93: 0 | H93: 0 | I93: 0 | J93: 1 | K93: 0 | L93: 0 | M93: 0 | N93: 0 | O93: 0 | P93: 0 | Q93: 0 | R93: 1 | S93: 1.386294361 | U93: 25 | W93: 47.50617308 | X93: 47.50617308 | AD93: ='Source Data'!P77 -> 1 | AE93: =VLOOKUP(B93&"_"&D93,'Validation Data'!$N$5:$R$49,5,FALSE) -> 25
A94: 66 | B94: ='Source Data'!N78 -> 1993 | C94: 2002 | D94: ='Source Data'!O78 -> 120 | F94: =($B94=F$23)*1 -> 0 | G94: 0 | H94: 0 | I94: 0 | J94: 0 | K94: 1 | L94: 0 | M94: 0 | N94: 0 | O94: 0 | P94: 0 | Q94: 0 | R94: 1 | S94: 1.945910149 | U94: -11 | W94: 22.76439469 | X94: 22.76439469 | AD94: ='Source Data'!P78 -> 1 | AE94: =VLOOKUP(B94&"_"&D94,'Validation Data'!$N$5:$R$49,5,FALSE) -> -11
A95: 67 | B95: ='Source Data'!N79 -> 1993 | C95: 2001 | D95: ='Source Data'!O79 -> 108 | F95: 0 | G95: 0 | H95: 0 | I95: 0 | J95: 0 | K95: 1 | L95: 0 | M95: 0 | N95: 0 | O95: 0 | P95: 0 | Q95: 0 | R95: 1 | S95: 1.791759469 | U95: -6 | W95: 28.67803842 | X95: 28.67803842 | AD95: ='Source Data'!P79 -> 1 | AE95: =VLOOKUP(B95&"_"&D95,'Validation Data'!$N$5:$R$49,5,FALSE) -> -6
A96: 68 | B96: ='Source Data'!N80 -> 1993 | C96: 2000 | D96: ='Source Data'!O80 -> 96 | F96: 0 | G96: 0 | H96: 0 | I96: 0 | J96: 0 | K96: 1 | L96: 0 | M96: 0 | N96: 0 | O96: 0 | P96: 0 | Q96: 0 | R96: 1 | S96: 1.609437912 | U96: 32 | W96: 37.68523959 | X96: 37.68523959 | AD96: ='Source Data'!P80 -> 1 | AE96: =VLOOKUP(B96&"_"&D96,'Validation Data'!$N$5:$R$49,5,FALSE) -> 32
A97: 69 | B97: ='Source Data'!N81 -> 1993 | C97: 1999 | D97: ='Source Data'!O81 -> 84 | F97: 0 | G97: 0 | H97: 0 | I97: 0 | J97: 0 | K97: 1 | L97: 0 | M97: 0 | N97: 0 | O97: 0 | P97: 0 | Q97: 0 | R97: 1 | S97: 1.386294361 | U97: 29 | W97: 52.64446027 | X97: 52.64446027 | AD97: ='Source Data'!P81 -> 1 | AE97: =VLOOKUP(B97&"_"&D97,'Validation Data'!$N$5:$R$49,5,FALSE) -> 29
A98: 70 | B98: ='Source Data'!N82 -> 1993 | C98: 1998 | D98: ='Source Data'!O82 -> 72 | F98: 0 | G98: 0 | H98: 0 | I98: 0 | J98: 0 | K98: 1 | L98: 0 | M98: 0 | N98: 0 | O98: 0 | P98: 0 | Q98: 0 | R98: 1 | S98: 1.098612289 | U98: 78 | W98: 81.0072803 | X98: 81.0072803 | AD98: ='Source Data'!P82 -> 1 | AE98: =VLOOKUP(B98&"_"&D98,'Validation Data'!$N$5:$R$49,5,FALSE) -> 78
A99: 71 | B99: ='Source Data'!N83 -> 1994 | C99: 2003 | D99: ='Source Data'!O83 -> 120 | F99: 0 | G99: 0 | H99: 0 | I99: 0 | J99: 0 | K99: 0 | L99: 1 | M99: 0 | N99: 0 | O99: 0 | P99: 0 | Q99: 0 | R99: 1 | S99: 1.945910149 | U99: 1 | W99: 24.59559168 | X99: 24.59559168 | AD99: ='Source Data'!P83 -> 1 | AE99: =VLOOKUP(B99&"_"&D99,'Validation Data'!$N$5:$R$49,5,FALSE) -> 1
A100: 72 | B100: ='Source Data'!N84 -> 1994 | C100: 2002 | D100: ='Source Data'!O84 -> 108 | F100: 0 | G100: 0 | H100: 0 | I100: 0 | J100: 0 | K100: 0 | L100: 1 | M100: 0 | N100: 0 | O100: 0 | P100: 0 | Q100: 0 | R100: 1 | S100: 1.791759469 | U100: 84 | W100: 30.98493646 | X100: 30.98493646 | AD100: ='Source Data'!P84 -> 1 | AE100: =VLOOKUP(B100&"_"&D100,'Validation Data'!$N$5:$R$49,5,FALSE) -> 84
A101: 73 | B101: ='Source Data'!N85 -> 1994 | C101: 2001 | D101: ='Source Data'!O85 -> 96 | F101: 0 | G101: 0 | H101: 0 | I101: 0 | J101: 0 | K101: 0 | L101: 1 | M101: 0 | N101: 0 | O101: 0 | P101: 0 | Q101: 0 | R101: 1 | S101: 1.609437912 | U101: 47 | W101: 40.7166884 | X101: 40.7166884 | AD101: ='Source Data'!P85 -> 1 | AE101: =VLOOKUP(B101&"_"&D101,'Validation Data'!$N$5:$R$49,5,FALSE) -> 47
A102: 74 | B102: ='Source Data'!N86 -> 1994 | C102: 2000 | D102: ='Source Data'!O86 -> 84 | F102: 0 | G102: 0 | H102: 0 | I102: 0 | J102: 0 | K102: 0 | L102: 1 | M102: 0 | N102: 0 | O102: 0 | P102: 0 | Q102: 0 | R102: 1 | S102: 1.386294361 | U102: -96 | W102: 56.8792479 | X102: 56.8792479 | AD102: ='Source Data'!P86 -> 1 | AE102: =VLOOKUP(B102&"_"&D102,'Validation Data'!$N$5:$R$49,5,FALSE) -> -96
A103: 75 | B103: ='Source Data'!N87 -> 1994 | C103: 1999 | D103: ='Source Data'!O87 -> 72 | F103: 0 | G103: 0 | H103: 0 | I103: 0 | J103: 0 | K103: 0 | L103: 1 | M103: 0 | N103: 0 | O103: 0 | P103: 0 | Q103: 0 | R103: 1 | S103: 1.098612289 | U103: 143 | W103: 87.52360941 | X103: 87.52360941 | AD103: ='Source Data'!P87 -> 1 | AE103: =VLOOKUP(B103&"_"&D103,'Validation Data'!$N$5:$R$49,5,FALSE) -> 143
A104: 76 | B104: ='Source Data'!N88 -> 1994 | C104: 1998 | D104: ='Source Data'!O88 -> 60 | F104: =($B104=F$23)*1 -> 0 | G104: 0 | H104: 0 | I104: 0 | J104: 0 | K104: 0 | L104: 1 | M104: 0 | N104: 0 | O104: =($D104=O$23)*1 -> 0 | P104: 0 | Q104: 0 | R104: 1 | S104: 0.6931471806 | U104: 44 | W104: 160.6676548 | X104: 160.6676548 | AD104: ='Source Data'!P88 -> 1 | AE104: =VLOOKUP(B104&"_"&D104,'Validation Data'!$N$5:$R$49,5,FALSE) -> 44
A105: 77 | B105: ='Source Data'!N89 -> 1995 | C105: 2004 | D105: ='Source Data'!O89 -> 120 | F105: 0 | G105: 0 | H105: 0 | I105: 0 | J105: 0 | K105: 0 | L105: 0 | M105: 1 | N105: 0 | O105: 0 | P105: 0 | Q105: 0 | R105: 1 | S105: 1.945910149 | U105: 22 | W105: 22.4886074 | X105: 22.4886074 | AD105: ='Source Data'!P89 -> 1 | AE105: =VLOOKUP(B105&"_"&D105,'Validation Data'!$N$5:$R$49,5,FALSE) -> 22
A106: 78 | B106: ='Source Data'!N90 -> 1995 | C106: 2003 | D106: ='Source Data'!O90 -> 108 | F106: 0 | G106: 0 | H106: 0 | I106: 0 | J106: 0 | K106: 0 | L106: 0 | M106: 1 | N106: 0 | O106: 0 | P106: 0 | Q106: 0 | R106: 1 | S106: 1.791759469 | U106: 73 | W106: 28.3306082 | X106: 28.3306082 | AD106: ='Source Data'!P90 -> 1 | AE106: =VLOOKUP(B106&"_"&D106,'Validation Data'!$N$5:$R$49,5,FALSE) -> 73
A107: 79 | B107: ='Source Data'!N91 -> 1995 | C107: 2002 | D107: ='Source Data'!O91 -> 96 | F107: 0 | G107: 0 | H107: 0 | I107: 0 | J107: 0 | K107: 0 | L107: 0 | M107: 1 | N107: 0 | O107: 0 | P107: 0 | Q107: 0 | R107: 1 | S107: 1.609437912 | U107: 67 | W107: 37.22868845 | X107: 37.22868845 | AD107: ='Source Data'!P91 -> 1 | AE107: =VLOOKUP(B107&"_"&D107,'Validation Data'!$N$5:$R$49,5,FALSE) -> 67
A108: 80 | B108: ='Source Data'!N92 -> 1995 | C108: 2001 | D108: ='Source Data'!O92 -> 84 | F108: 0 | G108: 0 | H108: 0 | I108: 0 | J108: 0 | K108: 0 | L108: 0 | M108: 1 | N108: 0 | O108: 0 | P108: 0 | Q108: 0 | R108: 1 | S108: 1.386294361 | U108: 46 | W108: 52.00668038 | X108: 52.00668038 | AD108: ='Source Data'!P92 -> 1 | AE108: =VLOOKUP(B108&"_"&D108,'Validation Data'!$N$5:$R$49,5,FALSE) -> 46
A109: 81 | B109: ='Source Data'!N93 -> 1995 | C109: 2000 | D109: ='Source Data'!O93 -> 72 | F109: 0 | G109: 0 | H109: 0 | I109: 0 | J109: 0 | K109: 0 | L109: 0 | M109: 1 | N109: 0 | O109: 0 | P109: 0 | Q109: 0 | R109: 1 | S109: 1.098612289 | U109: 27 | W109: 80.02588902 | X109: 80.02588902 | AD109: ='Source Data'!P93 -> 1 | AE109: =VLOOKUP(B109&"_"&D109,'Validation Data'!$N$5:$R$49,5,FALSE) -> 27
A110: 82 | B110: ='Source Data'!N94 -> 1995 | C110: 1999 | D110: ='Source Data'!O94 -> 60 | F110: 0 | G110: 0 | H110: 0 | I110: 0 | J110: 0 | K110: 0 | L110: 0 | M110: 1 | N110: 0 | O110: 0 | P110: 0 | Q110: 0 | R110: 1 | S110: 0.6931471806 | U110: -49 | W110: 146.9040411 | X110: 146.9040411 | AD110: ='Source Data'!P94 -> 1 | AE110: =VLOOKUP(B110&"_"&D110,'Validation Data'!$N$5:$R$49,5,FALSE) -> -49
A111: 83 | B111: ='Source Data'!N95 -> 1995 | C111: 1998 | D111: ='Source Data'!O95 -> 48 | F111: 0 | G111: 0 | H111: 0 | I111: 0 | J111: 0 | K111: 0 | L111: 0 | M111: 1 | N111: 0 | O111: 0 | P111: 0 | Q111: 0 | R111: 1 | S111: 0 | U111: 399 | W111: 414.9620229 | X111: 414.9620229 | AD111: ='Source Data'!P95 -> 1 | AE111: =VLOOKUP(B111&"_"&D111,'Validation Data'!$N$5:$R$49,5,FALSE) -> 399
A112: 84 | B112: ='Source Data'!N96 -> 1996 | C112: 2005 | D112: ='Source Data'!O96 -> 120 | F112: 0 | G112: 0 | H112: 0 | I112: 0 | J112: 0 | K112: 0 | L112: 0 | M112: 0 | N112: 1 | O112: 0 | P112: 0 | Q112: 0 | R112: 1 | S112: 1.945910149 | U112: 32 | W112: 24.4852542 | X112: 24.4852542 | AD112: ='Source Data'!P96 -> 1 | AE112: =VLOOKUP(B112&"_"&D112,'Validation Data'!$N$5:$R$49,5,FALSE) -> 32
A113: 85 | B113: ='Source Data'!N97 -> 1996 | C113: 2004 | D113: ='Source Data'!O97 -> 108 | F113: 0 | G113: 0 | H113: 0 | I113: 0 | J113: 0 | K113: 0 | L113: 0 | M113: 0 | N113: 1 | O113: 0 | P113: 0 | Q113: 0 | R113: 1 | S113: 1.791759469 | U113: 184 | W113: 30.84593595 | X113: 30.84593595 | AD113: ='Source Data'!P97 -> 1 | AE113: =VLOOKUP(B113&"_"&D113,'Validation Data'!$N$5:$R$49,5,FALSE) -> 184
A114: 86 | B114: ='Source Data'!N98 -> 1996 | C114: 2003 | D114: ='Source Data'!O98 -> 96 | F114: =($B114=F$23)*1 -> 0 | G114: 0 | H114: 0 | I114: 0 | J114: 0 | K114: 0 | L114: 0 | M114: 0 | N114: 1 | O114: 0 | P114: 0 | Q114: 0 | R114: 1 | S114: 1.609437912 | U114: 102 | W114: 40.53403059 | X114: 40.53403059 | AD114: ='Source Data'!P98 -> 1 | AE114: =VLOOKUP(B114&"_"&D114,'Validation Data'!$N$5:$R$49,5,FALSE) -> 102
A115: 87 | B115: ='Source Data'!N99 -> 1996 | C115: 2002 | D115: ='Source Data'!O99 -> 84 | F115: 0 | G115: 0 | H115: 0 | I115: 0 | J115: 0 | K115: 0 | L115: 0 | M115: 0 | N115: 1 | O115: 0 | P115: 0 | Q115: 0 | R115: 1 | S115: 1.386294361 | U115: 227 | W115: 56.62408376 | X115: 56.62408376 | AD115: ='Source Data'!P99 -> 1 | AE115: =VLOOKUP(B115&"_"&D115,'Validation Data'!$N$5:$R$49,5,FALSE) -> 227
A116: 88 | B116: ='Source Data'!N100 -> 1996 | C116: 2001 | D116: ='Source Data'!O100 -> 72 | F116: 0 | G116: 0 | H116: 0 | I116: 0 | J116: 0 | K116: 0 | L116: 0 | M116: 0 | N116: 1 | O116: 0 | P116: 0 | Q116: 0 | R116: 1 | S116: 1.098612289 | U116: 331 | W116: 87.1309726 | X116: 87.1309726 | AD116: ='Source Data'!P100 -> 1 | AE116: =VLOOKUP(B116&"_"&D116,'Validation Data'!$N$5:$R$49,5,FALSE) -> 331
A117: 89 | B117: ='Source Data'!N101 -> 1996 | C117: 2000 | D117: ='Source Data'!O101 -> 60 | F117: 0 | G117: 0 | H117: 0 | I117: 0 | J117: 0 | K117: 0 | L117: 0 | M117: 0 | N117: 1 | O117: 0 | P117: 0 | Q117: 0 | R117: 1 | S117: 0.6931471806 | U117: 463 | W117: 159.9468889 | X117: 159.9468889 | AD117: ='Source Data'!P101 -> 1 | AE117: =VLOOKUP(B117&"_"&D117,'Validation Data'!$N$5:$R$49,5,FALSE) -> 463
A118: 90 | B118: ='Source Data'!N102 -> 1996 | C118: 1999 | D118: ='Source Data'!O102 -> 48 | F118: 0 | G118: 0 | H118: 0 | I118: 0 | J118: 0 | K118: 0 | L118: 0 | M118: 0 | N118: 1 | O118: 0 | P118: 0 | Q118: 0 | R118: 1 | S118: 0 | U118: 337 | W118: 451.8043485 | X118: 451.8043485 | AD118: ='Source Data'!P102 -> 1 | AE118: =VLOOKUP(B118&"_"&D118,'Validation Data'!$N$5:$R$49,5,FALSE) -> 337
A119: 91 | B119: ='Source Data'!N103 -> 1996 | C119: 1998 | D119: ='Source Data'!O103 -> 36 | F119: 0 | G119: 0 | H119: 0 | I119: 0 | J119: 0 | K119: 0 | L119: 0 | M119: 0 | N119: 1 | O119: 0 | P119: 0 | Q119: 1 | R119: 0 | S119: 0 | U119: 948 | W119: 588.8468773 | X119: 588.8468773 | AD119: ='Source Data'!P103 -> 1 | AE119: =VLOOKUP(B119&"_"&D119,'Validation Data'!$N$5:$R$49,5,FALSE) -> 948
A120: 92 | B120: ='Source Data'!N104 -> 1997 | C120: 2006 | D120: ='Source Data'!O104 -> 120 | F120: 0 | G120: 0 | H120: 0 | I120: 0 | J120: 0 | K120: 0 | L120: 0 | M120: 0 | N120: 0 | O120: 0 | P120: 0 | Q120: 0 | R120: 1 | S120: 1.945910149 | U120: 309 | W120: 31.06526656 | X120: 31.06526656 | AD120: ='Source Data'!P104 -> 1 | AE120: =VLOOKUP(B120&"_"&D120,'Validation Data'!$N$5:$R$49,5,FALSE) -> 309
A121: 93 | B121: ='Source Data'!N105 -> 1997 | C121: 2005 | D121: ='Source Data'!O105 -> 108 | F121: 0 | G121: 0 | H121: 0 | I121: 0 | J121: 0 | K121: 0 | L121: 0 | M121: 0 | N121: 0 | O121: 0 | P121: 0 | Q121: 0 | R121: 1 | S121: 1.791759469 | U121: 473 | W121: 39.1352777 | X121: 39.1352777 | AD121: ='Source Data'!P105 -> 1 | AE121: =VLOOKUP(B121&"_"&D121,'Validation Data'!$N$5:$R$49,5,FALSE) -> 473
A122: 94 | B122: ='Source Data'!N106 -> 1997 | C122: 2004 | D122: ='Source Data'!O106 -> 96 | F122: 0 | G122: 0 | H122: 0 | I122: 0 | J122: 0 | K122: 0 | L122: 0 | M122: 0 | N122: 0 | O122: 0 | P122: 0 | Q122: 0 | R122: 1 | S122: 1.609437912 | U122: 517 | W122: 51.42688962 | X122: 51.42688962 | AD122: ='Source Data'!P106 -> 1 | AE122: =VLOOKUP(B122&"_"&D122,'Validation Data'!$N$5:$R$49,5,FALSE) -> 517
A123: 95 | B123: ='Source Data'!N107 -> 1997 | C123: 2003 | D123: ='Source Data'!O107 -> 84 | F123: 0 | G123: 0 | H123: 0 | I123: 0 | J123: 0 | K123: 0 | L123: 0 | M123: 0 | N123: 0 | O123: 0 | P123: 0 | Q123: 0 | R123: 1 | S123: 1.386294361 | U123: 496 | W123: 71.84088193 | X123: 71.84088193 | AD123: ='Source Data'!P107 -> 1 | AE123: =VLOOKUP(B123&"_"&D123,'Validation Data'!$N$5:$R$49,5,FALSE) -> 496
A124: 96 | B124: ='Source Data'!N108 -> 1997 | C124: 2002 | D124: ='Source Data'!O108 -> 72 | F124: 0 | G124: 0 | H124: 0 | I124: 0 | J124: 0 | K124: 0 | L124: 0 | M124: 0 | N124: 0 | O124: 0 | P124: 0 | Q124: 0 | R124: 1 | S124: 1.098612289 | U124: 368 | W124: 110.5459991 | X124: 110.5459991 | AD124: ='Source Data'!P108 -> 1 | AE124: =VLOOKUP(B124&"_"&D124,'Validation Data'!$N$5:$R$49,5,FALSE) -> 368
A125: 97 | B125: ='Source Data'!N109 -> 1997 | C125: 2001 | D125: ='Source Data'!O109 -> 60 | F125: 0 | G125: 0 | H125: 0 | I125: 0 | J125: 0 | K125: 0 | L125: 0 | M125: 0 | N125: 0 | O125: 0 | P125: 0 | Q125: 0 | R125: 1 | S125: 0.6931471806 | U125: 898 | W125: 202.9300043 | X125: 202.9300043 | AD125: ='Source Data'!P109 -> 1 | AE125: =VLOOKUP(B125&"_"&D125,'Validation Data'!$N$5:$R$49,5,FALSE) -> 898
A126: 98 | B126: ='Source Data'!N110 -> 1997 | C126: 2000 | D126: ='Source Data'!O110 -> 48 | F126: 0 | G126: 0 | H126: 0 | I126: 0 | J126: 0 | K126: 0 | L126: 0 | M126: 0 | N126: 0 | O126: 0 | P126: 0 | Q126: 0 | R126: 1 | S126: 0 | U126: 1008 | W126: 573.2193918 | X126: 573.2193918 | AD126: ='Source Data'!P110 -> 1 | AE126: =VLOOKUP(B126&"_"&D126,'Validation Data'!$N$5:$R$49,5,FALSE) -> 1008
A127: 99 | B127: ='Source Data'!N111 -> 1997 | C127: 1999 | D127: ='Source Data'!O111 -> 36 | F127: 0 | G127: 0 | H127: 0 | I127: 0 | J127: 0 | K127: 0 | L127: 0 | M127: 0 | N127: 0 | O127: 0 | P127: 0 | Q127: 1 | R127: 0 | S127: 0 | U127: 2034 | W127: 747.0898631 | X127: 747.0898631 | AD127: ='Source Data'!P111 -> 1 | AE127: =VLOOKUP(B127&"_"&D127,'Validation Data'!$N$5:$R$49,5,FALSE) -> 2034
A128: 100 | B128: ='Source Data'!N112 -> 1997 | C128: 1998 | D128: ='Source Data'!O112 -> 24 | F128: 0 | G128: 0 | H128: 0 | I128: 0 | J128: 0 | K128: 0 | L128: 0 | M128: 0 | N128: 0 | O128: 0 | P128: 1 | Q128: 0 | R128: 0 | S128: 0 | U128: 6512 | W128: 6177.061788 | X128: 6177.061788 | AD128: ='Source Data'!P112 -> 1 | AE128: =VLOOKUP(B128&"_"&D128,'Validation Data'!$N$5:$R$49,5,FALSE) -> 6512

Sheet Fitted Triangle - Expon
C2: Example to Illustrate the Fitted Triangle with Exponential Decay
B5: Fitted Incremental Triangle
B6: ="0-"&TEXT(B19,"#") -> 0-12 | C6: =TEXT(B19,"#")&"-"&TEXT(C19,"#") -> 12-24 | D6: 24-36 | E6: 36-48 | F6: 48-60 | G6: 60-72 | H6: 72-84 | I6: 84-96 | J6: 96-108 | K6: 108-120
A7: ='Source Data'!A8 -> 1988 | B7: ='GLM Calculation - Expon Decay'!W24 -> 373.9826327 | C7: ='GLM Calculation - Expon Decay'!W34 -> 161.7726772 | D7: ='GLM Calculation - Expon Decay'!W43 -> 19.56573066 | E7: ='GLM Calculation - Expon Decay'!W51 -> 14.6894407 | F7: ='GLM Calculation - Expon Decay'!W58 -> 6.309120914 | G7: ='GLM Calculation - Expon Decay'!W64 -> 2.709770067 | H7: ='GLM Calculation - Expon Decay'!W69 -> 1.163847375 | I7: ='GLM Calculation - Expon Decay'!W73 -> 0.4998729335 | J7: ='GLM Calculation - Expon Decay'!W76 -> 0.2146956336 | K7: ='GLM Calculation - Expon Decay'!W78 -> 0.09221186428
A8: ='Source Data'!A9 -> 1989 | B8: ='GLM Calculation - Expon Decay'!W25 -> 1275.348016 | C8: ='GLM Calculation - Expon Decay'!W35 -> 551.6739145 | D8: ='GLM Calculation - Expon Decay'!W44 -> 66.72265931 | E8: ='GLM Calculation - Expon Decay'!W52 -> 50.09363383 | F8: ='GLM Calculation - Expon Decay'!W59 -> 21.51523665 | G8: ='GLM Calculation - Expon Decay'!W65 -> 9.240803122 | H8: ='GLM Calculation - Expon Decay'!W70 -> 3.968928799 | I8: ='GLM Calculation - Expon Decay'!W74 -> 1.704656576 | J8: ='GLM Calculation - Expon Decay'!W77 -> 0.7321507112
A9: ='Source Data'!A10 -> 1990 | B9: ='GLM Calculation - Expon Decay'!W26 -> 3350.23385 | C9: ='GLM Calculation - Expon Decay'!W36 -> 1449.201786 | D9: ='GLM Calculation - Expon Decay'!W45 -> 175.2749124 | E9: ='GLM Calculation - Expon Decay'!W53 -> 131.5918366 | F9: ='GLM Calculation - Expon Decay'!W60 -> 56.51874875 | G9: ='GLM Calculation - Expon Decay'!W66 -> 24.27482619 | H9: ='GLM Calculation - Expon Decay'!W71 -> 10.42604798 | I9: ='GLM Calculation - Expon Decay'!W75 -> 4.477991961
A10: ='Source Data'!A11 -> 1991 | B10: ='GLM Calculation - Expon Decay'!W27 -> 4307.102991 | C10: ='GLM Calculation - Expon Decay'!W37 -> 1863.112136 | D10: ='GLM Calculation - Expon Decay'!W46 -> 225.3356431 | E10: ='GLM Calculation - Expon Decay'!W54 -> 169.1761287 | F10: ='GLM Calculation - Expon Decay'!W61 -> 72.6612179 | G10: ='GLM Calculation - Expon Decay'!W67 -> 31.20802342 | H10: ='GLM Calculation - Expon Decay'!W72 -> 13.40385909
A11: ='Source Data'!A12 -> 1992 | B11: ='GLM Calculation - Expon Decay'!W28 -> 9434.993388 | C11: ='GLM Calculation - Expon Decay'!W38 -> 4081.270107 | D11: ='GLM Calculation - Expon Decay'!W47 -> 493.6125993 | E11: ='GLM Calculation - Expon Decay'!W55 -> 370.5914761 | F11: ='GLM Calculation - Expon Decay'!W62 -> 159.1691937 | G11: ='GLM Calculation - Expon Decay'!W68 -> 68.36323516
A12: ='Source Data'!A13 -> 1993 | B12: ='GLM Calculation - Expon Decay'!W29 -> 10452.07944 | C12: ='GLM Calculation - Expon Decay'!W39 -> 4521.228328 | D12: ='GLM Calculation - Expon Decay'!W48 -> 546.8237114 | E12: ='GLM Calculation - Expon Decay'!W56 -> 410.5409924 | F12: ='GLM Calculation - Expon Decay'!W63 -> 176.3275276
A13: ='Source Data'!A14 -> 1994 | B13: ='GLM Calculation - Expon Decay'!W30 -> 11312.43857 | C13: ='GLM Calculation - Expon Decay'!W40 -> 4893.391598 | D13: ='GLM Calculation - Expon Decay'!W49 -> 591.8353069 | E13: ='GLM Calculation - Expon Decay'!W57 -> 444.3345253
A14: ='Source Data'!A15 -> 1995 | B14: ='GLM Calculation - Expon Decay'!W31 -> 10337.50388 | C14: ='GLM Calculation - Expon Decay'!W41 -> 4471.666682 | D14: ='GLM Calculation - Expon Decay'!W50 -> 540.8294369
A15: ='Source Data'!A16 -> 1996 | B15: ='GLM Calculation - Expon Decay'!W32 -> 11255.31723 | C15: ='GLM Calculation - Expon Decay'!W42 -> 4868.682771
A16: ='Source Data'!A17 -> 1997 | B16: ='GLM Calculation - Expon Decay'!W33 -> 14280
B18: Fitted Cumulative Triangle
B19: 12 | C19: =B19+12 -> 24 | D19: =C19+12 -> 36 | E19: 48 | F19: 60 | G19: 72 | H19: 84 | I19: 96 | J19: 108 | K19: 120
A20: =A7 -> 1988 | B20: =B7 -> 373.9826327 | C20: =B20+C7 -> 535.7553098 | D20: 555.3210405 | E20: 570.0104812 | F20: 576.3196021 | G20: 579.0293722 | H20: 580.1932196 | I20: 580.6930925 | J20: 580.9077881 | K20: 581
A21: =A8 -> 1989 | B21: 1275.348016 | C21: 1827.021931 | D21: 1893.74459 | E21: 1943.838224 | F21: 1965.353461 | G21: 1974.594264 | H21: 1978.563193 | I21: 1980.267849 | J21: 1981
A22: 1990 | B22: 3350.23385 | C22: 4799.435636 | D22: 4974.710549 | E22: 5106.302385 | F22: 5162.821134 | G22: 5187.09596 | H22: 5197.522008 | I22: 5202
A23: 1991 | B23: 4307.102991 | C23: 6170.215128 | D23: 6395.550771 | E23: 6564.7269 | F23: 6637.388117 | G23: 6668.596141 | H23: 6682
A24: 1992 | B24: 9434.993388 | C24: 13516.2635 | D24: 14009.87609 | E24: 14380.46757 | F24: 14539.63676 | G24: 14608
A25: 1993 | B25: 10452.07944 | C25: 14973.30777 | D25: 15520.13148 | E25: 15930.67247 | F25: 16107
A26: 1994 | B26: 11312.43857 | C26: 16205.83017 | D26: 16797.66547 | E26: 17242
A27: 1995 | B27: 10337.50388 | C27: 14809.17056 | D27: 15350
A28: 1996 | B28: 11255.31723 | C28: =B28+C15 -> 16124
A29: 1997 | B29: 14280
C32: Age-to-Age Factors
A33: =A20 -> 1988 | B33: =C20/B20 -> 1.432567352 | C33: 1.036519901 | D33: 1.026452159 | E33: 1.01106843 | F33: 1.004701853 | G33: 1.002009997 | H33: 1.000861563 | I33: 1.000369723 | J33: 1.000158738
A34: =A21 -> 1989 | B34: 1.432567352 | C34: 1.036519901 | D34: 1.026452159 | E34: 1.01106843 | F34: 1.004701853 | G34: 1.002009997 | H34: 1.000861563 | I34: 1.000369723
A35: 1990 | B35: 1.432567352 | C35: 1.036519901 | D35: 1.026452159 | E35: 1.01106843 | F35: 1.004701853 | G35: 1.002009997 | H35: 1.000861563
A36: 1991 | B36: 1.432567352 | C36: 1.036519901 | D36: 1.026452159 | E36: 1.01106843 | F36: 1.004701853 | G36: 1.002009997
A37: 1992 | B37: =C24/B24 -> 1.432567352 | C37: =D24/C24 -> 1.036519901 | D37: =E24/D24 -> 1.026452159 | E37: =F24/E24 -> 1.01106843 | F37: =G24/F24 -> 1.004701853
A38: 1993 | B38: =C25/B25 -> 1.432567352 | C38: =D25/C25 -> 1.036519901 | D38: =E25/D25 -> 1.026452159 | E38: =F25/E25 -> 1.01106843
A39: 1994 | B39: =C26/B26 -> 1.432567352 | C39: =D26/C26 -> 1.036519901 | D39: =E26/D26 -> 1.026452159
A40: 1995 | B40: =C27/B27 -> 1.432567352 | C40: =D27/C27 -> 1.036519901
A41: 1996 | B41: =C28/B28 -> 1.432567352
A43: ATA | B43: =SUM(C$20:C28)/SUM(B$20:B28) -> 1.432567352 | C43: =SUM(D$20:D27)/SUM(C$20:C27) -> 1.036519901 | D43: =SUM(E$20:E26)/SUM(D$20:D26) -> 1.026452159 | E43: =SUM(F$20:F25)/SUM(E$20:E25) -> 1.01106843 | F43: =SUM(G$20:G24)/SUM(F$20:F24) -> 1.004701853 | G43: =SUM(H$20:H23)/SUM(G$20:G23) -> 1.002009997 | H43: =SUM(I$20:I22)/SUM(H$20:H22) -> 1.000861563 | I43: =SUM(J$20:J21)/SUM(I$20:I21) -> 1.000369723 | J43: =SUM(K$20:K20)/SUM(J$20:J20) -> 1.000158738
A44: LDF | B44: =B43*C44 -> 1.553548077 | C44: 1.084450288 | D44: 1.046241647 | E44: 1.019279503 | F44: 1.008121185 | G44: 1.00340333 | H44: 1.001390538 | I44: 1.000528519 | J44: =J43*K44 -> 1.000158738 | K44: 1
A45: Increm | B45: =1/B44 -> 0.6436878359 | C45: =1/C44-1/B44 -> 0.2784383428 | D45: =1/D44-1/C44 -> 0.03367595639 | E45: 0.02528303047 | F45: 0.01085907214 | G45: 0.004663976019 | H45: 0.002003179647 | I45: 0.0008603664948 | J45: 0.0003695277687 | K45: 0.000158712331
J47: Tail for next 8 years: | K47: =1+SUM(L52:S52) -> 1.000068276
D49: 1 | E49: =D49+1 -> 2 | F49: =E49+1 -> 3 | G49: 4 | H49: 5 | I49: 6 | J49: 7 | K49: 8 | L49: 9 | M49: 10 | N49: 11 | O49: 12 | P49: 13 | Q49: 14 | R49: 15 | S49: 16
D50: ='GLM Calculation - Expon Decay'!S10 -> 0.4295004175
D51: =$D$50^(D49-1) -> 1 | E51: =$D$50^(E49-1) -> 0.4295004175 | F51: 0.1844706086 | G51: 0.07923020343 | H51: 0.03402940545 | I51: 0.01461564385 | J51: 0.006277425135 | K51: 0.002696156717 | L51: 0.001158000435 | M51: 0.0004973616705 | N51: 0.0002136170451 | O51: 9.174861007e-05 | P51: 3.940606633e-05 | Q51: 1.692492194e-05 | R51: 7.26926104e-06 | S51: 3.122150652e-06
D52: =$D$45*D51 -> 0.03367595639 | E52: =$D$45*E51 -> 0.01446383733 | F52: 0.006212224171 | G52: 0.002668152875 | H52: 0.001145972774 | I52: 0.0004921957849 | J52: 0.0002113982951 | K52: 9.0795656e-05 | L52: 3.899677216e-05 | M52: 1.674912992e-05 | N52: 7.193758296e-06 | O52: 3.089722191e-06 | P52: 1.327036971e-06 | Q52: 5.699629332e-07 | R52: 2.447993178e-07 | S52: 1.051414092e-07

Sheet Fitted Triangle - Pareto
C2: Example to Illustrate the Fitted Triangle from the Pareto (Inverse Power) Curve
B5: Fitted Incremental Triangle
B6: ="0-"&TEXT(B19,"#") -> 0-12 | C6: =TEXT(B19,"#")&"-"&TEXT(C19,"#") -> 12-24 | D6: 24-36 | E6: 36-48 | F6: 48-60 | G6: 60-72 | H6: 72-84 | I6: 84-96 | J6: 96-108 | K6: 108-120
A7: ='Source Data'!A8 -> 1988 | B7: ='GLM Calculation - Smooth w Log'!W24 -> 372.3102938 | C7: ='GLM Calculation - Smooth w Log'!W34 -> 161.049278 | D7: ='GLM Calculation - Smooth w Log'!W43 -> 19.47823855 | E7: ='GLM Calculation - Smooth w Log'!W51 -> 14.94506164 | F7: ='GLM Calculation - Smooth w Log'!W58 -> 5.290821395 | G7: ='GLM Calculation - Smooth w Log'!W64 -> 2.882171808 | H7: ='GLM Calculation - Smooth w Log'!W69 -> 1.873046209 | I7: ='GLM Calculation - Smooth w Log'!W73 -> 1.340809551 | J7: ='GLM Calculation - Smooth w Log'!W76 -> 1.020340808 | K7: ='GLM Calculation - Smooth w Log'!W78 -> 0.8099382718
A8: ='Source Data'!A9 -> 1989 | B8: ='GLM Calculation - Smooth w Log'!W25 -> 1271.21566 | C8: ='GLM Calculation - Smooth w Log'!W35 -> 549.8863919 | D8: ='GLM Calculation - Smooth w Log'!W44 -> 66.5064659 | E8: ='GLM Calculation - Smooth w Log'!W52 -> 51.02839406 | F8: ='GLM Calculation - Smooth w Log'!W59 -> 18.06497194 | G8: ='GLM Calculation - Smooth w Log'!W65 -> 9.840882718 | H8: ='GLM Calculation - Smooth w Log'!W70 -> 6.395325918 | I8: ='GLM Calculation - Smooth w Log'!W74 -> 4.578057942 | J8: ='GLM Calculation - Smooth w Log'!W77 -> 3.48384999
A9: ='Source Data'!A10 -> 1990 | B9: ='GLM Calculation - Smooth w Log'!W26 -> 3344.025211 | C9: ='GLM Calculation - Smooth w Log'!W36 -> 1446.516131 | D9: ='GLM Calculation - Smooth w Log'!W45 -> 174.9500936 | E9: ='GLM Calculation - Smooth w Log'!W53 -> 134.2339004 | F9: ='GLM Calculation - Smooth w Log'!W60 -> 47.52122202 | G9: ='GLM Calculation - Smooth w Log'!W66 -> 25.88715743 | H9: ='GLM Calculation - Smooth w Log'!W71 -> 16.82336977 | I9: ='GLM Calculation - Smooth w Log'!W75 -> 12.04291425
A10: ='Source Data'!A11 -> 1991 | B10: ='GLM Calculation - Smooth w Log'!W27 -> 4305.387519 | C10: ='GLM Calculation - Smooth w Log'!W37 -> 1862.370079 | D10: ='GLM Calculation - Smooth w Log'!W46 -> 225.2458944 | E10: ='GLM Calculation - Smooth w Log'!W54 -> 172.8243428 | F10: ='GLM Calculation - Smooth w Log'!W61 -> 61.18293472 | G10: ='GLM Calculation - Smooth w Log'!W67 -> 33.3293673 | H10: ='GLM Calculation - Smooth w Log'!W72 -> 21.6598625
A11: ='Source Data'!A12 -> 1992 | B11: ='GLM Calculation - Smooth w Log'!W28 -> 9442.926274 | C11: ='GLM Calculation - Smooth w Log'!W38 -> 4084.701615 | D11: ='GLM Calculation - Smooth w Log'!W47 -> 494.0276259 | E11: ='GLM Calculation - Smooth w Log'!W55 -> 379.0524129 | F11: ='GLM Calculation - Smooth w Log'!W62 -> 134.1913914 | G11: ='GLM Calculation - Smooth w Log'!W68 -> 73.10068066
A12: ='Source Data'!A13 -> 1993 | B12: ='GLM Calculation - Smooth w Log'!W29 -> 10464.27706 | C12: ='GLM Calculation - Smooth w Log'!W39 -> 4526.504619 | D12: ='GLM Calculation - Smooth w Log'!W48 -> 547.4618568 | E12: ='GLM Calculation - Smooth w Log'!W56 -> 420.0508775 | F12: ='GLM Calculation - Smooth w Log'!W63 -> 148.7055874
A13: ='Source Data'!A14 -> 1994 | B13: ='GLM Calculation - Smooth w Log'!W30 -> 11306.03687 | C13: ='GLM Calculation - Smooth w Log'!W40 -> 4890.622433 | D13: ='GLM Calculation - Smooth w Log'!W49 -> 591.5003879 | E13: ='GLM Calculation - Smooth w Log'!W57 -> 453.8403067
A14: ='Source Data'!A15 -> 1995 | B14: ='GLM Calculation - Smooth w Log'!W31 -> 10337.50388 | C14: ='GLM Calculation - Smooth w Log'!W41 -> 4471.666682 | D14: ='GLM Calculation - Smooth w Log'!W50 -> 540.8294369
A15: ='Source Data'!A16 -> 1996 | B15: ='GLM Calculation - Smooth w Log'!W32 -> 11255.31723 | C15: ='GLM Calculation - Smooth w Log'!W42 -> 4868.682771
A16: ='Source Data'!A17 -> 1997 | B16: ='GLM Calculation - Smooth w Log'!W33 -> 14280
B18: Fitted Cumulative Triangle
B19: 12 | C19: =B19+12 -> 24 | D19: =C19+12 -> 36 | E19: 48 | F19: 60 | G19: 72 | H19: 84 | I19: 96 | J19: 108 | K19: 120
A20: =A7 -> 1988 | B20: =B7 -> 372.3102938 | C20: =B20+C7 -> 533.3595718 | D20: 552.8378103 | E20: 567.782872 | F20: 573.0736934 | G20: 575.9558652 | H20: 577.8289114 | I20: 579.1697209 | J20: 580.1900617 | K20: 581
A21: =A8 -> 1989 | B21: =B8 -> 1271.21566 | C21: =B21+C8 -> 1821.102052 | D21: 1887.608517 | E21: =D21+E8 -> 1938.636911 | F21: 1956.701883 | G21: =F21+G8 -> 1966.542766 | H21: 1972.938092 | I21: =H21+I8 -> 1977.51615 | J21: 1981
A22: 1990 | B22: 3344.025211 | C22: 4790.541342 | D22: 4965.491436 | E22: =D22+E9 -> 5099.725337 | F22: 5147.246559 | G22: =F22+G9 -> 5173.133716 | H22: 5189.957086 | I22: =H22+I9 -> 5202
A23: 1991 | B23: 4305.387519 | C23: 6167.757598 | D23: 6393.003493 | E23: =D23+E10 -> 6565.827835 | F23: 6627.01077 | G23: =F23+G10 -> 6660.340138 | H23: 6682
A24: 1992 | B24: 9442.926274 | C24: 13527.62789 | D24: 14021.65552 | E24: =D24+E11 -> 14400.70793 | F24: 14534.89932 | G24: =F24+G11 -> 14608
A25: 1993 | B25: 10464.27706 | C25: 14990.78168 | D25: 15538.24354 | E25: =D25+E12 -> 15958.29441 | F25: 16107
A26: 1994 | B26: 11306.03687 | C26: 16196.65931 | D26: 16788.15969 | E26: =D26+E13 -> 17242
A27: 1995 | B27: 10337.50388 | C27: 14809.17056 | D27: 15350
A28: 1996 | B28: 11255.31723 | C28: =B28+C15 -> 16124
A29: 1997 | B29: 14280
C32: Age-to-Age Factors
A33: =A20 -> 1988 | B33: =C20/B20 -> 1.432567352 | C33: 1.036519901 | D33: 1.027033357 | E33: 1.009318389 | F33: 1.005029321 | G33: 1.003252066 | H33: 1.002320427 | I33: 1.00176173 | J33: 1.001395988
A34: =A21 -> 1989 | B34: =C21/B21 -> 1.432567352 | C34: 1.036519901 | D34: 1.027033357 | E34: 1.009318389 | F34: 1.005029321 | G34: 1.003252066 | H34: 1.002320427 | I34: 1.00176173
A35: 1990 | B35: =C22/B22 -> 1.432567352 | C35: 1.036519901 | D35: 1.027033357 | E35: 1.009318389 | F35: 1.005029321 | G35: 1.003252066 | H35: 1.002320427
A36: 1991 | B36: =C23/B23 -> 1.432567352 | C36: 1.036519901 | D36: 1.027033357 | E36: 1.009318389 | F36: 1.005029321 | G36: 1.003252066
A37: 1992 | B37: =C24/B24 -> 1.432567352 | C37: =D24/C24 -> 1.036519901 | D37: =E24/D24 -> 1.027033357 | E37: =F24/E24 -> 1.009318389 | F37: =G24/F24 -> 1.005029321
A38: 1993 | B38: =C25/B25 -> 1.432567352 | C38: =D25/C25 -> 1.036519901 | D38: =E25/D25 -> 1.027033357 | E38: =F25/E25 -> 1.009318389
A39: 1994 | B39: =C26/B26 -> 1.432567352 | C39: =D26/C26 -> 1.036519901 | D39: =E26/D26 -> 1.027033357
A40: 1995 | B40: =C27/B27 -> 1.432567352 | C40: =D27/C27 -> 1.036519901
A41: 1996 | B41: =C28/B28 -> 1.432567352
A43: ATA | B43: =SUM(C$20:C28)/SUM(B$20:B28) -> 1.432567352 | C43: =SUM(D$20:D27)/SUM(C$20:C27) -> 1.036519901 | D43: =SUM(E$20:E26)/SUM(D$20:D26) -> 1.027033357 | E43: =SUM(F$20:F25)/SUM(E$20:E25) -> 1.009318389 | F43: =SUM(G$20:G24)/SUM(F$20:F24) -> 1.005029321 | G43: =SUM(H$20:H23)/SUM(G$20:G23) -> 1.003252066 | H43: =SUM(I$20:I22)/SUM(H$20:H22) -> 1.002320427 | I43: =SUM(J$20:J21)/SUM(I$20:I21) -> 1.00176173 | J43: =SUM(K$20:K20)/SUM(J$20:J20) -> 1.001395988
A44: LDF | B44: =B43*C44 -> 1.560526286 | C44: 1.089321409 | D44: 1.050941143 | E44: 1.02327849 | F44: 1.013831217 | G44: 1.00875785 | H44: 1.005487937 | I44: 1.003160177 | J44: =J43*K44 -> 1.001395988 | K44: 1
A45: Increm | B45: =1/B44 -> 0.6408094558 | C45: =1/C44-1/B44 -> 0.2771932495 | D45: =1/D44-1/C44 -> 0.03352536755 | E45: 0.02572299765 | F45: 0.009106405155 | G45: 0.004960708792 | H45: 0.003223831684 | I45: 0.002307761705 | J45: 0.001756180393 | K45: 0.001394041776
J47: Tail for next 8 years: | K47: =1+SUM(L52:S52) -> 1.00651367
D49: 1 | E49: =D49+1 -> 2 | F49: =E49+1 -> 3 | G49: 4 | H49: 5 | I49: 6 | J49: 7 | K49: 8 | L49: 9 | M49: 10 | N49: 11 | O49: 12 | P49: 13 | Q49: 14 | R49: 15 | S49: 16
D50: ='GLM Calculation - Smooth w Log'!S11 -> -1.498105225
D51: =D49^$D$50 -> 1 | E51: =E49^$D$50 -> 0.3540180378 | F51: 0.1928511155 | G51: 0.1253287711 | H51: 0.08971589301 | I51: 0.0682727735 | J51: 0.0541943748 | K51: 0.04436864562 | L51: 0.03719155276 | M51: 0.0317610444 | N51: 0.0275349427 | O51: 0.02416979331 | P51: 0.0214385616 | Q51: 0.01918578623 | R51: 0.01730181005 | S51: 0.01570730086
D52: =$D$45*D51 -> 0.03352536755 | E52: =$D$45*E51 -> 0.01186858484 | F52: 0.00646540453 | G52: 0.004201693115 | H52: 0.003007758288 | I52: 0.002288869825 | J52: 0.001816886334 | K52: 0.001487475152 | L52: 0.001246860476 | M52: 0.001064800687 | N52: 0.0009231190743 | O52: 0.0008103012042 | P52: 0.0007187356574 | Q52: 0.000643210535 | R52: 0.000580049541 | S52: 0.0005265930345

Sheet Summary
L1: Pareto Smooth | T1: Expon Decay | AB1: Naïve Chainladder
B2: Summary | L2: Training | T2: Training | AB2: Training
B3: Dataset Name | C3: Item Name | D3: Pareto Smooth | E3: Expon Decay | F3: Naïve Chainladder | M3: ='GLM Calculation - Smooth w Log'!B23 -> Accident Year | N3: ='GLM Calculation - Smooth w Log'!C23 -> Calendar Year | O3: ='GLM Calculation - Smooth w Log'!D23 -> Age | P3: ='GLM Calculation - Smooth w Log'!U23 -> Actual Loss | Q3: ='GLM Calculation - Smooth w Log'!W23 -> Expected Loss | R3: SqrError | U3: ='GLM Calculation - Expon Decay'!B23 -> Accident Year | V3: ='GLM Calculation - Expon Decay'!C23 -> Calendar Year | W3: ='GLM Calculation - Expon Decay'!D23 -> Age | X3: ='GLM Calculation - Expon Decay'!U23 -> Actual Loss | Y3: ='GLM Calculation - Expon Decay'!W23 -> Expected Loss | Z3: SqrError
B4: Training | C4: Actual - Expected | D4: =SUM(P5:P59)-SUM(Q5:Q59) -> 0 | E4: =SUM(X5:X59)-SUM(Y5:Y59) -> 3.20142135e-10 | F4: NA
B5: Training | C5: Mean Square Error | D5: =AVERAGE(R5:R59) -> 216061.6964 | E5: =AVERAGE(Z5:Z59) -> 216274.6755 | F5: NA | M5: ='GLM Calculation - Smooth w Log'!B24 -> 1988 | N5: ='GLM Calculation - Smooth w Log'!C24 -> 1988 | O5: ='GLM Calculation - Smooth w Log'!D24 -> 12 | P5: ='GLM Calculation - Smooth w Log'!U24 -> 267 | Q5: ='GLM Calculation - Smooth w Log'!W24 -> 372.3102938 | R5: =(P5-Q5)^2 -> 11090.25798 | U5: ='GLM Calculation - Expon Decay'!B24 -> 1988 | V5: ='GLM Calculation - Expon Decay'!C24 -> 1988 | W5: ='GLM Calculation - Expon Decay'!D24 -> 12 | X5: ='GLM Calculation - Expon Decay'!U24 -> 267 | Y5: ='GLM Calculation - Expon Decay'!W24 -> 373.9826327 | Z5: =(X5-Y5)^2 -> 11445.2837
B6: Validation | C6: Actual - Expected | D6: =SUM(P65:P109)-SUM(Q65:Q109) -> 5386.56281 | E6: =SUM(X65:X109)-SUM(Y65:Y109) -> 5919.551394 | F6: =SUM(AF65:AF109)-SUM(AG65:AG109) -> 5753.970641 | M6: ='GLM Calculation - Smooth w Log'!B25 -> 1989 | N6: ='GLM Calculation - Smooth w Log'!C25 -> 1989 | O6: ='GLM Calculation - Smooth w Log'!D25 -> 12 | P6: ='GLM Calculation - Smooth w Log'!U25 -> 2071 | Q6: ='GLM Calculation - Smooth w Log'!W25 -> 1271.21566 | R6: =(P6-Q6)^2 -> 639654.9911 | U6: ='GLM Calculation - Expon Decay'!B25 -> 1989 | V6: ='GLM Calculation - Expon Decay'!C25 -> 1989 | W6: ='GLM Calculation - Expon Decay'!D25 -> 12 | X6: ='GLM Calculation - Expon Decay'!U25 -> 2071 | Y6: ='GLM Calculation - Expon Decay'!W25 -> 1275.348016 | Z6: =(X6-Y6)^2 -> 633062.0789
B7: Validation | C7: Mean Square Error | D7: =AVERAGE(R65:R109) -> 80736.91921 | E7: =AVERAGE(Z65:Z109) -> 82777.2502 | F7: =AVERAGE(AH65:AH109) -> 83319.41551 | M7: ='GLM Calculation - Smooth w Log'!B26 -> 1990 | N7: ='GLM Calculation - Smooth w Log'!C26 -> 1990 | O7: ='GLM Calculation - Smooth w Log'!D26 -> 12 | P7: ='GLM Calculation - Smooth w Log'!U26 -> 4183 | Q7: ='GLM Calculation - Smooth w Log'!W26 -> 3344.025211 | R7: 703878.696 | U7: ='GLM Calculation - Expon Decay'!B26 -> 1990 | V7: ='GLM Calculation - Expon Decay'!C26 -> 1990 | W7: ='GLM Calculation - Expon Decay'!D26 -> 12 | X7: ='GLM Calculation - Expon Decay'!U26 -> 4183 | Y7: ='GLM Calculation - Expon Decay'!W26 -> 3350.23385 | Z7: 693499.4598
M8: ='GLM Calculation - Smooth w Log'!B27 -> 1991 | N8: ='GLM Calculation - Smooth w Log'!C27 -> 1991 | O8: ='GLM Calculation - Smooth w Log'!D27 -> 12 | P8: ='GLM Calculation - Smooth w Log'!U27 -> 3837 | Q8: ='GLM Calculation - Smooth w Log'!W27 -> 4305.387519 | R8: 219386.8681 | U8: ='GLM Calculation - Expon Decay'!B27 -> 1991 | V8: ='GLM Calculation - Expon Decay'!C27 -> 1991 | W8: ='GLM Calculation - Expon Decay'!D27 -> 12 | X8: ='GLM Calculation - Expon Decay'!U27 -> 3837 | Y8: ='GLM Calculation - Expon Decay'!W27 -> 4307.102991 | Z8: 220996.8225
M9: ='GLM Calculation - Smooth w Log'!B28 -> 1992 | N9: ='GLM Calculation - Smooth w Log'!C28 -> 1992 | O9: ='GLM Calculation - Smooth w Log'!D28 -> 12 | P9: ='GLM Calculation - Smooth w Log'!U28 -> 9195 | Q9: ='GLM Calculation - Smooth w Log'!W28 -> 9442.926274 | R9: 61467.43751 | U9: ='GLM Calculation - Expon Decay'!B28 -> 1992 | V9: ='GLM Calculation - Expon Decay'!C28 -> 1992 | W9: ='GLM Calculation - Expon Decay'!D28 -> 12 | X9: ='GLM Calculation - Expon Decay'!U28 -> 9195 | Y9: ='GLM Calculation - Expon Decay'!W28 -> 9434.993388 | Z9: 57596.82642
M10: ='GLM Calculation - Smooth w Log'!B29 -> 1993 | N10: ='GLM Calculation - Smooth w Log'!C29 -> 1993 | O10: ='GLM Calculation - Smooth w Log'!D29 -> 12 | P10: ='GLM Calculation - Smooth w Log'!U29 -> 10839 | Q10: ='GLM Calculation - Smooth w Log'!W29 -> 10464.27706 | R10: 140417.2826 | U10: ='GLM Calculation - Expon Decay'!B29 -> 1993 | V10: ='GLM Calculation - Expon Decay'!C29 -> 1993 | W10: ='GLM Calculation - Expon Decay'!D29 -> 12 | X10: ='GLM Calculation - Expon Decay'!U29 -> 10839 | Y10: ='GLM Calculation - Expon Decay'!W29 -> 10452.07944 | Z10: 149707.5192
M11: ='GLM Calculation - Smooth w Log'!B30 -> 1994 | N11: ='GLM Calculation - Smooth w Log'!C30 -> 1994 | O11: ='GLM Calculation - Smooth w Log'!D30 -> 12 | P11: ='GLM Calculation - Smooth w Log'!U30 -> 9949 | Q11: ='GLM Calculation - Smooth w Log'!W30 -> 11306.03687 | R11: 1841549.073 | U11: ='GLM Calculation - Expon Decay'!B30 -> 1994 | V11: ='GLM Calculation - Expon Decay'!C30 -> 1994 | W11: ='GLM Calculation - Expon Decay'!D30 -> 12 | X11: ='GLM Calculation - Expon Decay'!U30 -> 9949 | Y11: ='GLM Calculation - Expon Decay'!W30 -> 11312.43857 | Z11: 1858964.733
M12: ='GLM Calculation - Smooth w Log'!B31 -> 1995 | N12: ='GLM Calculation - Smooth w Log'!C31 -> 1995 | O12: ='GLM Calculation - Smooth w Log'!D31 -> 12 | P12: ='GLM Calculation - Smooth w Log'!U31 -> 10114 | Q12: ='GLM Calculation - Smooth w Log'!W31 -> 10337.50388 | R12: 49953.98501 | U12: ='GLM Calculation - Expon Decay'!B31 -> 1995 | V12: ='GLM Calculation - Expon Decay'!C31 -> 1995 | W12: ='GLM Calculation - Expon Decay'!D31 -> 12 | X12: ='GLM Calculation - Expon Decay'!U31 -> 10114 | Y12: ='GLM Calculation - Expon Decay'!W31 -> 10337.50388 | Z12: 49953.98501
M13: ='GLM Calculation - Smooth w Log'!B32 -> 1996 | N13: ='GLM Calculation - Smooth w Log'!C32 -> 1996 | O13: ='GLM Calculation - Smooth w Log'!D32 -> 12 | P13: ='GLM Calculation - Smooth w Log'!U32 -> 11644 | Q13: ='GLM Calculation - Smooth w Log'!W32 -> 11255.31723 | R13: 151074.2966 | U13: ='GLM Calculation - Expon Decay'!B32 -> 1996 | V13: ='GLM Calculation - Expon Decay'!C32 -> 1996 | W13: ='GLM Calculation - Expon Decay'!D32 -> 12 | X13: ='GLM Calculation - Expon Decay'!U32 -> 11644 | Y13: ='GLM Calculation - Expon Decay'!W32 -> 11255.31723 | Z13: 151074.2966
M14: ='GLM Calculation - Smooth w Log'!B33 -> 1997 | N14: ='GLM Calculation - Smooth w Log'!C33 -> 1997 | O14: ='GLM Calculation - Smooth w Log'!D33 -> 12 | P14: ='GLM Calculation - Smooth w Log'!U33 -> 14280 | Q14: ='GLM Calculation - Smooth w Log'!W33 -> 14280 | R14: 0 | U14: ='GLM Calculation - Expon Decay'!B33 -> 1997 | V14: ='GLM Calculation - Expon Decay'!C33 -> 1997 | W14: ='GLM Calculation - Expon Decay'!D33 -> 12 | X14: ='GLM Calculation - Expon Decay'!U33 -> 14280 | Y14: ='GLM Calculation - Expon Decay'!W33 -> 14280 | Z14: 2.412058666e-21
M15: ='GLM Calculation - Smooth w Log'!B34 -> 1988 | N15: ='GLM Calculation - Smooth w Log'!C34 -> 1989 | O15: ='GLM Calculation - Smooth w Log'!D34 -> 24 | P15: ='GLM Calculation - Smooth w Log'!U34 -> 177 | Q15: ='GLM Calculation - Smooth w Log'!W34 -> 161.049278 | R15: 254.4255334 | U15: ='GLM Calculation - Expon Decay'!B34 -> 1988 | V15: ='GLM Calculation - Expon Decay'!C34 -> 1989 | W15: ='GLM Calculation - Expon Decay'!D34 -> 24 | X15: ='GLM Calculation - Expon Decay'!U34 -> 177 | Y15: ='GLM Calculation - Expon Decay'!W34 -> 161.7726772 | Z15: 231.8713608
M16: ='GLM Calculation - Smooth w Log'!B35 -> 1989 | N16: ='GLM Calculation - Smooth w Log'!C35 -> 1990 | O16: ='GLM Calculation - Smooth w Log'!D35 -> 24 | P16: ='GLM Calculation - Smooth w Log'!U35 -> 947 | Q16: ='GLM Calculation - Smooth w Log'!W35 -> 549.8863919 | R16: 157699.2178 | U16: ='GLM Calculation - Expon Decay'!B35 -> 1989 | V16: ='GLM Calculation - Expon Decay'!C35 -> 1990 | W16: ='GLM Calculation - Expon Decay'!D35 -> 24 | X16: ='GLM Calculation - Expon Decay'!U35 -> 947 | Y16: ='GLM Calculation - Expon Decay'!W35 -> 551.6739145 | Z16: 156282.7139
M17: ='GLM Calculation - Smooth w Log'!B36 -> 1990 | N17: ='GLM Calculation - Smooth w Log'!C36 -> 1991 | O17: ='GLM Calculation - Smooth w Log'!D36 -> 24 | P17: ='GLM Calculation - Smooth w Log'!U36 -> -86 | Q17: ='GLM Calculation - Smooth w Log'!W36 -> 1446.516131 | R17: 2348605.692 | U17: ='GLM Calculation - Expon Decay'!B36 -> 1990 | V17: ='GLM Calculation - Expon Decay'!C36 -> 1991 | W17: ='GLM Calculation - Expon Decay'!D36 -> 24 | X17: ='GLM Calculation - Expon Decay'!U36 -> -86 | Y17: ='GLM Calculation - Expon Decay'!W36 -> 1449.201786 | Z17: 2356844.523
M18: ='GLM Calculation - Smooth w Log'!B37 -> 1991 | N18: ='GLM Calculation - Smooth w Log'!C37 -> 1992 | O18: ='GLM Calculation - Smooth w Log'!D37 -> 24 | P18: ='GLM Calculation - Smooth w Log'!U37 -> 1587 | Q18: ='GLM Calculation - Smooth w Log'!W37 -> 1862.370079 | R18: 75828.68045 | U18: ='GLM Calculation - Expon Decay'!B37 -> 1991 | V18: ='GLM Calculation - Expon Decay'!C37 -> 1992 | W18: ='GLM Calculation - Expon Decay'!D37 -> 24 | X18: ='GLM Calculation - Expon Decay'!U37 -> 1587 | Y18: ='GLM Calculation - Expon Decay'!W37 -> 1863.112136 | Z18: 76237.91184
M19: ='GLM Calculation - Smooth w Log'!B38 -> 1992 | N19: ='GLM Calculation - Smooth w Log'!C38 -> 1993 | O19: ='GLM Calculation - Smooth w Log'!D38 -> 24 | P19: ='GLM Calculation - Smooth w Log'!U38 -> 4594 | Q19: ='GLM Calculation - Smooth w Log'!W38 -> 4084.701615 | R19: 259384.8451 | U19: ='GLM Calculation - Expon Decay'!B38 -> 1992 | V19: ='GLM Calculation - Expon Decay'!C38 -> 1993 | W19: ='GLM Calculation - Expon Decay'!D38 -> 24 | X19: ='GLM Calculation - Expon Decay'!U38 -> 4594 | Y19: ='GLM Calculation - Expon Decay'!W38 -> 4081.270107 | Z19: 262891.9428
M20: ='GLM Calculation - Smooth w Log'!B39 -> 1993 | N20: ='GLM Calculation - Smooth w Log'!C39 -> 1994 | O20: ='GLM Calculation - Smooth w Log'!D39 -> 24 | P20: ='GLM Calculation - Smooth w Log'!U39 -> 4026 | Q20: ='GLM Calculation - Smooth w Log'!W39 -> 4526.504619 | R20: 250504.874 | U20: ='GLM Calculation - Expon Decay'!B39 -> 1993 | V20: ='GLM Calculation - Expon Decay'!C39 -> 1994 | W20: ='GLM Calculation - Expon Decay'!D39 -> 24 | X20: ='GLM Calculation - Expon Decay'!U39 -> 4026 | Y20: ='GLM Calculation - Expon Decay'!W39 -> 4521.228328 | Z20: 245251.0968
M21: ='GLM Calculation - Smooth w Log'!B40 -> 1994 | N21: ='GLM Calculation - Smooth w Log'!C40 -> 1995 | O21: ='GLM Calculation - Smooth w Log'!D40 -> 24 | P21: ='GLM Calculation - Smooth w Log'!U40 -> 6157 | Q21: ='GLM Calculation - Smooth w Log'!W40 -> 4890.622433 | R21: 1603712.142 | U21: ='GLM Calculation - Expon Decay'!B40 -> 1994 | V21: ='GLM Calculation - Expon Decay'!C40 -> 1995 | W21: ='GLM Calculation - Expon Decay'!D40 -> 24 | X21: ='GLM Calculation - Expon Decay'!U40 -> 6157 | Y21: ='GLM Calculation - Expon Decay'!W40 -> 4893.391598 | Z21: 1596706.193
M22: ='GLM Calculation - Smooth w Log'!B41 -> 1995 | N22: ='GLM Calculation - Smooth w Log'!C41 -> 1996 | O22: ='GLM Calculation - Smooth w Log'!D41 -> 24 | P22: ='GLM Calculation - Smooth w Log'!U41 -> 4980 | Q22: ='GLM Calculation - Smooth w Log'!W41 -> 4471.666682 | R22: 258402.7626 | U22: ='GLM Calculation - Expon Decay'!B41 -> 1995 | V22: ='GLM Calculation - Expon Decay'!C41 -> 1996 | W22: ='GLM Calculation - Expon Decay'!D41 -> 24 | X22: ='GLM Calculation - Expon Decay'!U41 -> 4980 | Y22: ='GLM Calculation - Expon Decay'!W41 -> 4471.666682 | Z22: 258402.7626
M23: ='GLM Calculation - Smooth w Log'!B42 -> 1996 | N23: ='GLM Calculation - Smooth w Log'!C42 -> 1997 | O23: ='GLM Calculation - Smooth w Log'!D42 -> 24 | P23: ='GLM Calculation - Smooth w Log'!U42 -> 4480 | Q23: ='GLM Calculation - Smooth w Log'!W42 -> 4868.682771 | R23: 151074.2966 | U23: ='GLM Calculation - Expon Decay'!B42 -> 1996 | V23: ='GLM Calculation - Expon Decay'!C42 -> 1997 | W23: ='GLM Calculation - Expon Decay'!D42 -> 24 | X23: ='GLM Calculation - Expon Decay'!U42 -> 4480 | Y23: ='GLM Calculation - Expon Decay'!W42 -> 4868.682771 | Z23: 151074.2966
M24: ='GLM Calculation - Smooth w Log'!B43 -> 1988 | N24: ='GLM Calculation - Smooth w Log'!C43 -> 1990 | O24: ='GLM Calculation - Smooth w Log'!D43 -> 36 | P24: ='GLM Calculation - Smooth w Log'!U43 -> -29 | Q24: ='GLM Calculation - Smooth w Log'!W43 -> 19.47823855 | R24: 2350.139612 | U24: ='GLM Calculation - Expon Decay'!B43 -> 1988 | V24: ='GLM Calculation - Expon Decay'!C43 -> 1990 | W24: ='GLM Calculation - Expon Decay'!D43 -> 36 | X24: ='GLM Calculation - Expon Decay'!U43 -> -29 | Y24: ='GLM Calculation - Expon Decay'!W43 -> 19.56573066 | Z24: 2358.630195
M25: ='GLM Calculation - Smooth w Log'!B44 -> 1989 | N25: ='GLM Calculation - Smooth w Log'!C44 -> 1991 | O25: ='GLM Calculation - Smooth w Log'!D44 -> 36 | P25: ='GLM Calculation - Smooth w Log'!U44 -> -1240 | Q25: ='GLM Calculation - Smooth w Log'!W44 -> 66.5064659 | R25: 1706959.145 | U25: ='GLM Calculation - Expon Decay'!B44 -> 1989 | V25: ='GLM Calculation - Expon Decay'!C44 -> 1991 | W25: ='GLM Calculation - Expon Decay'!D44 -> 36 | X25: ='GLM Calculation - Expon Decay'!U44 -> -1240 | Y25: ='GLM Calculation - Expon Decay'!W44 -> 66.72265931 | Z25: 1707524.108
M26: ='GLM Calculation - Smooth w Log'!B45 -> 1990 | N26: ='GLM Calculation - Smooth w Log'!C45 -> 1992 | O26: ='GLM Calculation - Smooth w Log'!D45 -> 36 | P26: ='GLM Calculation - Smooth w Log'!U45 -> 977 | Q26: ='GLM Calculation - Smooth w Log'!W45 -> 174.9500936 | R26: 643284.0523 | U26: ='GLM Calculation - Expon Decay'!B45 -> 1990 | V26: ='GLM Calculation - Expon Decay'!C45 -> 1992 | W26: ='GLM Calculation - Expon Decay'!D45 -> 36 | X26: ='GLM Calculation - Expon Decay'!U45 -> 977 | Y26: ='GLM Calculation - Expon Decay'!W45 -> 175.2749124 | Z26: 642763.1161
M27: ='GLM Calculation - Smooth w Log'!B46 -> 1991 | N27: ='GLM Calculation - Smooth w Log'!C46 -> 1993 | O27: ='GLM Calculation - Smooth w Log'!D46 -> 36 | P27: ='GLM Calculation - Smooth w Log'!U46 -> 571 | Q27: ='GLM Calculation - Smooth w Log'!W46 -> 225.2458944 | R27: 119545.9015 | U27: ='GLM Calculation - Expon Decay'!B46 -> 1991 | V27: ='GLM Calculation - Expon Decay'!C46 -> 1993 | W27: ='GLM Calculation - Expon Decay'!D46 -> 36 | X27: ='GLM Calculation - Expon Decay'!U46 -> 571 | Y27: ='GLM Calculation - Expon Decay'!W46 -> 225.3356431 | Z27: 119483.8476
M28: ='GLM Calculation - Smooth w Log'!B47 -> 1992 | N28: ='GLM Calculation - Smooth w Log'!C47 -> 1994 | O28: ='GLM Calculation - Smooth w Log'!D47 -> 36 | P28: ='GLM Calculation - Smooth w Log'!U47 -> 729 | Q28: ='GLM Calculation - Smooth w Log'!W47 -> 494.0276259 | R28: 55212.01661 | U28: ='GLM Calculation - Expon Decay'!B47 -> 1992 | V28: ='GLM Calculation - Expon Decay'!C47 -> 1994 | W28: ='GLM Calculation - Expon Decay'!D47 -> 36 | X28: ='GLM Calculation - Expon Decay'!U47 -> 729 | Y28: ='GLM Calculation - Expon Decay'!W47 -> 493.6125993 | Z28: 55407.22839
M29: ='GLM Calculation - Smooth w Log'!B48 -> 1993 | N29: ='GLM Calculation - Smooth w Log'!C48 -> 1995 | O29: ='GLM Calculation - Smooth w Log'!D48 -> 36 | P29: ='GLM Calculation - Smooth w Log'!U48 -> 838 | Q29: ='GLM Calculation - Smooth w Log'!W48 -> 547.4618568 | R29: 84412.41265 | U29: ='GLM Calculation - Expon Decay'!B48 -> 1993 | V29: ='GLM Calculation - Expon Decay'!C48 -> 1995 | W29: ='GLM Calculation - Expon Decay'!D48 -> 36 | X29: ='GLM Calculation - Expon Decay'!U48 -> 838 | Y29: ='GLM Calculation - Expon Decay'!W48 -> 546.8237114 | Z29: 84783.63106
M30: ='GLM Calculation - Smooth w Log'!B49 -> 1994 | N30: ='GLM Calculation - Smooth w Log'!C49 -> 1996 | O30: ='GLM Calculation - Smooth w Log'!D49 -> 36 | P30: ='GLM Calculation - Smooth w Log'!U49 -> 558 | Q30: ='GLM Calculation - Smooth w Log'!W49 -> 591.5003879 | R30: 1122.275989 | U30: ='GLM Calculation - Expon Decay'!B49 -> 1994 | V30: ='GLM Calculation - Expon Decay'!C49 -> 1996 | W30: ='GLM Calculation - Expon Decay'!D49 -> 36 | X30: ='GLM Calculation - Expon Decay'!U49 -> 558 | Y30: ='GLM Calculation - Expon Decay'!W49 -> 591.8353069 | Z30: 1144.827991
M31: ='GLM Calculation - Smooth w Log'!B50 -> 1995 | N31: ='GLM Calculation - Smooth w Log'!C50 -> 1997 | O31: ='GLM Calculation - Smooth w Log'!D50 -> 36 | P31: ='GLM Calculation - Smooth w Log'!U50 -> 256 | Q31: ='GLM Calculation - Smooth w Log'!W50 -> 540.8294369 | R31: 81127.80814 | U31: ='GLM Calculation - Expon Decay'!B50 -> 1995 | V31: ='GLM Calculation - Expon Decay'!C50 -> 1997 | W31: ='GLM Calculation - Expon Decay'!D50 -> 36 | X31: ='GLM Calculation - Expon Decay'!U50 -> 256 | Y31: ='GLM Calculation - Expon Decay'!W50 -> 540.8294369 | Z31: 81127.80814
M32: ='GLM Calculation - Smooth w Log'!B51 -> 1988 | N32: ='GLM Calculation - Smooth w Log'!C51 -> 1991 | O32: ='GLM Calculation - Smooth w Log'!D51 -> 48 | P32: ='GLM Calculation - Smooth w Log'!U51 -> 167 | Q32: ='GLM Calculation - Smooth w Log'!W51 -> 14.94506164 | R32: 23120.70428 | U32: ='GLM Calculation - Expon Decay'!B51 -> 1988 | V32: ='GLM Calculation - Expon Decay'!C51 -> 1991 | W32: ='GLM Calculation - Expon Decay'!D51 -> 48 | X32: ='GLM Calculation - Expon Decay'!U51 -> 167 | Y32: ='GLM Calculation - Expon Decay'!W51 -> 14.6894407 | Z32: 23198.50647
M33: ='GLM Calculation - Smooth w Log'!B52 -> 1989 | N33: ='GLM Calculation - Smooth w Log'!C52 -> 1992 | O33: ='GLM Calculation - Smooth w Log'!D52 -> 48 | P33: ='GLM Calculation - Smooth w Log'!U52 -> 48 | Q33: ='GLM Calculation - Smooth w Log'!W52 -> 51.02839406 | R33: 9.171170608 | U33: ='GLM Calculation - Expon Decay'!B52 -> 1989 | V33: ='GLM Calculation - Expon Decay'!C52 -> 1992 | W33: ='GLM Calculation - Expon Decay'!D52 -> 48 | X33: ='GLM Calculation - Expon Decay'!U52 -> 48 | Y33: ='GLM Calculation - Expon Decay'!W52 -> 50.09363383 | Z33: 4.383302626
M34: ='GLM Calculation - Smooth w Log'!B53 -> 1990 | N34: ='GLM Calculation - Smooth w Log'!C53 -> 1993 | O34: ='GLM Calculation - Smooth w Log'!D53 -> 48 | P34: ='GLM Calculation - Smooth w Log'!U53 -> 92 | Q34: ='GLM Calculation - Smooth w Log'!W53 -> 134.2339004 | R34: 1783.702343 | U34: ='GLM Calculation - Expon Decay'!B53 -> 1990 | V34: ='GLM Calculation - Expon Decay'!C53 -> 1993 | W34: ='GLM Calculation - Expon Decay'!D53 -> 48 | X34: ='GLM Calculation - Expon Decay'!U53 -> 92 | Y34: ='GLM Calculation - Expon Decay'!W53 -> 131.5918366 | Z34: 1567.513523
M35: ='GLM Calculation - Smooth w Log'!B54 -> 1991 | N35: ='GLM Calculation - Smooth w Log'!C54 -> 1994 | O35: ='GLM Calculation - Smooth w Log'!D54 -> 48 | P35: ='GLM Calculation - Smooth w Log'!U54 -> 305 | Q35: ='GLM Calculation - Smooth w Log'!W54 -> 172.8243428 | R35: 17470.40436 | U35: ='GLM Calculation - Expon Decay'!B54 -> 1991 | V35: ='GLM Calculation - Expon Decay'!C54 -> 1994 | W35: ='GLM Calculation - Expon Decay'!D54 -> 48 | X35: ='GLM Calculation - Expon Decay'!U54 -> 305 | Y35: ='GLM Calculation - Expon Decay'!W54 -> 169.1761287 | Z35: 18448.12402
M36: ='GLM Calculation - Smooth w Log'!B55 -> 1992 | N36: ='GLM Calculation - Smooth w Log'!C55 -> 1995 | O36: ='GLM Calculation - Smooth w Log'!D55 -> 48 | P36: ='GLM Calculation - Smooth w Log'!U55 -> 137 | Q36: ='GLM Calculation - Smooth w Log'!W55 -> 379.0524129 | R36: 58589.37057 | U36: ='GLM Calculation - Expon Decay'!B55 -> 1992 | V36: ='GLM Calculation - Expon Decay'!C55 -> 1995 | W36: ='GLM Calculation - Expon Decay'!D55 -> 48 | X36: ='GLM Calculation - Expon Decay'!U55 -> 137 | Y36: ='GLM Calculation - Expon Decay'!W55 -> 370.5914761 | Z36: 54564.97772
M37: ='GLM Calculation - Smooth w Log'!B56 -> 1993 | N37: ='GLM Calculation - Smooth w Log'!C56 -> 1996 | O37: ='GLM Calculation - Smooth w Log'!D56 -> 48 | P37: ='GLM Calculation - Smooth w Log'!U56 -> 251 | Q37: ='GLM Calculation - Smooth w Log'!W56 -> 420.0508775 | R37: 28578.19919 | U37: ='GLM Calculation - Expon Decay'!B56 -> 1993 | V37: ='GLM Calculation - Expon Decay'!C56 -> 1996 | W37: ='GLM Calculation - Expon Decay'!D56 -> 48 | X37: ='GLM Calculation - Expon Decay'!U56 -> 251 | Y37: ='GLM Calculation - Expon Decay'!W56 -> 410.5409924 | Z37: 25453.32825
M38: ='GLM Calculation - Smooth w Log'!B57 -> 1994 | N38: ='GLM Calculation - Smooth w Log'!C57 -> 1997 | O38: ='GLM Calculation - Smooth w Log'!D57 -> 48 | P38: ='GLM Calculation - Smooth w Log'!U57 -> 578 | Q38: ='GLM Calculation - Smooth w Log'!W57 -> 453.8403067 | R38: 15415.62945 | U38: ='GLM Calculation - Expon Decay'!B57 -> 1994 | V38: ='GLM Calculation - Expon Decay'!C57 -> 1997 | W38: ='GLM Calculation - Expon Decay'!D57 -> 48 | X38: ='GLM Calculation - Expon Decay'!U57 -> 578 | Y38: ='GLM Calculation - Expon Decay'!W57 -> 444.3345253 | Z38: 17866.45913
M39: ='GLM Calculation - Smooth w Log'!B58 -> 1988 | N39: ='GLM Calculation - Smooth w Log'!C58 -> 1992 | O39: ='GLM Calculation - Smooth w Log'!D58 -> 60 | P39: ='GLM Calculation - Smooth w Log'!U58 -> 29 | Q39: ='GLM Calculation - Smooth w Log'!W58 -> 5.290821395 | R39: 562.1251501 | U39: ='GLM Calculation - Expon Decay'!B58 -> 1988 | V39: ='GLM Calculation - Expon Decay'!C58 -> 1992 | W39: ='GLM Calculation - Expon Decay'!D58 -> 60 | X39: ='GLM Calculation - Expon Decay'!U58 -> 29 | Y39: ='GLM Calculation - Expon Decay'!W58 -> 6.309120914 | Z39: 514.8759937
M40: ='GLM Calculation - Smooth w Log'!B59 -> 1989 | N40: ='GLM Calculation - Smooth w Log'!C59 -> 1993 | O40: ='GLM Calculation - Smooth w Log'!D59 -> 60 | P40: ='GLM Calculation - Smooth w Log'!U59 -> 85 | Q40: ='GLM Calculation - Smooth w Log'!W59 -> 18.06497194 | R40: 4480.297982 | U40: ='GLM Calculation - Expon Decay'!B59 -> 1989 | V40: ='GLM Calculation - Expon Decay'!C59 -> 1993 | W40: ='GLM Calculation - Expon Decay'!D59 -> 60 | X40: ='GLM Calculation - Expon Decay'!U59 -> 85 | Y40: ='GLM Calculation - Expon Decay'!W59 -> 21.51523665 | Z40: 4030.315178
M41: ='GLM Calculation - Smooth w Log'!B60 -> 1990 | N41: ='GLM Calculation - Smooth w Log'!C60 -> 1994 | O41: ='GLM Calculation - Smooth w Log'!D60 -> 60 | P41: ='GLM Calculation - Smooth w Log'!U60 -> 109 | Q41: ='GLM Calculation - Smooth w Log'!W60 -> 47.52122202 | R41: 3779.640141 | U41: ='GLM Calculation - Expon Decay'!B60 -> 1990 | V41: ='GLM Calculation - Expon Decay'!C60 -> 1994 | W41: ='GLM Calculation - Expon Decay'!D60 -> 60 | X41: ='GLM Calculation - Expon Decay'!U60 -> 109 | Y41: ='GLM Calculation - Expon Decay'!W60 -> 56.51874875 | Z41: 2754.281733
M42: ='GLM Calculation - Smooth w Log'!B61 -> 1991 | N42: ='GLM Calculation - Smooth w Log'!C61 -> 1995 | O42: ='GLM Calculation - Smooth w Log'!D61 -> 60 | P42: ='GLM Calculation - Smooth w Log'!U61 -> 215 | Q42: ='GLM Calculation - Smooth w Log'!W61 -> 61.18293472 | R42: 23659.68957 | U42: ='GLM Calculation - Expon Decay'!B61 -> 1991 | V42: ='GLM Calculation - Expon Decay'!C61 -> 1995 | W42: ='GLM Calculation - Expon Decay'!D61 -> 60 | X42: ='GLM Calculation - Expon Decay'!U61 -> 215 | Y42: ='GLM Calculation - Expon Decay'!W61 -> 72.6612179 | Z42: 20260.32889
M43: ='GLM Calculation - Smooth w Log'!B62 -> 1992 | N43: ='GLM Calculation - Smooth w Log'!C62 -> 1996 | O43: ='GLM Calculation - Smooth w Log'!D62 -> 60 | P43: ='GLM Calculation - Smooth w Log'!U62 -> -115 | Q43: ='GLM Calculation - Smooth w Log'!W62 -> 134.1913914 | R43: 62096.34956 | U43: ='GLM Calculation - Expon Decay'!B62 -> 1992 | V43: ='GLM Calculation - Expon Decay'!C62 -> 1996 | W43: ='GLM Calculation - Expon Decay'!D62 -> 60 | X43: ='GLM Calculation - Expon Decay'!U62 -> -115 | Y43: ='GLM Calculation - Expon Decay'!W62 -> 159.1691937 | Z43: 75168.74679
M44: ='GLM Calculation - Smooth w Log'!B63 -> 1993 | N44: ='GLM Calculation - Smooth w Log'!C63 -> 1997 | O44: ='GLM Calculation - Smooth w Log'!D63 -> 60 | P44: ='GLM Calculation - Smooth w Log'!U63 -> 153 | Q44: ='GLM Calculation - Smooth w Log'!W63 -> 148.7055874 | R44: 18.4419793 | U44: ='GLM Calculation - Expon Decay'!B63 -> 1993 | V44: ='GLM Calculation - Expon Decay'!C63 -> 1997 | W44: ='GLM Calculation - Expon Decay'!D63 -> 60 | X44: ='GLM Calculation - Expon Decay'!U63 -> 153 | Y44: ='GLM Calculation - Expon Decay'!W63 -> 176.3275276 | Z44: 544.1735452
M45: ='GLM Calculation - Smooth w Log'!B64 -> 1988 | N45: ='GLM Calculation - Smooth w Log'!C64 -> 1993 | O45: ='GLM Calculation - Smooth w Log'!D64 -> 72 | P45: ='GLM Calculation - Smooth w Log'!U64 -> 20 | Q45: ='GLM Calculation - Smooth w Log'!W64 -> 2.882171808 | R45: 293.020042 | U45: ='GLM Calculation - Expon Decay'!B64 -> 1988 | V45: ='GLM Calculation - Expon Decay'!C64 -> 1993 | W45: ='GLM Calculation - Expon Decay'!D64 -> 72 | X45: ='GLM Calculation - Expon Decay'!U64 -> 20 | Y45: ='GLM Calculation - Expon Decay'!W64 -> 2.709770067 | Z45: 298.9520511
M46: ='GLM Calculation - Smooth w Log'!B65 -> 1989 | N46: ='GLM Calculation - Smooth w Log'!C65 -> 1994 | O46: ='GLM Calculation - Smooth w Log'!D65 -> 72 | P46: ='GLM Calculation - Smooth w Log'!U65 -> 60 | Q46: ='GLM Calculation - Smooth w Log'!W65 -> 9.840882718 | R46: 2515.937046 | U46: ='GLM Calculation - Expon Decay'!B65 -> 1989 | V46: ='GLM Calculation - Expon Decay'!C65 -> 1994 | W46: ='GLM Calculation - Expon Decay'!D65 -> 72 | X46: ='GLM Calculation - Expon Decay'!U65 -> 60 | Y46: ='GLM Calculation - Expon Decay'!W65 -> 9.240803122 | Z46: 2576.496068
M47: ='GLM Calculation - Smooth w Log'!B66 -> 1990 | N47: ='GLM Calculation - Smooth w Log'!C66 -> 1995 | O47: ='GLM Calculation - Smooth w Log'!D66 -> 72 | P47: ='GLM Calculation - Smooth w Log'!U66 -> 6 | Q47: ='GLM Calculation - Smooth w Log'!W66 -> 25.88715743 | R47: 395.4990307 | U47: ='GLM Calculation - Expon Decay'!B66 -> 1990 | V47: ='GLM Calculation - Expon Decay'!C66 -> 1995 | W47: ='GLM Calculation - Expon Decay'!D66 -> 72 | X47: ='GLM Calculation - Expon Decay'!U66 -> 6 | Y47: ='GLM Calculation - Expon Decay'!W66 -> 24.27482619 | Z47: 333.9692721
M48: ='GLM Calculation - Smooth w Log'!B67 -> 1991 | N48: ='GLM Calculation - Smooth w Log'!C67 -> 1996 | O48: ='GLM Calculation - Smooth w Log'!D67 -> 72 | P48: ='GLM Calculation - Smooth w Log'!U67 -> 75 | Q48: ='GLM Calculation - Smooth w Log'!W67 -> 33.3293673 | R48: 1736.44163 | U48: ='GLM Calculation - Expon Decay'!B67 -> 1991 | V48: ='GLM Calculation - Expon Decay'!C67 -> 1996 | W48: ='GLM Calculation - Expon Decay'!D67 -> 72 | X48: ='GLM Calculation - Expon Decay'!U67 -> 75 | Y48: ='GLM Calculation - Expon Decay'!W67 -> 31.20802342 | Z48: 1917.737213
M49: ='GLM Calculation - Smooth w Log'!B68 -> 1992 | N49: ='GLM Calculation - Smooth w Log'!C68 -> 1997 | O49: ='GLM Calculation - Smooth w Log'!D68 -> 72 | P49: ='GLM Calculation - Smooth w Log'!U68 -> 68 | Q49: ='GLM Calculation - Smooth w Log'!W68 -> 73.10068066 | R49: 26.01694317 | U49: ='GLM Calculation - Expon Decay'!B68 -> 1992 | V49: ='GLM Calculation - Expon Decay'!C68 -> 1997 | W49: ='GLM Calculation - Expon Decay'!D68 -> 72 | X49: ='GLM Calculation - Expon Decay'!U68 -> 68 | Y49: ='GLM Calculation - Expon Decay'!W68 -> 68.36323516 | Z49: 0.1319397811
M50: ='GLM Calculation - Smooth w Log'!B69 -> 1988 | N50: ='GLM Calculation - Smooth w Log'!C69 -> 1994 | O50: ='GLM Calculation - Smooth w Log'!D69 -> 84 | P50: ='GLM Calculation - Smooth w Log'!U69 -> -50 | Q50: ='GLM Calculation - Smooth w Log'!W69 -> 1.873046209 | R50: 2690.812923 | U50: ='GLM Calculation - Expon Decay'!B69 -> 1988 | V50: ='GLM Calculation - Expon Decay'!C69 -> 1994 | W50: ='GLM Calculation - Expon Decay'!D69 -> 84 | X50: ='GLM Calculation - Expon Decay'!U69 -> -50 | Y50: ='GLM Calculation - Expon Decay'!W69 -> 1.163847375 | Z50: 2617.739278
M51: ='GLM Calculation - Smooth w Log'!B70 -> 1989 | N51: ='GLM Calculation - Smooth w Log'!C70 -> 1995 | O51: ='GLM Calculation - Smooth w Log'!D70 -> 84 | P51: ='GLM Calculation - Smooth w Log'!U70 -> 9 | Q51: ='GLM Calculation - Smooth w Log'!W70 -> 6.395325918 | R51: 6.784327072 | U51: ='GLM Calculation - Expon Decay'!B70 -> 1989 | V51: ='GLM Calculation - Expon Decay'!C70 -> 1995 | W51: ='GLM Calculation - Expon Decay'!D70 -> 84 | X51: ='GLM Calculation - Expon Decay'!U70 -> 9 | Y51: ='GLM Calculation - Expon Decay'!W70 -> 3.968928799 | Z51: 25.31167743
M52: ='GLM Calculation - Smooth w Log'!B71 -> 1990 | N52: ='GLM Calculation - Smooth w Log'!C71 -> 1996 | O52: ='GLM Calculation - Smooth w Log'!D71 -> 84 | P52: ='GLM Calculation - Smooth w Log'!U71 -> -97 | Q52: ='GLM Calculation - Smooth w Log'!W71 -> 16.82336977 | R52: 12955.75951 | U52: ='GLM Calculation - Expon Decay'!B71 -> 1990 | V52: ='GLM Calculation - Expon Decay'!C71 -> 1996 | W52: ='GLM Calculation - Expon Decay'!D71 -> 84 | X52: ='GLM Calculation - Expon Decay'!U71 -> -97 | Y52: ='GLM Calculation - Expon Decay'!W71 -> 10.42604798 | Z52: 11540.35578
M53: ='GLM Calculation - Smooth w Log'!B72 -> 1991 | N53: ='GLM Calculation - Smooth w Log'!C72 -> 1997 | O53: ='GLM Calculation - Smooth w Log'!D72 -> 84 | P53: ='GLM Calculation - Smooth w Log'!U72 -> 92 | Q53: ='GLM Calculation - Smooth w Log'!W72 -> 21.6598625 | R53: 4947.734944 | U53: ='GLM Calculation - Expon Decay'!B72 -> 1991 | V53: ='GLM Calculation - Expon Decay'!C72 -> 1997 | W53: ='GLM Calculation - Expon Decay'!D72 -> 84 | X53: ='GLM Calculation - Expon Decay'!U72 -> 92 | Y53: ='GLM Calculation - Expon Decay'!W72 -> 13.40385909 | Z53: 6177.353366
M54: ='GLM Calculation - Smooth w Log'!B73 -> 1988 | N54: ='GLM Calculation - Smooth w Log'!C73 -> 1995 | O54: ='GLM Calculation - Smooth w Log'!D73 -> 96 | P54: ='GLM Calculation - Smooth w Log'!U73 -> 0 | Q54: ='GLM Calculation - Smooth w Log'!W73 -> 1.340809551 | R54: 1.797770251 | U54: ='GLM Calculation - Expon Decay'!B73 -> 1988 | V54: ='GLM Calculation - Expon Decay'!C73 -> 1995 | W54: ='GLM Calculation - Expon Decay'!D73 -> 96 | X54: ='GLM Calculation - Expon Decay'!U73 -> 0 | Y54: ='GLM Calculation - Expon Decay'!W73 -> 0.4998729335 | Z54: 0.2498729496
M55: ='GLM Calculation - Smooth w Log'!B74 -> 1989 | N55: ='GLM Calculation - Smooth w Log'!C74 -> 1996 | O55: ='GLM Calculation - Smooth w Log'!D74 -> 96 | P55: ='GLM Calculation - Smooth w Log'!U74 -> -10 | Q55: ='GLM Calculation - Smooth w Log'!W74 -> 4.578057942 | R55: 212.5197734 | U55: ='GLM Calculation - Expon Decay'!B74 -> 1989 | V55: ='GLM Calculation - Expon Decay'!C74 -> 1996 | W55: ='GLM Calculation - Expon Decay'!D74 -> 96 | X55: ='GLM Calculation - Expon Decay'!U74 -> -10 | Y55: ='GLM Calculation - Expon Decay'!W74 -> 1.704656576 | Z55: 136.9989856
M56: ='GLM Calculation - Smooth w Log'!B75 -> 1990 | N56: ='GLM Calculation - Smooth w Log'!C75 -> 1997 | O56: ='GLM Calculation - Smooth w Log'!D75 -> 96 | P56: ='GLM Calculation - Smooth w Log'!U75 -> 18 | Q56: ='GLM Calculation - Smooth w Log'!W75 -> 12.04291425 | R56: 35.48687068 | U56: ='GLM Calculation - Expon Decay'!B75 -> 1990 | V56: ='GLM Calculation - Expon Decay'!C75 -> 1997 | W56: ='GLM Calculation - Expon Decay'!D75 -> 96 | X56: ='GLM Calculation - Expon Decay'!U75 -> 18 | Y56: ='GLM Calculation - Expon Decay'!W75 -> 4.477991961 | Z56: 182.8447014
M57: ='GLM Calculation - Smooth w Log'!B76 -> 1988 | N57: ='GLM Calculation - Smooth w Log'!C76 -> 1996 | O57: ='GLM Calculation - Smooth w Log'!D76 -> 108 | P57: ='GLM Calculation - Smooth w Log'!U76 -> 0 | Q57: ='GLM Calculation - Smooth w Log'!W76 -> 1.020340808 | R57: 1.041095365 | U57: ='GLM Calculation - Expon Decay'!B76 -> 1988 | V57: ='GLM Calculation - Expon Decay'!C76 -> 1996 | W57: ='GLM Calculation - Expon Decay'!D76 -> 108 | X57: ='GLM Calculation - Expon Decay'!U76 -> 0 | Y57: ='GLM Calculation - Expon Decay'!W76 -> 0.2146956336 | Z57: 0.0460942151
M58: ='GLM Calculation - Smooth w Log'!B77 -> 1989 | N58: ='GLM Calculation - Smooth w Log'!C77 -> 1997 | O58: ='GLM Calculation - Smooth w Log'!D77 -> 108 | P58: ='GLM Calculation - Smooth w Log'!U77 -> 11 | Q58: ='GLM Calculation - Smooth w Log'!W77 -> 3.48384999 | R58: 56.49251097 | U58: ='GLM Calculation - Expon Decay'!B77 -> 1989 | V58: ='GLM Calculation - Expon Decay'!C77 -> 1997 | W58: ='GLM Calculation - Expon Decay'!D77 -> 108 | X58: ='GLM Calculation - Expon Decay'!U77 -> 11 | Y58: ='GLM Calculation - Expon Decay'!W77 -> 0.7321507112 | Z58: 105.428729
M59: ='GLM Calculation - Smooth w Log'!B78 -> 1988 | N59: ='GLM Calculation - Smooth w Log'!C78 -> 1997 | O59: ='GLM Calculation - Smooth w Log'!D78 -> 120 | P59: ='GLM Calculation - Smooth w Log'!U78 -> 0 | Q59: ='GLM Calculation - Smooth w Log'!W78 -> 0.8099382718 | R59: 0.6560000041 | U59: ='GLM Calculation - Expon Decay'!B78 -> 1988 | V59: ='GLM Calculation - Expon Decay'!C78 -> 1997 | W59: ='GLM Calculation - Expon Decay'!D78 -> 120 | X59: ='GLM Calculation - Expon Decay'!U78 -> 0 | Y59: ='GLM Calculation - Expon Decay'!W78 -> 0.09221186428 | Z59: 0.008503027915
L64: Validation | M64: =M3 -> Accident Year | N64: =N3 -> Calendar Year | O64: Age | P64: Actual Loss | Q64: Expected Loss | R64: SqrError | T64: Validation | U64: =U3 -> Accident Year | V64: =V3 -> Calendar Year | W64: Age | X64: Actual Loss | Y64: Expected Loss | Z64: SqrError | AB64: Validation | AC64: =U64 -> Accident Year | AD64: =V64 -> Calendar Year | AE64: Age | AF64: Actual Loss | AG64: Expected Loss | AH64: SqrError
M65: ='GLM Calculation - Smooth w Log'!B84 -> 1989 | N65: ='GLM Calculation - Smooth w Log'!C84 -> 1998 | O65: ='GLM Calculation - Smooth w Log'!D84 -> 120 | P65: ='GLM Calculation - Smooth w Log'!U84 -> 13 | Q65: ='GLM Calculation - Smooth w Log'!W84 -> 2.765451914 | R65: =(P65-Q65)^2 -> 104.7459745 | U65: ='GLM Calculation - Expon Decay'!B84 -> 1989 | V65: ='GLM Calculation - Expon Decay'!C84 -> 1998 | W65: ='GLM Calculation - Expon Decay'!D84 -> 120 | X65: ='GLM Calculation - Expon Decay'!U84 -> 13 | Y65: ='GLM Calculation - Expon Decay'!W84 -> 0.3144590361 | Z65: =(X65-Y65)^2 -> 160.9229495 | AC65: =U65 -> 1989 | AD65: 1998 | AE65: 120 | AF65: 13 | AG65: =INDEX(ChainLadder!$B$62:$K$71,Summary!AC65-ChainLadder!$A$62+1,Summary!AE65/12) -> 0 | AH65: =(AF65-AG65)^2 -> 169
M66: ='GLM Calculation - Smooth w Log'!B85 -> 1990 | N66: ='GLM Calculation - Smooth w Log'!C85 -> 1999 | O66: ='GLM Calculation - Smooth w Log'!D85 -> 120 | P66: ='GLM Calculation - Smooth w Log'!U85 -> -7 | Q66: ='GLM Calculation - Smooth w Log'!W85 -> 7.27472231 | R66: =(P66-Q66)^2 -> 203.767697 | U66: ='GLM Calculation - Expon Decay'!B85 -> 1990 | V66: ='GLM Calculation - Expon Decay'!C85 -> 1999 | W66: ='GLM Calculation - Expon Decay'!D85 -> 120 | X66: ='GLM Calculation - Expon Decay'!U85 -> -7 | Y66: ='GLM Calculation - Expon Decay'!W85 -> 0.8260579025 | Z66: 61.24718229 | AC66: =U66 -> 1990 | AD66: =V66 -> 1999 | AE66: =W66 -> 120 | AF66: =X66 -> -7 | AG66: =INDEX(ChainLadder!$B$62:$K$71,Summary!AC66-ChainLadder!$A$62+1,Summary!AE66/12) -> 0 | AH66: 49
M67: ='GLM Calculation - Smooth w Log'!B86 -> 1990 | N67: ='GLM Calculation - Smooth w Log'!C86 -> 1998 | O67: ='GLM Calculation - Smooth w Log'!D86 -> 108 | P67: ='GLM Calculation - Smooth w Log'!U86 -> -19 | Q67: ='GLM Calculation - Smooth w Log'!W86 -> 9.164520678 | R67: 793.240225 | U67: ='GLM Calculation - Expon Decay'!B86 -> 1990 | V67: ='GLM Calculation - Expon Decay'!C86 -> 1998 | W67: ='GLM Calculation - Expon Decay'!D86 -> 108 | X67: ='GLM Calculation - Expon Decay'!U86 -> -19 | Y67: ='GLM Calculation - Expon Decay'!W86 -> 1.923299417 | Z67: 437.7844585 | AC67: 1990 | AD67: 1998 | AE67: 108 | AF67: -19 | AG67: =INDEX(ChainLadder!$B$62:$K$71,Summary!AC67-ChainLadder!$A$62+1,Summary!AE67/12) -> 22.43120345 | AH67: 1716.544619
M68: ='GLM Calculation - Smooth w Log'!B87 -> 1991 | N68: ='GLM Calculation - Smooth w Log'!C87 -> 2000 | O68: ='GLM Calculation - Smooth w Log'!D87 -> 120 | P68: ='GLM Calculation - Smooth w Log'!U87 -> 5 | Q68: ='GLM Calculation - Smooth w Log'!W87 -> 9.366107209 | R68: 19.06289216 | U68: ='GLM Calculation - Expon Decay'!B87 -> 1991 | V68: ='GLM Calculation - Expon Decay'!C87 -> 2000 | W68: ='GLM Calculation - Expon Decay'!D87 -> 120 | X68: ='GLM Calculation - Expon Decay'!U87 -> 5 | Y68: ='GLM Calculation - Expon Decay'!W87 -> 1.061990482 | Z68: 15.50791896 | AC68: 1991 | AD68: 2000 | AE68: 120 | AF68: 5 | AG68: =INDEX(ChainLadder!$B$62:$K$71,Summary!AC68-ChainLadder!$A$62+1,Summary!AE68/12) -> 0 | AH68: 25
M69: ='GLM Calculation - Smooth w Log'!B88 -> 1991 | N69: ='GLM Calculation - Smooth w Log'!C88 -> 1999 | O69: ='GLM Calculation - Smooth w Log'!D88 -> 108 | P69: ='GLM Calculation - Smooth w Log'!U88 -> 14 | Q69: ='GLM Calculation - Smooth w Log'!W88 -> 11.79919721 | R69: 4.843532917 | U69: ='GLM Calculation - Expon Decay'!B88 -> 1991 | V69: ='GLM Calculation - Expon Decay'!C88 -> 1999 | W69: ='GLM Calculation - Expon Decay'!D88 -> 108 | X69: ='GLM Calculation - Expon Decay'!U88 -> 14 | Y69: ='GLM Calculation - Expon Decay'!W88 -> 2.472618044 | Z69: 132.8805347 | AC69: 1991 | AD69: 1999 | AE69: 108 | AF69: 14 | AG69: =INDEX(ChainLadder!$B$62:$K$71,Summary!AC69-ChainLadder!$A$62+1,Summary!AE69/12) -> 28.84277617 | AH69: 220.3080045
M70: ='GLM Calculation - Smooth w Log'!B89 -> 1991 | N70: ='GLM Calculation - Smooth w Log'!C89 -> 1998 | O70: ='GLM Calculation - Smooth w Log'!D89 -> 96 | P70: ='GLM Calculation - Smooth w Log'!U89 -> 11 | Q70: ='GLM Calculation - Smooth w Log'!W89 -> 15.50509025 | R70: 20.29583814 | U70: ='GLM Calculation - Expon Decay'!B89 -> 1991 | V70: ='GLM Calculation - Expon Decay'!C89 -> 1998 | W70: ='GLM Calculation - Expon Decay'!D89 -> 96 | X70: ='GLM Calculation - Expon Decay'!U89 -> 11 | Y70: ='GLM Calculation - Expon Decay'!W89 -> 5.756963075 | Z70: 27.48943619 | AC70: 1991 | AD70: 1998 | AE70: 96 | AF70: 11 | AG70: =INDEX(ChainLadder!$B$62:$K$71,Summary!AC70-ChainLadder!$A$62+1,Summary!AE70/12) -> 6.902001291 | AH70: 16.79359342
M71: ='GLM Calculation - Smooth w Log'!B90 -> 1992 | N71: ='GLM Calculation - Smooth w Log'!C90 -> 2001 | O71: ='GLM Calculation - Smooth w Log'!D90 -> 120 | P71: ='GLM Calculation - Smooth w Log'!U90 -> -22 | Q71: ='GLM Calculation - Smooth w Log'!W90 -> 20.54250853 | R71: 1809.865032 | U71: ='GLM Calculation - Expon Decay'!B90 -> 1992 | V71: ='GLM Calculation - Expon Decay'!C90 -> 2001 | W71: ='GLM Calculation - Expon Decay'!D90 -> 120 | X71: ='GLM Calculation - Expon Decay'!U90 -> -22 | Y71: ='GLM Calculation - Expon Decay'!W90 -> 2.326360247 | Z71: 591.7718029 | AC71: 1992 | AD71: 2001 | AE71: 120 | AF71: -22 | AG71: =INDEX(ChainLadder!$B$62:$K$71,Summary!AC71-ChainLadder!$A$62+1,Summary!AE71/12) -> 0 | AH71: 484
M72: ='GLM Calculation - Smooth w Log'!B91 -> 1992 | N72: ='GLM Calculation - Smooth w Log'!C91 -> 2000 | O72: ='GLM Calculation - Smooth w Log'!D91 -> 108 | P72: ='GLM Calculation - Smooth w Log'!U91 -> 60 | Q72: ='GLM Calculation - Smooth w Log'!W91 -> 25.87895953 | R72: 1164.245403 | U72: ='GLM Calculation - Expon Decay'!B91 -> 1992 | V72: ='GLM Calculation - Expon Decay'!C91 -> 2000 | W72: ='GLM Calculation - Expon Decay'!D91 -> 108 | X72: ='GLM Calculation - Expon Decay'!U91 -> 60 | Y72: ='GLM Calculation - Expon Decay'!W91 -> 5.416433029 | Z72: 2979.365783 | AC72: 1992 | AD72: 2000 | AE72: 108 | AF72: 60 | AG72: =INDEX(ChainLadder!$B$62:$K$71,Summary!AC72-ChainLadder!$A$62+1,Summary!AE72/12) -> 62.85485347 | AH72: 8.15018835
M73: ='GLM Calculation - Smooth w Log'!B92 -> 1992 | N73: ='GLM Calculation - Smooth w Log'!C92 -> 1999 | O73: ='GLM Calculation - Smooth w Log'!D92 -> 96 | P73: ='GLM Calculation - Smooth w Log'!U92 -> 172 | Q73: ='GLM Calculation - Smooth w Log'!W92 -> 34.00702572 | R73: 19042.06095 | U73: ='GLM Calculation - Expon Decay'!B92 -> 1992 | V73: ='GLM Calculation - Expon Decay'!C92 -> 1999 | W73: ='GLM Calculation - Expon Decay'!D92 -> 96 | X73: ='GLM Calculation - Expon Decay'!U92 -> 172 | Y73: ='GLM Calculation - Expon Decay'!W92 -> 12.6110076 | Z73: 25404.8509 | AC73: 1992 | AD73: 1999 | AE73: 96 | AF73: 172 | AG73: =INDEX(ChainLadder!$B$62:$K$71,Summary!AC73-ChainLadder!$A$62+1,Summary!AE73/12) -> 15.04100289 | AH73: 24636.12677
M74: ='GLM Calculation - Smooth w Log'!B93 -> 1992 | N74: ='GLM Calculation - Smooth w Log'!C93 -> 1998 | O74: ='GLM Calculation - Smooth w Log'!D93 -> 84 | P74: ='GLM Calculation - Smooth w Log'!U93 -> 25 | Q74: ='GLM Calculation - Smooth w Log'!W93 -> 47.50617308 | R74: 506.5278266 | U74: ='GLM Calculation - Expon Decay'!B93 -> 1992 | V74: ='GLM Calculation - Expon Decay'!C93 -> 1998 | W74: ='GLM Calculation - Expon Decay'!D93 -> 84 | X74: ='GLM Calculation - Expon Decay'!U93 -> 25 | Y74: ='GLM Calculation - Expon Decay'!W93 -> 29.36203804 | Z74: 19.02737589 | AC74: 1992 | AD74: 1998 | AE74: 84 | AF74: 25 | AG74: =INDEX(ChainLadder!$B$62:$K$71,Summary!AC74-ChainLadder!$A$62+1,Summary!AE74/12) -> -46.42907483 | AH74: 5102.112731
M75: ='GLM Calculation - Smooth w Log'!B94 -> 1993 | N75: ='GLM Calculation - Smooth w Log'!C94 -> 2002 | O75: ='GLM Calculation - Smooth w Log'!D94 -> 120 | P75: ='GLM Calculation - Smooth w Log'!U94 -> -11 | Q75: ='GLM Calculation - Smooth w Log'!W94 -> 22.76439469 | R75: 1140.034349 | U75: ='GLM Calculation - Expon Decay'!B94 -> 1993 | V75: ='GLM Calculation - Expon Decay'!C94 -> 2002 | W75: ='GLM Calculation - Expon Decay'!D94 -> 120 | X75: ='GLM Calculation - Expon Decay'!U94 -> -11 | Y75: ='GLM Calculation - Expon Decay'!W94 -> 2.577140345 | Z75: 184.3387399 | AC75: 1993 | AD75: 2002 | AE75: 120 | AF75: -11 | AG75: =INDEX(ChainLadder!$B$62:$K$71,Summary!AC75-ChainLadder!$A$62+1,Summary!AE75/12) -> 0 | AH75: 121
M76: ='GLM Calculation - Smooth w Log'!B95 -> 1993 | N76: ='GLM Calculation - Smooth w Log'!C95 -> 2001 | O76: ='GLM Calculation - Smooth w Log'!D95 -> 108 | P76: ='GLM Calculation - Smooth w Log'!U95 -> -6 | Q76: ='GLM Calculation - Smooth w Log'!W95 -> 28.67803842 | R76: 1202.566349 | U76: ='GLM Calculation - Expon Decay'!B95 -> 1993 | V76: ='GLM Calculation - Expon Decay'!C95 -> 2001 | W76: ='GLM Calculation - Expon Decay'!D95 -> 108 | X76: ='GLM Calculation - Expon Decay'!U95 -> -6 | Y76: ='GLM Calculation - Expon Decay'!W95 -> 6.00032093 | Z76: 144.0077024 | AC76: 1993 | AD76: 2001 | AE76: 108 | AF76: -6 | AG76: =INDEX(ChainLadder!$B$62:$K$71,Summary!AC76-ChainLadder!$A$62+1,Summary!AE76/12) -> 69.85478007 | AH76: 5753.94766
M77: ='GLM Calculation - Smooth w Log'!B96 -> 1993 | N77: ='GLM Calculation - Smooth w Log'!C96 -> 2000 | O77: ='GLM Calculation - Smooth w Log'!D96 -> 96 | P77: ='GLM Calculation - Smooth w Log'!U96 -> 32 | Q77: ='GLM Calculation - Smooth w Log'!W96 -> 37.68523959 | R77: 32.32194915 | U77: ='GLM Calculation - Expon Decay'!B96 -> 1993 | V77: ='GLM Calculation - Expon Decay'!C96 -> 2000 | W77: ='GLM Calculation - Expon Decay'!D96 -> 96 | X77: ='GLM Calculation - Expon Decay'!U96 -> 32 | Y77: ='GLM Calculation - Expon Decay'!W96 -> 13.97046588 | Z77: 325.0641004 | AC77: 1993 | AD77: 2000 | AE77: 96 | AF77: 32 | AG77: =INDEX(ChainLadder!$B$62:$K$71,Summary!AC77-ChainLadder!$A$62+1,Summary!AE77/12) -> 16.71606711 | AH77: 233.5986045
M78: ='GLM Calculation - Smooth w Log'!B97 -> 1993 | N78: ='GLM Calculation - Smooth w Log'!C97 -> 1999 | O78: ='GLM Calculation - Smooth w Log'!D97 -> 84 | P78: ='GLM Calculation - Smooth w Log'!U97 -> 29 | Q78: ='GLM Calculation - Smooth w Log'!W97 -> 52.64446027 | R78: 559.0605015 | U78: ='GLM Calculation - Expon Decay'!B97 -> 1993 | V78: ='GLM Calculation - Expon Decay'!C97 -> 1999 | W78: ='GLM Calculation - Expon Decay'!D97 -> 84 | X78: ='GLM Calculation - Expon Decay'!U97 -> 29 | Y78: ='GLM Calculation - Expon Decay'!W97 -> 32.52724634 | Z78: 12.44146675 | AC78: 1993 | AD78: 1999 | AE78: 84 | AF78: 29 | AG78: =INDEX(ChainLadder!$B$62:$K$71,Summary!AC78-ChainLadder!$A$62+1,Summary!AE78/12) -> -51.59971954 | AH78: 6496.31479
M79: ='GLM Calculation - Smooth w Log'!B98 -> 1993 | N79: ='GLM Calculation - Smooth w Log'!C98 -> 1998 | O79: ='GLM Calculation - Smooth w Log'!D98 -> 72 | P79: ='GLM Calculation - Smooth w Log'!U98 -> 78 | Q79: ='GLM Calculation - Smooth w Log'!W98 -> 81.0072803 | R79: 9.043734824 | U79: ='GLM Calculation - Expon Decay'!B98 -> 1993 | V79: ='GLM Calculation - Expon Decay'!C98 -> 1998 | W79: ='GLM Calculation - Expon Decay'!D98 -> 72 | X79: ='GLM Calculation - Expon Decay'!U98 -> 78 | Y79: ='GLM Calculation - Expon Decay'!W98 -> 75.73274673 | Z79: 5.140437373 | AC79: 1993 | AD79: 1998 | AE79: 72 | AF79: 78 | AG79: =INDEX(ChainLadder!$B$62:$K$71,Summary!AC79-ChainLadder!$A$62+1,Summary!AE79/12) -> 127.8421946 | AH79: 2484.244367
M80: ='GLM Calculation - Smooth w Log'!B99 -> 1994 | N80: ='GLM Calculation - Smooth w Log'!C99 -> 2003 | O80: ='GLM Calculation - Smooth w Log'!D99 -> 120 | P80: ='GLM Calculation - Smooth w Log'!U99 -> 1 | Q80: ='GLM Calculation - Smooth w Log'!W99 -> 24.59559168 | R80: 556.7519468 | U80: ='GLM Calculation - Expon Decay'!B99 -> 1994 | V80: ='GLM Calculation - Expon Decay'!C99 -> 2003 | W80: ='GLM Calculation - Expon Decay'!D99 -> 120 | X80: ='GLM Calculation - Expon Decay'!U99 -> 1 | Y80: ='GLM Calculation - Expon Decay'!W99 -> 2.789276718 | Z80: 3.201511172 | AC80: 1994 | AD80: 2003 | AE80: 120 | AF80: 1 | AG80: =INDEX(ChainLadder!$B$62:$K$71,Summary!AC80-ChainLadder!$A$62+1,Summary!AE80/12) -> 0 | AH80: 1
M81: ='GLM Calculation - Smooth w Log'!B100 -> 1994 | N81: ='GLM Calculation - Smooth w Log'!C100 -> 2002 | O81: ='GLM Calculation - Smooth w Log'!D100 -> 108 | P81: ='GLM Calculation - Smooth w Log'!U100 -> 84 | Q81: ='GLM Calculation - Smooth w Log'!W100 -> 30.98493646 | R81: 2810.596962 | U81: ='GLM Calculation - Expon Decay'!B100 -> 1994 | V81: ='GLM Calculation - Expon Decay'!C100 -> 2002 | W81: ='GLM Calculation - Expon Decay'!D100 -> 108 | X81: ='GLM Calculation - Expon Decay'!U100 -> 84 | Y81: ='GLM Calculation - Expon Decay'!W100 -> 6.494235171 | Z81: 6007.143582 | AC81: 1994 | AD81: 2002 | AE81: 108 | AF81: 84 | AG81: =INDEX(ChainLadder!$B$62:$K$71,Summary!AC81-ChainLadder!$A$62+1,Summary!AE81/12) -> 75.57735445 | AH81: 70.94095798
M82: ='GLM Calculation - Smooth w Log'!B101 -> 1994 | N82: ='GLM Calculation - Smooth w Log'!C101 -> 2001 | O82: ='GLM Calculation - Smooth w Log'!D101 -> 96 | P82: ='GLM Calculation - Smooth w Log'!U101 -> 47 | Q82: ='GLM Calculation - Smooth w Log'!W101 -> 40.7166884 | R82: 39.48000471 | U82: ='GLM Calculation - Expon Decay'!B101 -> 1994 | V82: ='GLM Calculation - Expon Decay'!C101 -> 2001 | W82: ='GLM Calculation - Expon Decay'!D101 -> 96 | X82: ='GLM Calculation - Expon Decay'!U101 -> 47 | Y82: ='GLM Calculation - Expon Decay'!W101 -> 15.12043972 | Z82: 1016.306364 | AC82: 1994 | AD82: 2001 | AE82: 96 | AF82: 47 | AG82: =INDEX(ChainLadder!$B$62:$K$71,Summary!AC82-ChainLadder!$A$62+1,Summary!AE82/12) -> 18.08546427 | AH82: 836.0503762
M83: ='GLM Calculation - Smooth w Log'!B102 -> 1994 | N83: ='GLM Calculation - Smooth w Log'!C102 -> 2000 | O83: ='GLM Calculation - Smooth w Log'!D102 -> 84 | P83: ='GLM Calculation - Smooth w Log'!U102 -> -96 | Q83: ='GLM Calculation - Smooth w Log'!W102 -> 56.8792479 | R83: 23372.06444 | U83: ='GLM Calculation - Expon Decay'!B102 -> 1994 | V83: ='GLM Calculation - Expon Decay'!C102 -> 2000 | W83: ='GLM Calculation - Expon Decay'!D102 -> 84 | X83: ='GLM Calculation - Expon Decay'!U102 -> -96 | Y83: ='GLM Calculation - Expon Decay'!W102 -> 35.20471483 | Z83: 17214.67719 | AC83: 1994 | AD83: 2000 | AE83: 84 | AF83: -96 | AG83: =INDEX(ChainLadder!$B$62:$K$71,Summary!AC83-ChainLadder!$A$62+1,Summary!AE83/12) -> -55.82682087 | AH83: 1613.884322
M84: ='GLM Calculation - Smooth w Log'!B103 -> 1994 | N84: ='GLM Calculation - Smooth w Log'!C103 -> 1999 | O84: ='GLM Calculation - Smooth w Log'!D103 -> 72 | P84: ='GLM Calculation - Smooth w Log'!U103 -> 143 | Q84: ='GLM Calculation - Smooth w Log'!W103 -> 87.52360941 | R84: 3077.629913 | U84: ='GLM Calculation - Expon Decay'!B103 -> 1994 | V84: ='GLM Calculation - Expon Decay'!C103 -> 1999 | W84: ='GLM Calculation - Expon Decay'!D103 -> 72 | X84: ='GLM Calculation - Expon Decay'!U103 -> 143 | Y84: ='GLM Calculation - Expon Decay'!W103 -> 81.96666032 | Z84: 3725.068553 | AC84: 1994 | AD84: 1999 | AE84: 72 | AF84: 143 | AG84: =INDEX(ChainLadder!$B$62:$K$71,Summary!AC84-ChainLadder!$A$62+1,Summary!AE84/12) -> 138.3151568 | AH84: 21.94775577
M85: ='GLM Calculation - Smooth w Log'!B104 -> 1994 | N85: ='GLM Calculation - Smooth w Log'!C104 -> 1998 | O85: ='GLM Calculation - Smooth w Log'!D104 -> 60 | P85: ='GLM Calculation - Smooth w Log'!U104 -> 44 | Q85: ='GLM Calculation - Smooth w Log'!W104 -> 160.6676548 | R85: 13611.34169 | U85: ='GLM Calculation - Expon Decay'!B104 -> 1994 | V85: ='GLM Calculation - Expon Decay'!C104 -> 1998 | W85: ='GLM Calculation - Expon Decay'!D104 -> 60 | X85: ='GLM Calculation - Expon Decay'!U104 -> 44 | Y85: ='GLM Calculation - Expon Decay'!W104 -> 190.8418641 | Z85: 21562.53306 | AC85: 1994 | AD85: 1998 | AE85: 60 | AF85: 44 | AG85: =INDEX(ChainLadder!$B$62:$K$71,Summary!AC85-ChainLadder!$A$62+1,Summary!AE85/12) -> 184.5017647 | AH85: 19740.74589
M86: ='GLM Calculation - Smooth w Log'!B105 -> 1995 | N86: ='GLM Calculation - Smooth w Log'!C105 -> 2004 | O86: ='GLM Calculation - Smooth w Log'!D105 -> 120 | P86: ='GLM Calculation - Smooth w Log'!U105 -> 22 | Q86: ='GLM Calculation - Smooth w Log'!W105 -> 22.4886074 | R86: 0.2387371913 | U86: ='GLM Calculation - Expon Decay'!B105 -> 1995 | V86: ='GLM Calculation - Expon Decay'!C105 -> 2004 | W86: ='GLM Calculation - Expon Decay'!D105 -> 120 | X86: ='GLM Calculation - Expon Decay'!U105 -> 22 | Y86: ='GLM Calculation - Expon Decay'!W105 -> 2.548889766 | Z86: 378.3456894 | AC86: 1995 | AD86: 2004 | AE86: 120 | AF86: 22 | AG86: =INDEX(ChainLadder!$B$62:$K$71,Summary!AC86-ChainLadder!$A$62+1,Summary!AE86/12) -> 0 | AH86: 484
M87: ='GLM Calculation - Smooth w Log'!B106 -> 1995 | N87: ='GLM Calculation - Smooth w Log'!C106 -> 2003 | O87: ='GLM Calculation - Smooth w Log'!D106 -> 108 | P87: ='GLM Calculation - Smooth w Log'!U106 -> 73 | Q87: ='GLM Calculation - Smooth w Log'!W106 -> 28.3306082 | R87: 1995.354564 | U87: ='GLM Calculation - Expon Decay'!B106 -> 1995 | V87: ='GLM Calculation - Expon Decay'!C106 -> 2003 | W87: ='GLM Calculation - Expon Decay'!D106 -> 108 | X87: ='GLM Calculation - Expon Decay'!U106 -> 73 | Y87: ='GLM Calculation - Expon Decay'!W106 -> 5.93454549 | Z87: 4497.775189 | AC87: 1995 | AD87: 2003 | AE87: 108 | AF87: 73 | AG87: =INDEX(ChainLadder!$B$62:$K$71,Summary!AC87-ChainLadder!$A$62+1,Summary!AE87/12) -> 69.04934333 | AH87: 15.60768816
M88: ='GLM Calculation - Smooth w Log'!B107 -> 1995 | N88: ='GLM Calculation - Smooth w Log'!C107 -> 2002 | O88: ='GLM Calculation - Smooth w Log'!D107 -> 96 | P88: ='GLM Calculation - Smooth w Log'!U107 -> 67 | Q88: ='GLM Calculation - Smooth w Log'!W107 -> 37.22868845 | R88: 886.3309914 | U88: ='GLM Calculation - Expon Decay'!B107 -> 1995 | V88: ='GLM Calculation - Expon Decay'!C107 -> 2002 | W88: ='GLM Calculation - Expon Decay'!D107 -> 96 | X88: ='GLM Calculation - Expon Decay'!U107 -> 67 | Y88: ='GLM Calculation - Expon Decay'!W107 -> 13.81732182 | Z88: 2828.397259 | AC88: 1995 | AD88: 2002 | AE88: 96 | AF88: 67 | AG88: =INDEX(ChainLadder!$B$62:$K$71,Summary!AC88-ChainLadder!$A$62+1,Summary!AE88/12) -> 16.5233282 | AH88: 2547.894396
M89: ='GLM Calculation - Smooth w Log'!B108 -> 1995 | N89: ='GLM Calculation - Smooth w Log'!C108 -> 2001 | O89: ='GLM Calculation - Smooth w Log'!D108 -> 84 | P89: ='GLM Calculation - Smooth w Log'!U108 -> 46 | Q89: ='GLM Calculation - Smooth w Log'!W108 -> 52.00668038 | R89: 36.08020916 | U89: ='GLM Calculation - Expon Decay'!B108 -> 1995 | V89: ='GLM Calculation - Expon Decay'!C108 -> 2001 | W89: ='GLM Calculation - Expon Decay'!D108 -> 84 | X89: ='GLM Calculation - Expon Decay'!U108 -> 46 | Y89: ='GLM Calculation - Expon Decay'!W108 -> 32.17068309 | Z89: 191.2500062 | AC89: 1995 | AD89: 2001 | AE89: 84 | AF89: 46 | AG89: =INDEX(ChainLadder!$B$62:$K$71,Summary!AC89-ChainLadder!$A$62+1,Summary!AE89/12) -> -51.00476655 | AH89: 9409.924734
M90: ='GLM Calculation - Smooth w Log'!B109 -> 1995 | N90: ='GLM Calculation - Smooth w Log'!C109 -> 2000 | O90: ='GLM Calculation - Smooth w Log'!D109 -> 72 | P90: ='GLM Calculation - Smooth w Log'!U109 -> 27 | Q90: ='GLM Calculation - Smooth w Log'!W109 -> 80.02588902 | R90: 2811.744906 | U90: ='GLM Calculation - Expon Decay'!B109 -> 1995 | V90: ='GLM Calculation - Expon Decay'!C109 -> 2000 | W90: ='GLM Calculation - Expon Decay'!D109 -> 72 | X90: ='GLM Calculation - Expon Decay'!U109 -> 27 | Y90: ='GLM Calculation - Expon Decay'!W109 -> 74.90256535 | Z90: 2294.655767 | AC90: 1995 | AD90: 2000 | AE90: 72 | AF90: 27 | AG90: =INDEX(ChainLadder!$B$62:$K$71,Summary!AC90-ChainLadder!$A$62+1,Summary!AE90/12) -> 126.3681538 | AH90: 9874.029984
M91: ='GLM Calculation - Smooth w Log'!B110 -> 1995 | N91: ='GLM Calculation - Smooth w Log'!C110 -> 1999 | O91: ='GLM Calculation - Smooth w Log'!D110 -> 60 | P91: ='GLM Calculation - Smooth w Log'!U110 -> -49 | Q91: ='GLM Calculation - Smooth w Log'!W110 -> 146.9040411 | R91: 38378.39332 | U91: ='GLM Calculation - Expon Decay'!B110 -> 1995 | V91: ='GLM Calculation - Expon Decay'!C110 -> 1999 | W91: ='GLM Calculation - Expon Decay'!D110 -> 60 | X91: ='GLM Calculation - Expon Decay'!U110 -> -49 | Y91: ='GLM Calculation - Expon Decay'!W110 -> 174.3946276 | Z91: 49905.15962 | AC91: 1995 | AD91: 1999 | AE91: 60 | AF91: -49 | AG91: =INDEX(ChainLadder!$B$62:$K$71,Summary!AC91-ChainLadder!$A$62+1,Summary!AE91/12) -> 168.565383 | AH91: 47334.69586
M92: ='GLM Calculation - Smooth w Log'!B111 -> 1995 | N92: ='GLM Calculation - Smooth w Log'!C111 -> 1998 | O92: ='GLM Calculation - Smooth w Log'!D111 -> 48 | P92: ='GLM Calculation - Smooth w Log'!U111 -> 399 | Q92: ='GLM Calculation - Smooth w Log'!W111 -> 414.9620229 | R92: 254.7861759 | U92: ='GLM Calculation - Expon Decay'!B111 -> 1995 | V92: ='GLM Calculation - Expon Decay'!C111 -> 1998 | W92: ='GLM Calculation - Expon Decay'!D111 -> 48 | X92: ='GLM Calculation - Expon Decay'!U111 -> 399 | Y92: ='GLM Calculation - Expon Decay'!W111 -> 406.0406473 | Z92: 49.57071487 | AC92: 1995 | AD92: 1998 | AE92: 48 | AF92: 399 | AG92: =INDEX(ChainLadder!$B$62:$K$71,Summary!AC92-ChainLadder!$A$62+1,Summary!AE92/12) -> 402.7183401 | AH92: 13.82605285
M93: ='GLM Calculation - Smooth w Log'!B112 -> 1996 | N93: ='GLM Calculation - Smooth w Log'!C112 -> 2005 | O93: ='GLM Calculation - Smooth w Log'!D112 -> 120 | P93: ='GLM Calculation - Smooth w Log'!U112 -> 32 | Q93: ='GLM Calculation - Smooth w Log'!W112 -> 24.4852542 | R93: 56.47140445 | U93: ='GLM Calculation - Expon Decay'!B112 -> 1996 | V93: ='GLM Calculation - Expon Decay'!C112 -> 2005 | W93: ='GLM Calculation - Expon Decay'!D112 -> 120 | X93: ='GLM Calculation - Expon Decay'!U112 -> 32 | Y93: ='GLM Calculation - Expon Decay'!W112 -> 2.775192466 | Z93: 854.0893754 | AC93: 1996 | AD93: 2005 | AE93: 120 | AF93: 32 | AG93: =INDEX(ChainLadder!$B$62:$K$71,Summary!AC93-ChainLadder!$A$62+1,Summary!AE93/12) -> 0 | AH93: 1024
M94: ='GLM Calculation - Smooth w Log'!B113 -> 1996 | N94: ='GLM Calculation - Smooth w Log'!C113 -> 2004 | O94: ='GLM Calculation - Smooth w Log'!D113 -> 108 | P94: ='GLM Calculation - Smooth w Log'!U113 -> 184 | Q94: ='GLM Calculation - Smooth w Log'!W113 -> 30.84593595 | R94: 23456.16734 | U94: ='GLM Calculation - Expon Decay'!B113 -> 1996 | V94: ='GLM Calculation - Expon Decay'!C113 -> 2004 | W94: ='GLM Calculation - Expon Decay'!D113 -> 108 | X94: ='GLM Calculation - Expon Decay'!U113 -> 184 | Y94: ='GLM Calculation - Expon Decay'!W113 -> 6.461443 | Z94: 31519.93922 | AC94: 1996 | AD94: 2004 | AE94: 108 | AF94: 184 | AG94: =INDEX(ChainLadder!$B$62:$K$71,Summary!AC94-ChainLadder!$A$62+1,Summary!AE94/12) -> 75.17987635 | AH94: 11841.81931
M95: ='GLM Calculation - Smooth w Log'!B114 -> 1996 | N95: ='GLM Calculation - Smooth w Log'!C114 -> 2003 | O95: ='GLM Calculation - Smooth w Log'!D114 -> 96 | P95: ='GLM Calculation - Smooth w Log'!U114 -> 102 | Q95: ='GLM Calculation - Smooth w Log'!W114 -> 40.53403059 | R95: 3778.065396 | U95: ='GLM Calculation - Expon Decay'!B114 -> 1996 | V95: ='GLM Calculation - Expon Decay'!C114 -> 2003 | W95: ='GLM Calculation - Expon Decay'!D114 -> 96 | X95: ='GLM Calculation - Expon Decay'!U114 -> 102 | Y95: ='GLM Calculation - Expon Decay'!W114 -> 15.04409015 | Z95: 7561.330258 | AC95: 1996 | AD95: 2003 | AE95: 96 | AF95: 102 | AG95: =INDEX(ChainLadder!$B$62:$K$71,Summary!AC95-ChainLadder!$A$62+1,Summary!AE95/12) -> 17.9903488 | AH95: 7057.621495
M96: ='GLM Calculation - Smooth w Log'!B115 -> 1996 | N96: ='GLM Calculation - Smooth w Log'!C115 -> 2002 | O96: ='GLM Calculation - Smooth w Log'!D115 -> 84 | P96: ='GLM Calculation - Smooth w Log'!U115 -> 227 | Q96: ='GLM Calculation - Smooth w Log'!W115 -> 56.62408376 | R96: 29027.95283 | U96: ='GLM Calculation - Expon Decay'!B115 -> 1996 | V96: ='GLM Calculation - Expon Decay'!C115 -> 2002 | W96: ='GLM Calculation - Expon Decay'!D115 -> 84 | X96: ='GLM Calculation - Expon Decay'!U115 -> 227 | Y96: ='GLM Calculation - Expon Decay'!W115 -> 35.02695117 | Z96: 36853.65148 | AC96: 1996 | AD96: 2002 | AE96: 84 | AF96: 227 | AG96: =INDEX(ChainLadder!$B$62:$K$71,Summary!AC96-ChainLadder!$A$62+1,Summary!AE96/12) -> -55.53321521 | AH96: 79825.0177
M97: ='GLM Calculation - Smooth w Log'!B116 -> 1996 | N97: ='GLM Calculation - Smooth w Log'!C116 -> 2001 | O97: ='GLM Calculation - Smooth w Log'!D116 -> 72 | P97: ='GLM Calculation - Smooth w Log'!U116 -> 331 | Q97: ='GLM Calculation - Smooth w Log'!W116 -> 87.1309726 | R97: 59472.10253 | U97: ='GLM Calculation - Expon Decay'!B116 -> 1996 | V97: ='GLM Calculation - Expon Decay'!C116 -> 2001 | W97: ='GLM Calculation - Expon Decay'!D116 -> 72 | X97: ='GLM Calculation - Expon Decay'!U116 -> 331 | Y97: ='GLM Calculation - Expon Decay'!W116 -> 81.55277559 | Z97: 62223.91776 | AC97: 1996 | AD97: 2001 | AE97: 72 | AF97: 331 | AG97: =INDEX(ChainLadder!$B$62:$K$71,Summary!AC97-ChainLadder!$A$62+1,Summary!AE97/12) -> 137.5877267 | AH97: 37408.30748
M98: ='GLM Calculation - Smooth w Log'!B117 -> 1996 | N98: ='GLM Calculation - Smooth w Log'!C117 -> 2000 | O98: ='GLM Calculation - Smooth w Log'!D117 -> 60 | P98: ='GLM Calculation - Smooth w Log'!U117 -> 463 | Q98: ='GLM Calculation - Smooth w Log'!W117 -> 159.9468889 | R98: 91841.18814 | U98: ='GLM Calculation - Expon Decay'!B117 -> 1996 | V98: ='GLM Calculation - Expon Decay'!C117 -> 2000 | W98: ='GLM Calculation - Expon Decay'!D117 -> 60 | X98: ='GLM Calculation - Expon Decay'!U117 -> 463 | Y98: ='GLM Calculation - Expon Decay'!W117 -> 189.8782219 | Z98: 74595.50566 | AC98: 1996 | AD98: 2000 | AE98: 60 | AF98: 463 | AG98: =INDEX(ChainLadder!$B$62:$K$71,Summary!AC98-ChainLadder!$A$62+1,Summary!AE98/12) -> 183.5314289 | AH98: 78102.68222
M99: ='GLM Calculation - Smooth w Log'!B118 -> 1996 | N99: ='GLM Calculation - Smooth w Log'!C118 -> 1999 | O99: ='GLM Calculation - Smooth w Log'!D118 -> 48 | P99: ='GLM Calculation - Smooth w Log'!U118 -> 337 | Q99: ='GLM Calculation - Smooth w Log'!W118 -> 451.8043485 | R99: 13180.03843 | U99: ='GLM Calculation - Expon Decay'!B118 -> 1996 | V99: ='GLM Calculation - Expon Decay'!C118 -> 1999 | W99: ='GLM Calculation - Expon Decay'!D118 -> 48 | X99: ='GLM Calculation - Expon Decay'!U118 -> 337 | Y99: ='GLM Calculation - Expon Decay'!W118 -> 442.0908902 | Z99: 11044.09521 | AC99: 1996 | AD99: 1999 | AE99: 48 | AF99: 337 | AG99: =INDEX(ChainLadder!$B$62:$K$71,Summary!AC99-ChainLadder!$A$62+1,Summary!AE99/12) -> 438.4736125 | AH99: 10296.89404
M100: ='GLM Calculation - Smooth w Log'!B119 -> 1996 | N100: ='GLM Calculation - Smooth w Log'!C119 -> 1998 | O100: ='GLM Calculation - Smooth w Log'!D119 -> 36 | P100: ='GLM Calculation - Smooth w Log'!U119 -> 948 | Q100: ='GLM Calculation - Smooth w Log'!W119 -> 588.8468773 | R100: 128990.9656 | U100: ='GLM Calculation - Expon Decay'!B119 -> 1996 | V100: ='GLM Calculation - Expon Decay'!C119 -> 1998 | W100: ='GLM Calculation - Expon Decay'!D119 -> 36 | X100: ='GLM Calculation - Expon Decay'!U119 -> 948 | Y100: ='GLM Calculation - Expon Decay'!W119 -> 588.8468773 | Z100: 128990.9656 | AC100: 1996 | AD100: 1998 | AE100: 36 | AF100: 948 | AG100: =INDEX(ChainLadder!$B$62:$K$71,Summary!AC100-ChainLadder!$A$62+1,Summary!AE100/12) -> 588.8468773 | AH100: 128990.9656
M101: ='GLM Calculation - Smooth w Log'!B120 -> 1997 | N101: ='GLM Calculation - Smooth w Log'!C120 -> 2006 | O101: ='GLM Calculation - Smooth w Log'!D120 -> 120 | P101: ='GLM Calculation - Smooth w Log'!U120 -> 309 | Q101: ='GLM Calculation - Smooth w Log'!W120 -> 31.06526656 | R101: 77247.71605 | U101: ='GLM Calculation - Expon Decay'!B120 -> 1997 | V101: ='GLM Calculation - Expon Decay'!C120 -> 2006 | W101: ='GLM Calculation - Expon Decay'!D120 -> 120 | X101: ='GLM Calculation - Expon Decay'!U120 -> 309 | Y101: ='GLM Calculation - Expon Decay'!W120 -> 3.520980139 | Z101: 93317.43158 | AC101: 1997 | AD101: 2006 | AE101: 120 | AF101: 309 | AG101: =INDEX(ChainLadder!$B$62:$K$71,Summary!AC101-ChainLadder!$A$62+1,Summary!AE101/12) -> 0 | AH101: 95481
M102: ='GLM Calculation - Smooth w Log'!B121 -> 1997 | N102: ='GLM Calculation - Smooth w Log'!C121 -> 2005 | O102: ='GLM Calculation - Smooth w Log'!D121 -> 108 | P102: ='GLM Calculation - Smooth w Log'!U121 -> 473 | Q102: ='GLM Calculation - Smooth w Log'!W121 -> 39.1352777 | R102: 188238.5973 | U102: ='GLM Calculation - Expon Decay'!B121 -> 1997 | V102: ='GLM Calculation - Expon Decay'!C121 -> 2005 | W102: ='GLM Calculation - Expon Decay'!D121 -> 108 | X102: ='GLM Calculation - Expon Decay'!U121 -> 473 | Y102: ='GLM Calculation - Expon Decay'!W121 -> 8.197850329 | Z102: 216041.0383 | AC102: 1997 | AD102: 2005 | AE102: 108 | AF102: 473 | AG102: =INDEX(ChainLadder!$B$62:$K$71,Summary!AC102-ChainLadder!$A$62+1,Summary!AE102/12) -> 95.38324087 | AH102: 142594.4168
M103: ='GLM Calculation - Smooth w Log'!B122 -> 1997 | N103: ='GLM Calculation - Smooth w Log'!C122 -> 2004 | O103: ='GLM Calculation - Smooth w Log'!D122 -> 96 | P103: ='GLM Calculation - Smooth w Log'!U122 -> 517 | Q103: ='GLM Calculation - Smooth w Log'!W122 -> 51.42688962 | R103: 216758.3211 | U103: ='GLM Calculation - Expon Decay'!B122 -> 1997 | V103: ='GLM Calculation - Expon Decay'!C122 -> 2004 | W103: ='GLM Calculation - Expon Decay'!D122 -> 96 | X103: ='GLM Calculation - Expon Decay'!U122 -> 517 | Y103: ='GLM Calculation - Expon Decay'!W122 -> 19.08694379 | Z103: 247917.4115 | AC103: 1997 | AD103: 2004 | AE103: 96 | AF103: 517 | AG103: =INDEX(ChainLadder!$B$62:$K$71,Summary!AC103-ChainLadder!$A$62+1,Summary!AE103/12) -> 22.82496136 | AH103: 244208.9688
M104: ='GLM Calculation - Smooth w Log'!B123 -> 1997 | N104: ='GLM Calculation - Smooth w Log'!C123 -> 2003 | O104: ='GLM Calculation - Smooth w Log'!D123 -> 84 | P104: ='GLM Calculation - Smooth w Log'!U123 -> 496 | Q104: ='GLM Calculation - Smooth w Log'!W123 -> 71.84088193 | R104: 179910.9574 | U104: ='GLM Calculation - Expon Decay'!B123 -> 1997 | V104: ='GLM Calculation - Expon Decay'!C123 -> 2003 | W104: ='GLM Calculation - Expon Decay'!D123 -> 84 | X104: ='GLM Calculation - Expon Decay'!U123 -> 496 | Y104: ='GLM Calculation - Expon Decay'!W123 -> 44.4398725 | Z104: 203906.5487 | AC104: 1997 | AD104: 2003 | AE104: 84 | AF104: 496 | AG104: =INDEX(ChainLadder!$B$62:$K$71,Summary!AC104-ChainLadder!$A$62+1,Summary!AE104/12) -> -70.45686026 | AH104: 320873.3745
M105: ='GLM Calculation - Smooth w Log'!B124 -> 1997 | N105: ='GLM Calculation - Smooth w Log'!C124 -> 2002 | O105: ='GLM Calculation - Smooth w Log'!D124 -> 72 | P105: ='GLM Calculation - Smooth w Log'!U124 -> 368 | Q105: ='GLM Calculation - Smooth w Log'!W124 -> 110.5459991 | R105: 66282.56256 | U105: ='GLM Calculation - Expon Decay'!B124 -> 1997 | V105: ='GLM Calculation - Expon Decay'!C124 -> 2002 | W105: ='GLM Calculation - Expon Decay'!D124 -> 72 | X105: ='GLM Calculation - Expon Decay'!U124 -> 368 | Y105: ='GLM Calculation - Expon Decay'!W124 -> 103.4687527 | Z105: 69976.78077 | AC105: 1997 | AD105: 2002 | AE105: 72 | AF105: 368 | AG105: =INDEX(ChainLadder!$B$62:$K$71,Summary!AC105-ChainLadder!$A$62+1,Summary!AE105/12) -> 174.5621822 | AH105: 37418.18936
M106: ='GLM Calculation - Smooth w Log'!B125 -> 1997 | N106: ='GLM Calculation - Smooth w Log'!C125 -> 2001 | O106: ='GLM Calculation - Smooth w Log'!D125 -> 60 | P106: ='GLM Calculation - Smooth w Log'!U125 -> 898 | Q106: ='GLM Calculation - Smooth w Log'!W125 -> 202.9300043 | R106: 483122.2989 | U106: ='GLM Calculation - Expon Decay'!B125 -> 1997 | V106: ='GLM Calculation - Expon Decay'!C125 -> 2001 | W106: ='GLM Calculation - Expon Decay'!D125 -> 60 | X106: ='GLM Calculation - Expon Decay'!U125 -> 898 | Y106: ='GLM Calculation - Expon Decay'!W125 -> 240.9048945 | Z106: 431773.9777 | AC106: 1997 | AD106: 2001 | AE106: 60 | AF106: 898 | AG106: =INDEX(ChainLadder!$B$62:$K$71,Summary!AC106-ChainLadder!$A$62+1,Summary!AE106/12) -> 232.8525045 | AH106: 442421.1908
M107: ='GLM Calculation - Smooth w Log'!B126 -> 1997 | N107: ='GLM Calculation - Smooth w Log'!C126 -> 2000 | O107: ='GLM Calculation - Smooth w Log'!D126 -> 48 | P107: ='GLM Calculation - Smooth w Log'!U126 -> 1008 | Q107: ='GLM Calculation - Smooth w Log'!W126 -> 573.2193918 | R107: 189034.1773 | U107: ='GLM Calculation - Expon Decay'!B126 -> 1997 | V107: ='GLM Calculation - Expon Decay'!C126 -> 2000 | W107: ='GLM Calculation - Expon Decay'!D126 -> 48 | X107: ='GLM Calculation - Expon Decay'!U126 -> 1008 | Y107: ='GLM Calculation - Expon Decay'!W126 -> 560.8956002 | Z107: 199902.3443 | AC107: 1997 | AD107: 2000 | AE107: 48 | AF107: 1008 | AG107: =INDEX(ChainLadder!$B$62:$K$71,Summary!AC107-ChainLadder!$A$62+1,Summary!AE107/12) -> 556.3062382 | AH107: 204027.2545
M108: ='GLM Calculation - Smooth w Log'!B127 -> 1997 | N108: ='GLM Calculation - Smooth w Log'!C127 -> 1999 | O108: ='GLM Calculation - Smooth w Log'!D127 -> 36 | P108: ='GLM Calculation - Smooth w Log'!U127 -> 2034 | Q108: ='GLM Calculation - Smooth w Log'!W127 -> 747.0898631 | R108: 1656137.701 | U108: ='GLM Calculation - Expon Decay'!B127 -> 1997 | V108: ='GLM Calculation - Expon Decay'!C127 -> 1999 | W108: ='GLM Calculation - Expon Decay'!D127 -> 36 | X108: ='GLM Calculation - Expon Decay'!U127 -> 2034 | Y108: ='GLM Calculation - Expon Decay'!W127 -> 747.0898631 | Z108: 1656137.701 | AC108: 1997 | AD108: 1999 | AE108: 36 | AF108: 2034 | AG108: =INDEX(ChainLadder!$B$62:$K$71,Summary!AC108-ChainLadder!$A$62+1,Summary!AE108/12) -> 747.0898631 | AH108: 1656137.701
M109: ='GLM Calculation - Smooth w Log'!B128 -> 1997 | N109: ='GLM Calculation - Smooth w Log'!C128 -> 1998 | O109: ='GLM Calculation - Smooth w Log'!D128 -> 24 | P109: ='GLM Calculation - Smooth w Log'!U128 -> 6512 | Q109: ='GLM Calculation - Smooth w Log'!W128 -> 6177.061788 | R109: 112183.6056 | U109: ='GLM Calculation - Expon Decay'!B128 -> 1997 | V109: ='GLM Calculation - Expon Decay'!C128 -> 1998 | W109: ='GLM Calculation - Expon Decay'!D128 -> 24 | X109: ='GLM Calculation - Expon Decay'!U128 -> 6512 | Y109: ='GLM Calculation - Expon Decay'!W128 -> 6177.061788 | Z109: 112183.6056 | AC109: 1997 | AD109: 1998 | AE109: 24 | AF109: 6512 | AG109: =INDEX(ChainLadder!$B$62:$K$71,Summary!AC109-ChainLadder!$A$62+1,Summary!AE109/12) -> 6177.061788 | AH109: 112183.6056

Sheet Validation Data
A2: Cumulative | P2: Tabular Format - for GLM
B3: 12 | C3: =B3+12 -> 24 | D3: =C3+12 -> 36 | E3: 48 | F3: 60 | G3: 72 | H3: 84 | I3: 96 | J3: 108 | K3: 120 | M3: Index | N3: ID | O3: Year | P3: Age | Q3: Wt = EP | R3: Y = Loss | S3: Incr LR
A4: 1988 | B4: 267 | C4: 444 | D4: 415 | E4: 582 | F4: 611 | G4: 631 | H4: 581 | I4: 581 | J4: 581 | K4: 581 | W4: End | X4: From
A5: 1989 | B5: 2071 | C5: 3018 | D5: 1778 | E5: 1826 | F5: 1911 | G5: 1971 | H5: 1980 | I5: 1970 | J5: 1981 | K5: 1994 | M5: 1 | N5: =O5&"_"&P5 -> 1989_120 | O5: =VLOOKUP(M5,$X$5:$Y$13,2) -> 1989 | P5: =IF(O5<>O4,12*(1999-O5),P5+12) -> 120 | Q5: 1 | R5: =INDEX($B$19:$K$27,$O5-$O$5+1,$P5/12) -> 13 | U5: 1989 | V5: 1 | W5: 1 | X5: =W5 -> 1 | Y5: 1989
A6: 1990 | B6: 4183 | C6: 4097 | D6: 5074 | E6: 5166 | F6: 5275 | G6: 5281 | H6: 5184 | I6: 5202 | J6: 5183 | K6: 5176 | M6: =M5+1 -> 2 | N6: =O6&"_"&P6 -> 1990_108 | O6: 1990 | P6: =IF(O6<>O5,12*(1999-O6),P6+12) -> 108 | Q6: 1 | R6: =INDEX($B$19:$K$27,$O6-$O$5+1,$P6/12) -> -19 | U6: 1990 | V6: 2 | W6: =W5+V6 -> 3 | X6: =W5+1 -> 2 | Y6: 1990
A7: 1991 | B7: 3837 | C7: 5424 | D7: 5995 | E7: 6300 | F7: 6515 | G7: 6590 | H7: 6682 | I7: 6693 | J7: 6707 | K7: 6712 | M7: =M6+1 -> 3 | N7: 1990_120 | O7: 1990 | P7: =IF(O7<>O6,12*(1999-O7),P6+12) -> 120 | Q7: 1 | R7: -7 | U7: 1991 | V7: 3 | W7: =W6+V7 -> 6 | X7: 4 | Y7: 1991
A8: 1992 | B8: 9195 | C8: 13789 | D8: 14518 | E8: 14655 | F8: 14540 | G8: 14608 | H8: 14633 | I8: 14805 | J8: 14865 | K8: 14843 | M8: 4 | N8: 1991_96 | O8: 1991 | P8: =IF(O8<>O7,12*(1999-O8),P7+12) -> 96 | Q8: 1 | R8: 11 | U8: 1992 | V8: 4 | W8: 10 | X8: 7 | Y8: 1992
A9: 1993 | B9: 10839 | C9: 14865 | D9: 15703 | E9: 15954 | F9: 16107 | G9: 16185 | H9: 16214 | I9: 16246 | J9: 16240 | K9: 16229 | M9: 5 | N9: 1991_108 | O9: 1991 | P9: 108 | Q9: 1 | R9: 14 | U9: 1993 | V9: 5 | W9: 15 | X9: 11 | Y9: 1993
A10: 1994 | B10: 9949 | C10: 16106 | D10: 16664 | E10: 17242 | F10: 17286 | G10: 17429 | H10: 17333 | I10: 17380 | J10: 17464 | K10: 17465 | M10: 6 | N10: 1991_120 | O10: 1991 | P10: 120 | Q10: 1 | R10: 5 | U10: 1994 | V10: 6 | W10: 21 | X10: 16 | Y10: 1994
A11: 1995 | B11: 10114 | C11: 15094 | D11: 15350 | E11: 15749 | F11: 15700 | G11: 15727 | H11: 15773 | I11: 15840 | J11: 15913 | K11: 15935 | M11: 7 | N11: 1992_84 | O11: 1992 | P11: 84 | Q11: 1 | R11: 25 | U11: 1995 | V11: 7 | W11: 28 | X11: 22 | Y11: 1995
A12: 1996 | B12: 11644 | C12: 16124 | D12: 17072 | E12: 17409 | F12: 17872 | G12: 18203 | H12: 18430 | I12: 18532 | J12: 18716 | K12: 18748 | M12: 8 | N12: 1992_96 | O12: 1992 | P12: 96 | Q12: 1 | R12: 172 | U12: 1996 | V12: 8 | W12: 36 | X12: 29 | Y12: 1996
A13: 1997 | B13: 14280 | C13: 20792 | D13: 22826 | E13: 23834 | F13: 24732 | G13: 25100 | H13: 25596 | I13: 26113 | J13: 26586 | K13: 26895 | M13: 9 | N13: 1992_108 | O13: 1992 | P13: 108 | Q13: 1 | R13: 60 | U13: 1997 | V13: 9 | W13: 45 | X13: 37 | Y13: 1997
M14: 10 | N14: 1992_120 | O14: 1992 | P14: 120 | Q14: 1 | R14: -22
M15: 11 | N15: 1993_72 | O15: 1993 | P15: 72 | Q15: 1 | R15: 78
M16: 12 | N16: 1993_84 | O16: 1993 | P16: 84 | Q16: 1 | R16: 29
A17: Incremental | B17: 12 | C17: =B17+12 -> 24 | D17: =C17+12 -> 36 | E17: =D17+12 -> 48 | F17: =E17+12 -> 60 | G17: =F17+12 -> 72 | H17: =G17+12 -> 84 | I17: =H17+12 -> 96 | J17: =I17+12 -> 108 | K17: =J17+12 -> 120 | M17: 13 | N17: 1993_96 | O17: 1993 | P17: 96 | Q17: 1 | R17: 32
A18: 1988 | B18: =B4 -> 267 | C18: =C4-B4 -> 177 | D18: =D4-C4 -> -29 | E18: 167 | F18: 29 | G18: 20 | H18: -50 | I18: 0 | J18: 0 | K18: 0 | M18: 14 | N18: 1993_108 | O18: 1993 | P18: 108 | Q18: 1 | R18: -6
A19: 1989 | B19: =B5 -> 2071 | C19: =C5-B5 -> 947 | D19: -1240 | E19: 48 | F19: 85 | G19: 60 | H19: 9 | I19: -10 | J19: 11 | K19: 13 | M19: 15 | N19: 1993_120 | O19: 1993 | P19: 120 | Q19: 1 | R19: -11
A20: 1990 | B20: 4183 | C20: -86 | D20: 977 | E20: 92 | F20: 109 | G20: 6 | H20: -97 | I20: 18 | J20: -19 | K20: -7 | M20: 16 | N20: 1994_60 | O20: 1994 | P20: 60 | Q20: 1 | R20: 44
A21: 1991 | B21: 3837 | C21: 1587 | D21: 571 | E21: 305 | F21: 215 | G21: 75 | H21: 92 | I21: 11 | J21: 14 | K21: 5 | M21: 17 | N21: 1994_72 | O21: 1994 | P21: 72 | Q21: 1 | R21: 143
A22: 1992 | B22: 9195 | C22: 4594 | D22: 729 | E22: 137 | F22: -115 | G22: 68 | H22: 25 | I22: 172 | J22: 60 | K22: -22 | M22: 18 | N22: 1994_84 | O22: 1994 | P22: 84 | Q22: 1 | R22: -96
A23: 1993 | B23: 10839 | C23: 4026 | D23: 838 | E23: 251 | F23: 153 | G23: 78 | H23: 29 | I23: 32 | J23: -6 | K23: -11 | M23: 19 | N23: 1994_96 | O23: 1994 | P23: 96 | Q23: 1 | R23: 47
A24: 1994 | B24: 9949 | C24: 6157 | D24: 558 | E24: 578 | F24: 44 | G24: 143 | H24: -96 | I24: 47 | J24: 84 | K24: 1 | M24: 20 | N24: 1994_108 | O24: 1994 | P24: 108 | Q24: 1 | R24: 84
A25: 1995 | B25: 10114 | C25: 4980 | D25: 256 | E25: 399 | F25: -49 | G25: 27 | H25: 46 | I25: 67 | J25: 73 | K25: 22 | M25: 21 | N25: 1994_120 | O25: 1994 | P25: 120 | Q25: 1 | R25: 1
A26: 1996 | B26: 11644 | C26: 4480 | D26: 948 | E26: 337 | F26: 463 | G26: 331 | H26: 227 | I26: 102 | J26: 184 | K26: 32 | M26: 22 | N26: 1995_48 | O26: 1995 | P26: 48 | Q26: 1 | R26: 399
A27: 1997 | B27: 14280 | C27: 6512 | D27: 2034 | E27: 1008 | F27: 898 | G27: 368 | H27: 496 | I27: 517 | J27: 473 | K27: 309 | M27: 23 | N27: 1995_60 | O27: 1995 | P27: 60 | Q27: 1 | R27: -49
M28: 24 | N28: 1995_72 | O28: 1995 | P28: 72 | Q28: 1 | R28: 27
M29: 25 | N29: 1995_84 | O29: 1995 | P29: 84 | Q29: 1 | R29: 46
M30: 26 | N30: 1995_96 | O30: 1995 | P30: 96 | Q30: 1 | R30: 67
M31: 27 | N31: 1995_108 | O31: 1995 | P31: 108 | Q31: 1 | R31: 73
M32: 28 | N32: 1995_120 | O32: 1995 | P32: 120 | Q32: 1 | R32: 22
M33: 29 | N33: 1996_36 | O33: 1996 | P33: 36 | Q33: 1 | R33: 948
M34: 30 | N34: 1996_48 | O34: 1996 | P34: 48 | Q34: 1 | R34: 337
M35: 31 | N35: 1996_60 | O35: 1996 | P35: 60 | Q35: 1 | R35: 463
M36: 32 | N36: 1996_72 | O36: 1996 | P36: 72 | Q36: 1 | R36: 331
M37: 33 | N37: 1996_84 | O37: 1996 | P37: 84 | Q37: 1 | R37: 227
M38: =M37+1 -> 34 | N38: 1996_96 | O38: 1996 | P38: 96 | Q38: 1 | R38: 102
M39: 35 | N39: 1996_108 | O39: 1996 | P39: 108 | Q39: 1 | R39: 184
M40: 36 | N40: 1996_120 | O40: 1996 | P40: 120 | Q40: 1 | R40: 32
M41: 37 | N41: 1997_24 | O41: 1997 | P41: 24 | Q41: 1 | R41: 6512
M42: 38 | N42: 1997_36 | O42: 1997 | P42: 36 | Q42: 1 | R42: 2034
M43: 39 | N43: 1997_48 | O43: 1997 | P43: 48 | Q43: 1 | R43: 1008
M44: 40 | N44: 1997_60 | O44: 1997 | P44: 60 | Q44: 1 | R44: 898
M45: 41 | N45: 1997_72 | O45: 1997 | P45: 72 | Q45: 1 | R45: 368
M46: 42 | N46: 1997_84 | O46: 1997 | P46: 84 | Q46: 1 | R46: 496
M47: 43 | N47: 1997_96 | O47: 1997 | P47: 96 | Q47: 1 | R47: 517
M48: 44 | N48: 1997_108 | O48: 1997 | P48: 108 | Q48: 1 | R48: 473
M49: 45 | N49: 1997_120 | O49: 1997 | P49: 120 | Q49: 1 | R49: 309

Sheet ChainLadder
C2: Actual Development Triangle
B5: Actual Incremental Triangle
B6: ="0-"&TEXT(B19,"#") -> 0-12 | C6: =TEXT(B19,"#")&"-"&TEXT(C19,"#") -> 12-24 | D6: 24-36 | E6: 36-48 | F6: 48-60 | G6: 60-72 | H6: 72-84 | I6: 84-96 | J6: 96-108 | K6: 108-120
A7: ='Source Data'!A8 -> 1988 | B7: ='Source Data'!B20 -> 267 | C7: ='Source Data'!C20 -> 177 | D7: ='Source Data'!D20 -> -29 | E7: ='Source Data'!E20 -> 167 | F7: ='Source Data'!F20 -> 29 | G7: ='Source Data'!G20 -> 20 | H7: ='Source Data'!H20 -> -50 | I7: ='Source Data'!I20 -> 0 | J7: ='Source Data'!J20 -> 0 | K7: ='Source Data'!K20 -> 0
A8: ='Source Data'!A9 -> 1989 | B8: ='Source Data'!B21 -> 2071 | C8: ='Source Data'!C21 -> 947 | D8: ='Source Data'!D21 -> -1240 | E8: ='Source Data'!E21 -> 48 | F8: ='Source Data'!F21 -> 85 | G8: ='Source Data'!G21 -> 60 | H8: ='Source Data'!H21 -> 9 | I8: ='Source Data'!I21 -> -10 | J8: ='Source Data'!J21 -> 11
A9: ='Source Data'!A10 -> 1990 | B9: ='Source Data'!B22 -> 4183 | C9: ='Source Data'!C22 -> -86 | D9: ='Source Data'!D22 -> 977 | E9: ='Source Data'!E22 -> 92 | F9: ='Source Data'!F22 -> 109 | G9: ='Source Data'!G22 -> 6 | H9: ='Source Data'!H22 -> -97 | I9: ='Source Data'!I22 -> 18
A10: ='Source Data'!A11 -> 1991 | B10: ='Source Data'!B23 -> 3837 | C10: ='Source Data'!C23 -> 1587 | D10: ='Source Data'!D23 -> 571 | E10: ='Source Data'!E23 -> 305 | F10: ='Source Data'!F23 -> 215 | G10: ='Source Data'!G23 -> 75 | H10: ='Source Data'!H23 -> 92
A11: ='Source Data'!A12 -> 1992 | B11: ='Source Data'!B24 -> 9195 | C11: ='Source Data'!C24 -> 4594 | D11: ='Source Data'!D24 -> 729 | E11: ='Source Data'!E24 -> 137 | F11: ='Source Data'!F24 -> -115 | G11: ='Source Data'!G24 -> 68
A12: ='Source Data'!A13 -> 1993 | B12: ='Source Data'!B25 -> 10839 | C12: ='Source Data'!C25 -> 4026 | D12: ='Source Data'!D25 -> 838 | E12: ='Source Data'!E25 -> 251 | F12: ='Source Data'!F25 -> 153
A13: ='Source Data'!A14 -> 1994 | B13: ='Source Data'!B26 -> 9949 | C13: ='Source Data'!C26 -> 6157 | D13: ='Source Data'!D26 -> 558 | E13: ='Source Data'!E26 -> 578
A14: ='Source Data'!A15 -> 1995 | B14: ='Source Data'!B27 -> 10114 | C14: ='Source Data'!C27 -> 4980 | D14: ='Source Data'!D27 -> 256
A15: ='Source Data'!A16 -> 1996 | B15: ='Source Data'!B28 -> 11644 | C15: ='Source Data'!C28 -> 4480
A16: ='Source Data'!A17 -> 1997 | B16: ='Source Data'!B29 -> 14280
B18: Actual Cumulative Triangle
B19: 12 | C19: =B19+12 -> 24 | D19: =C19+12 -> 36 | E19: 48 | F19: 60 | G19: 72 | H19: 84 | I19: 96 | J19: 108 | K19: 120
A20: =A7 -> 1988 | B20: =B7 -> 267 | C20: =B20+C7 -> 444 | D20: 415 | E20: 582 | F20: 611 | G20: 631 | H20: 581 | I20: 581 | J20: 581 | K20: 581
A21: =A8 -> 1989 | B21: 2071 | C21: 3018 | D21: 1778 | E21: 1826 | F21: 1911 | G21: 1971 | H21: 1980 | I21: 1970 | J21: 1981
A22: 1990 | B22: 4183 | C22: 4097 | D22: 5074 | E22: 5166 | F22: 5275 | G22: 5281 | H22: 5184 | I22: 5202
A23: 1991 | B23: 3837 | C23: 5424 | D23: 5995 | E23: 6300 | F23: 6515 | G23: 6590 | H23: 6682
A24: 1992 | B24: 9195 | C24: =B24+C11 -> 13789 | D24: =C24+D11 -> 14518 | E24: =D24+E11 -> 14655 | F24: =E24+F11 -> 14540 | G24: =F24+G11 -> 14608
A25: 1993 | B25: 10839 | C25: =B25+C12 -> 14865 | D25: =C25+D12 -> 15703 | E25: =D25+E12 -> 15954 | F25: =E25+F12 -> 16107
A26: 1994 | B26: 9949 | C26: =B26+C13 -> 16106 | D26: =C26+D13 -> 16664 | E26: =D26+E13 -> 17242
A27: 1995 | B27: 10114 | C27: =B27+C14 -> 15094 | D27: =C27+D14 -> 15350
A28: 1996 | B28: 11644 | C28: =B28+C15 -> 16124
A29: 1997 | B29: 14280
C32: Age-to-Age Factors
A33: =A20 -> 1988 | B33: =C20/B20 -> 1.662921348 | C33: 0.9346846847 | D33: 1.402409639 | E33: 1.049828179 | F33: 1.032733224 | G33: 0.9207606973 | H33: 1 | I33: 1 | J33: 1
A34: =A21 -> 1989 | B34: 1.457267021 | C34: 0.5891318754 | D34: 1.026996625 | E34: 1.046549836 | F34: 1.031397174 | G34: 1.00456621 | H34: 0.9949494949 | I34: 1.005583756
A35: 1990 | B35: 0.9794405929 | C35: 1.238467171 | D35: 1.018131652 | E35: 1.021099497 | F35: 1.001137441 | G35: 0.9816322666 | H35: 1.003472222
A36: 1991 | B36: 1.413604378 | C36: 1.105272861 | D36: 1.05087573 | E36: 1.034126984 | F36: 1.011511896 | G36: 1.013960546
A37: 1992 | B37: =C24/B24 -> 1.499619358 | C37: =D24/C24 -> 1.052868228 | D37: =E24/D24 -> 1.009436562 | E37: =F24/E24 -> 0.9921528489 | F37: =G24/F24 -> 1.004676754
A38: 1993 | B38: =C25/B25 -> 1.371436479 | C38: =D25/C25 -> 1.056374033 | D38: =E25/D25 -> 1.015984207 | E38: =F25/E25 -> 1.009590071
A39: 1994 | B39: =C26/B26 -> 1.618856166 | C39: =D26/C26 -> 1.034645474 | D39: =E26/D26 -> 1.03468555
A40: 1995 | B40: =C27/B27 -> 1.492386791 | C40: =D27/C27 -> 1.016960382
A41: 1996 | B41: =C28/B28 -> 1.384747509
A43: ATA | B43: =SUM(C$20:C28)/SUM(B$20:B28) -> 1.432567352 | C43: =SUM(D$20:D27)/SUM(C$20:C27) -> 1.036519901 | D43: =SUM(E$20:E26)/SUM(D$20:D26) -> 1.026235722 | E43: =SUM(F$20:F25)/SUM(E$20:E25) -> 1.010700717 | F43: =SUM(G$20:G24)/SUM(F$20:F24) -> 1.007937058 | G43: =SUM(H$20:H23)/SUM(G$20:G23) -> 0.9968216679 | H43: =SUM(I$20:I22)/SUM(H$20:H22) -> 1.001032924 | I43: =SUM(J$20:J21)/SUM(I$20:I21) -> 1.004312034 | J43: =SUM(K$20:K20)/SUM(J$20:J20) -> 1
A44: LDF | B44: =B43*C44 -> 1.555715961 | C44: 1.085963573 | D44: 1.047701614 | E44: 1.020917116 | F44: 1.010108234 | G44: 1.002154079 | H44: 1.005349413 | I44: 1.004312034 | J44: =J43*K44 -> 1 | K44: 1
A45: Increm | B45: =1/B44 -> 0.6427908598 | C45: =1/C44-1/B44 -> 0.2780503402 | D45: =1/D44-1/C44 -> 0.03362902909 | E45: 0.02504121605 | F45: 0.0104814749 | G45: 0.007857631315 | H45: -0.003171500405 | I45: 0.001027428329 | J45: 0.004293520687 | K45: 0
B47: Cumulative Triangle
B48: =B19 -> 12 | C48: =C19 -> 24 | D48: 36 | E48: 48 | F48: 60 | G48: 72 | H48: 84 | I48: 96 | J48: 108 | K48: 120
A49: =A20 -> 1988 | B49: =B20 -> 267 | C49: 444 | D49: 415 | E49: 582 | F49: 611 | G49: 631 | H49: 581 | I49: 581 | J49: 581 | K49: 581
A50: 1989 | B50: =B21 -> 2071 | C50: 3018 | D50: 1778 | E50: 1826 | F50: 1911 | G50: 1971 | H50: 1980 | I50: 1970 | J50: 1981 | K50: =J50*J$43 -> 1981
A51: 1990 | B51: 4183 | C51: 4097 | D51: 5074 | E51: 5166 | F51: 5275 | G51: 5281 | H51: 5184 | I51: 5202 | J51: 5224.431203 | K51: 5224.431203
A52: 1991 | B52: 3837 | C52: 5424 | D52: 5995 | E52: 6300 | F52: 6515 | G52: 6590 | H52: 6682 | I52: 6688.902001 | J52: 6717.744777 | K52: 6717.744777
A53: 1992 | B53: 9195 | C53: 13789 | D53: 14518 | E53: 14655 | F53: 14540 | G53: 14608 | H53: 14561.57093 | I53: 14576.61193 | J53: 14639.46678 | K53: 14639.46678
A54: 1993 | B54: 10839 | C54: 14865 | D54: 15703 | E54: 15954 | F54: 16107 | G54: 16234.84219 | H54: 16183.24248 | I54: 16199.95854 | J54: 16269.81332 | K54: 16269.81332
A55: 1994 | B55: 9949 | C55: 16106 | D55: 16664 | E55: 17242 | F55: 17426.50176 | G55: 17564.81692 | H55: 17508.9901 | I55: 17527.07556 | J55: 17602.65292 | K55: 17602.65292
A56: 1995 | B56: 10114 | C56: 15094 | D56: 15350 | E56: 15752.71834 | F56: 15921.28372 | G56: 16047.65188 | H56: 15996.64711 | I56: 16013.17044 | J56: 16082.21978 | K56: 16082.21978
A57: 1996 | B57: 11644 | C57: 16124 | D57: =C57*C$43 -> 16712.84688 | E57: 17151.32049 | F57: 17334.85192 | G57: 17472.43965 | H57: 17416.90643 | I57: 17434.89678 | J57: 17510.07666 | K57: 17510.07666
A58: 1997 | B58: 14280 | C58: =B58*B$43 -> 20457.06179 | D58: =C58*C$43 -> 21204.15165 | E58: 21760.45789 | F58: 21993.31039 | G58: 22167.87258 | H58: 22097.41572 | I58: 22120.24068 | J58: 22215.62392 | K58: 22215.62392
B60: Incremental Triangle
B61: =B48 -> 12 | C61: =C48 -> 24 | D61: 36 | E61: 48 | F61: 60 | G61: 72 | H61: 84 | I61: 96 | J61: 108 | K61: 120
A62: =A49 -> 1988 | B62: =B49 -> 267 | C62: =C49-B49 -> 177 | D62: =D49-C49 -> -29 | E62: 167 | F62: 29 | G62: 20 | H62: -50 | I62: 0 | J62: 0 | K62: 0
A63: =A50 -> 1989 | B63: =B50 -> 2071 | C63: =C50-B50 -> 947 | D63: -1240 | E63: 48 | F63: 85 | G63: 60 | H63: 9 | I63: -10 | J63: 11 | K63: 0
A64: 1990 | B64: 4183 | C64: =C51-B51 -> -86 | D64: 977 | E64: 92 | F64: 109 | G64: 6 | H64: -97 | I64: 18 | J64: 22.43120345 | K64: 0
A65: 1991 | B65: 3837 | C65: =C52-B52 -> 1587 | D65: 571 | E65: 305 | F65: 215 | G65: 75 | H65: 92 | I65: 6.902001291 | J65: 28.84277617 | K65: 0
A66: 1992 | B66: 9195 | C66: =C53-B53 -> 4594 | D66: 729 | E66: 137 | F66: -115 | G66: 68 | H66: -46.42907483 | I66: 15.04100289 | J66: 62.85485347 | K66: 0
A67: 1993 | B67: 10839 | C67: =C54-B54 -> 4026 | D67: 838 | E67: 251 | F67: 153 | G67: 127.8421946 | H67: -51.59971954 | I67: 16.71606711 | J67: 69.85478007 | K67: 0
A68: 1994 | B68: 9949 | C68: =C55-B55 -> 6157 | D68: 558 | E68: 578 | F68: 184.5017647 | G68: 138.3151568 | H68: -55.82682087 | I68: 18.08546427 | J68: 75.57735445 | K68: 0
A69: 1995 | B69: 10114 | C69: =C56-B56 -> 4980 | D69: 256 | E69: 402.7183401 | F69: 168.565383 | G69: 126.3681538 | H69: -51.00476655 | I69: 16.5233282 | J69: 69.04934333 | K69: 0
A70: 1996 | B70: 11644 | C70: =C57-B57 -> 4480 | D70: 588.8468773 | E70: 438.4736125 | F70: 183.5314289 | G70: 137.5877267 | H70: -55.53321521 | I70: 17.9903488 | J70: 75.17987635 | K70: 0
A71: 1997 | B71: =B58 -> 14280 | C71: =C58-B58 -> 6177.061788 | D71: 747.0898631 | E71: 556.3062382 | F71: 232.8525045 | G71: 174.5621822 | H71: -70.45686026 | I71: 22.82496136 | J71: 95.38324087 | K71: 0

Sheet Source Data
C2: Original Data
A5: Accident | C5: Cumulative Triangle | O5: Tabular Format - for GLM
A6: Year | B6: 12 | C6: =B6+12 -> 24 | D6: =C6+12 -> 36 | E6: 48 | F6: 60 | G6: 72 | H6: 84 | I6: 96 | J6: 108 | K6: 120 | M6: Index | N6: Year | O6: Age | P6: Wt = EP | Q6: Y = Loss | R6: Incr LR | T6: # Points | U6: Age
A8: 1988 | B8: 267 | C8: 444 | D8: 415 | E8: 582 | F8: 611 | G8: 631 | H8: 581 | I8: 581 | J8: 581 | K8: 581 | M8: 1 | N8: =$A$8 -> 1988 | O8: =VLOOKUP(M8,$T$8:$U$17,2) -> 12 | P8: =VLOOKUP($N8,$T$22:$V$31,3) -> 1 | Q8: =INDEX($B$20:$K$29,$N8-$A$8+1,O8/12) -> 267 | R8: =Q8/P8 -> 267 | T8: 0 | U8: =B6 -> 12 | V8: # Years: | W8: =COUNT($A$8:$A$17) -> 10
A9: =A8+1 -> 1989 | B9: 2071 | C9: 3018 | D9: 1778 | E9: 1826 | F9: 1911 | G9: 1971 | H9: 1980 | I9: 1970 | J9: 1981 | M9: =M8+1 -> 2 | N9: =IF(O9=O8,N8+1,$A$8) -> 1989 | O9: =VLOOKUP(M9,$T$8:$U$17,2) -> 12 | P9: =VLOOKUP($N9,$T$22:$V$31,3) -> 1 | Q9: 2071 | R9: 2071 | T9: =W8+2-U8/12 -> 11 | U9: =U8+12 -> 24 | V9: # Rows: | W9: =W8*(W8+1)/2 -> 55
A10: =A9+1 -> 1990 | B10: 4183 | C10: 4097 | D10: 5074 | E10: 5166 | F10: 5275 | G10: 5281 | H10: 5184 | I10: 5202 | M10: =M9+1 -> 3 | N10: =IF(O10=O9,N9+1,$A$8) -> 1990 | O10: 12 | P10: 1 | Q10: 4183 | R10: 4183 | T10: =T9+$W$8+1-U9/12 -> 20 | U10: =U9+12 -> 36
A11: 1991 | B11: 3837 | C11: 5424 | D11: 5995 | E11: 6300 | F11: 6515 | G11: 6590 | H11: 6682 | M11: 4 | N11: 1991 | O11: 12 | P11: 1 | Q11: 3837 | R11: 3837 | T11: 28 | U11: 48
A12: 1992 | B12: 9195 | C12: 13789 | D12: 14518 | E12: 14655 | F12: 14540 | G12: 14608 | M12: 5 | N12: 1992 | O12: 12 | P12: 1 | Q12: 9195 | R12: 9195 | T12: 35 | U12: 60
A13: 1993 | B13: 10839 | C13: 14865 | D13: 15703 | E13: 15954 | F13: 16107 | M13: 6 | N13: 1993 | O13: 12 | P13: 1 | Q13: 10839 | R13: 10839 | T13: 41 | U13: 72
A14: 1994 | B14: 9949 | C14: 16106 | D14: 16664 | E14: 17242 | M14: 7 | N14: 1994 | O14: 12 | P14: 1 | Q14: 9949 | R14: 9949 | T14: 46 | U14: 84
A15: 1995 | B15: 10114 | C15: 15094 | D15: 15350 | M15: 8 | N15: 1995 | O15: 12 | P15: 1 | Q15: 10114 | R15: 10114 | T15: 50 | U15: 96
A16: 1996 | B16: 11644 | C16: 16124 | M16: 9 | N16: 1996 | O16: 12 | P16: 1 | Q16: 11644 | R16: 11644 | T16: 53 | U16: 108
A17: 1997 | B17: 14280 | M17: 10 | N17: 1997 | O17: 12 | P17: 1 | Q17: 14280 | R17: 14280 | T17: 55 | U17: 120
M18: 11 | N18: 1988 | O18: 24 | P18: 1 | Q18: 177 | R18: 177
C19: Incremental Loss | M19: 12 | N19: 1989 | O19: 24 | P19: 1 | Q19: 947 | R19: 947
A20: =A8 -> 1988 | B20: =B8 -> 267 | C20: =C8-B8 -> 177 | D20: -29 | E20: 167 | F20: 29 | G20: 20 | H20: -50 | I20: 0 | J20: 0 | K20: 0 | M20: 13 | N20: 1990 | O20: 24 | P20: 1 | Q20: -86 | R20: -86 | U20: Premium | V20: Use
A21: 1989 | B21: 2071 | C21: =C9-B9 -> 947 | D21: -1240 | E21: 48 | F21: 85 | G21: 60 | H21: 9 | I21: -10 | J21: 11 | M21: 14 | N21: 1991 | O21: 24 | P21: 1 | Q21: 1587 | R21: 1587
A22: 1990 | B22: 4183 | C22: =C10-B10 -> -86 | D22: 977 | E22: 92 | F22: 109 | G22: 6 | H22: -97 | I22: 18 | M22: 15 | N22: 1992 | O22: 24 | P22: 1 | Q22: 4594 | R22: 4594 | T22: 1988 | U22: 400 | V22: 1
A23: 1991 | B23: 3837 | C23: =C11-B11 -> 1587 | D23: 571 | E23: 305 | F23: 215 | G23: 75 | H23: 92 | M23: 16 | N23: 1993 | O23: 24 | P23: 1 | Q23: 4026 | R23: 4026 | T23: 1989 | U23: 3440 | V23: 1
A24: 1992 | B24: 9195 | C24: =C12-B12 -> 4594 | D24: =D12-C12 -> 729 | E24: =E12-D12 -> 137 | F24: =F12-E12 -> -115 | G24: =G12-F12 -> 68 | M24: 17 | N24: 1994 | O24: 24 | P24: 1 | Q24: 6157 | R24: 6157 | T24: 1990 | U24: 8215 | V24: 1
A25: 1993 | B25: 10839 | C25: =C13-B13 -> 4026 | D25: =D13-C13 -> 838 | E25: =E13-D13 -> 251 | F25: =F13-E13 -> 153 | M25: 18 | N25: 1995 | O25: 24 | P25: 1 | Q25: 4980 | R25: 4980 | T25: 1991 | U25: 10665 | V25: 1
A26: 1994 | B26: 9949 | C26: =C14-B14 -> 6157 | D26: =D14-C14 -> 558 | E26: =E14-D14 -> 578 | M26: 19 | N26: 1996 | O26: 24 | P26: 1 | Q26: 4480 | R26: 4480 | T26: 1992 | U26: 20587 | V26: 1
A27: 1995 | B27: 10114 | C27: =C15-B15 -> 4980 | D27: =D15-C15 -> 256 | M27: 20 | N27: 1988 | O27: 36 | P27: 1 | Q27: -29 | R27: -29 | T27: 1993 | U27: 26235 | V27: 1
A28: 1996 | B28: 11644 | C28: =C16-B16 -> 4480 | M28: 21 | N28: 1989 | O28: 36 | P28: 1 | Q28: -1240 | R28: -1240 | T28: 1994 | U28: 28174 | V28: 1
A29: 1997 | B29: 14280 | M29: 22 | N29: 1990 | O29: 36 | P29: 1 | Q29: 977 | R29: 977 | T29: 1995 | U29: 28554 | V29: 1
M30: 23 | N30: 1991 | O30: 36 | P30: 1 | Q30: 571 | R30: 571 | T30: 1996 | U30: 35274 | V30: 1
M31: 24 | N31: 1992 | O31: 36 | P31: 1 | Q31: 729 | R31: 729 | T31: 1997 | U31: 35646 | V31: 1
C32: Age-to-Age Factors | M32: 25 | N32: 1993 | O32: 36 | P32: 1 | Q32: 838 | R32: 838
B33: =C8/B8 -> 1.662921348 | C33: 0.9346846847 | D33: 1.402409639 | E33: 1.049828179 | F33: 1.032733224 | G33: 0.9207606973 | H33: 1 | I33: 1 | J33: 1 | M33: 26 | N33: 1994 | O33: 36 | P33: 1 | Q33: 558 | R33: 558
B34: =C9/B9 -> 1.457267021 | C34: 0.5891318754 | D34: 1.026996625 | E34: 1.046549836 | F34: 1.031397174 | G34: 1.00456621 | H34: 0.9949494949 | I34: 1.005583756 | M34: 27 | N34: 1995 | O34: 36 | P34: 1 | Q34: 256 | R34: 256
B35: =C10/B10 -> 0.9794405929 | C35: 1.238467171 | D35: 1.018131652 | E35: 1.021099497 | F35: 1.001137441 | G35: 0.9816322666 | H35: 1.003472222 | M35: 28 | N35: 1988 | O35: 48 | P35: 1 | Q35: 167 | R35: 167
B36: =C11/B11 -> 1.413604378 | C36: 1.105272861 | D36: 1.05087573 | E36: 1.034126984 | F36: 1.011511896 | G36: 1.013960546 | M36: 29 | N36: 1989 | O36: 48 | P36: 1 | Q36: 48 | R36: 48
B37: =C12/B12 -> 1.499619358 | C37: =D12/C12 -> 1.052868228 | D37: =E12/D12 -> 1.009436562 | E37: =F12/E12 -> 0.9921528489 | F37: =G12/F12 -> 1.004676754 | M37: 30 | N37: 1990 | O37: 48 | P37: 1 | Q37: 92 | R37: 92
B38: =C13/B13 -> 1.371436479 | C38: =D13/C13 -> 1.056374033 | D38: =E13/D13 -> 1.015984207 | E38: =F13/E13 -> 1.009590071 | M38: 31 | N38: 1991 | O38: 48 | P38: 1 | Q38: 305 | R38: 305
B39: =C14/B14 -> 1.618856166 | C39: =D14/C14 -> 1.034645474 | D39: =E14/D14 -> 1.03468555 | M39: 32 | N39: 1992 | O39: 48 | P39: 1 | Q39: 137 | R39: 137
B40: =C15/B15 -> 1.492386791 | C40: =D15/C15 -> 1.016960382 | M40: 33 | N40: 1993 | O40: 48 | P40: 1 | Q40: =INDEX($B$20:$K$29,$N40-$A$8+1,O40/12) -> 251 | R40: =Q40/P40 -> 251
B41: =C16/B16 -> 1.384747509 | M41: 34 | N41: 1994 | O41: 48 | P41: 1 | Q41: 578 | R41: 578
M42: 35 | N42: 1988 | O42: 60 | P42: 1 | Q42: 29 | R42: 29
A43: Age-to-Age: | B43: =SUM(C$8:C16)/SUM(B$8:B16) -> 1.432567352 | C43: =SUM(D$8:D15)/SUM(C$8:C15) -> 1.036519901 | D43: =SUM(E$8:E14)/SUM(D$8:D14) -> 1.026235722 | E43: =SUM(F$8:F13)/SUM(E$8:E13) -> 1.010700717 | F43: =SUM(G$8:G12)/SUM(F$8:F12) -> 1.007937058 | G43: =SUM(H$8:H11)/SUM(G$8:G11) -> 0.9968216679 | H43: =SUM(I$8:I10)/SUM(H$8:H10) -> 1.001032924 | I43: =SUM(J$8:J9)/SUM(I$8:I9) -> 1.004312034 | J43: =SUM(K$8:K8)/SUM(J$8:J8) -> 1 | M43: 36 | N43: 1989 | O43: 60 | P43: 1 | Q43: 85 | R43: 85
A44: Cumulative: | B44: =B43*C44 -> 1.555715961 | C44: 1.085963573 | D44: 1.047701614 | E44: 1.020917116 | F44: 1.010108234 | G44: 1.002154079 | H44: 1.005349413 | I44: 1.004312034 | J44: =J43*K44 -> 1 | K44: 1 | M44: 37 | N44: 1990 | O44: 60 | P44: 1 | Q44: 109 | R44: 109
A45: Annual %: | B45: =1/B44 -> 0.6427908598 | C45: =1/C44-1/B44 -> 0.2780503402 | D45: =1/D44-1/C44 -> 0.03362902909 | E45: 0.02504121605 | F45: 0.0104814749 | G45: 0.007857631315 | H45: -0.003171500405 | I45: 0.001027428329 | J45: 0.004293520687 | K45: 0 | M45: 38 | N45: 1991 | O45: 60 | P45: 1 | Q45: 215 | R45: 215
M46: 39 | N46: 1992 | O46: 60 | P46: 1 | Q46: -115 | R46: -115
M47: 40 | N47: 1993 | O47: 60 | P47: 1 | Q47: 153 | R47: 153
M48: 41 | N48: 1988 | O48: 72 | P48: 1 | Q48: 20 | R48: 20
B49: Latest | C49: LDF | D49: "Ultimate" | E49: ULR | F49: Relativity | M49: 42 | N49: 1989 | O49: 72 | P49: 1 | Q49: 60 | R49: 60
A50: =A8 -> 1988 | B50: =K8 -> 581 | C50: =K44 -> 1 | D50: =B50*C50 -> 581 | E50: =D50/U22 -> 1.4525 | F50: =E50/$E$59 -> 2.330603686 | M50: 43 | N50: 1990 | O50: 72 | P50: 1 | Q50: 6 | R50: 6
A51: 1989 | B51: =J9 -> 1981 | C51: =J44 -> 1 | D51: =B51*C51 -> 1981 | E51: 0.575872093 | F51: 0.9240135097 | M51: 44 | N51: 1991 | O51: 72 | P51: 1 | Q51: 75 | R51: 75
A52: 1990 | B52: =I10 -> 5202 | C52: =I44 -> 1.004312034 | D52: 5224.431203 | E52: 0.6359624106 | F52: 1.020431214 | M52: 45 | N52: 1992 | O52: 72 | P52: 1 | Q52: 68 | R52: 68
A53: 1991 | B53: =H11 -> 6682 | C53: =H44 -> 1.005349413 | D53: 6717.744777 | E53: 0.6298869927 | F53: 1.010682924 | M53: 46 | N53: 1988 | O53: 84 | P53: 1 | Q53: -50 | R53: -50
A54: 1992 | B54: =G12 -> 14608 | C54: =G44 -> 1.002154079 | D54: 14639.46678 | E54: 0.7111024813 | F54: 1.140996946 | M54: 47 | N54: 1989 | O54: 84 | P54: 1 | Q54: 9 | R54: 9
A55: 1993 | B55: =F13 -> 16107 | C55: =F44 -> 1.010108234 | D55: 16269.81332 | E55: 0.6201567876 | F55: 0.9950703582 | M55: 48 | N55: 1990 | O55: 84 | P55: 1 | Q55: -97 | R55: -97
A56: 1994 | B56: =E14 -> 17242 | C56: =E44 -> 1.020917116 | D56: 17602.65292 | E56: 0.6247835919 | F56: 1.002494281 | M56: 49 | N56: 1991 | O56: 84 | P56: 1 | Q56: 92 | R56: 92
A57: 1995 | B57: =D15 -> 15350 | C57: =D44 -> 1.047701614 | D57: 16082.21978 | E57: 0.5632212573 | F57: 0.9037146565 | M57: 50 | N57: 1988 | O57: 96 | P57: 1 | Q57: 0 | R57: 0
A58: 1996 | B58: =C16 -> 16124 | C58: =C44 -> 1.085963573 | D58: 17510.07666 | E58: 0.4964017876 | F58: 0.796499715 | M58: 51 | N58: 1989 | O58: 96 | P58: 1 | Q58: -10 | R58: -10
A59: 1997 | B59: =B17 -> 14280 | C59: =B44 -> 1.555715961 | D59: 22215.62392 | E59: 0.6232290837 | F59: 1 | M59: 52 | N59: 1990 | O59: 96 | P59: 1 | Q59: 18 | R59: 18
M60: 53 | N60: 1988 | O60: 108 | P60: 1 | Q60: 0 | R60: 0
M61: 54 | N61: 1989 | O61: 108 | P61: 1 | Q61: 11 | R61: 11
M62: 55 | N62: 1988 | O62: 120 | P62: 1 | Q62: 0 | R62: 0
O65: Future Diagonals
N66: Year | O66: Age | P66: Wt = EP | Q66: Y = Loss | R66: Incr LR
M68: 1 | N68: =$A$9 -> 1989 | O68: 120 | P68: =VLOOKUP($N68,$T$22:$V$31,3) -> 1 | Q68: na | R68: na
M69: =M68+1 -> 2 | N69: =$A$10 -> 1990 | O69: 120 | P69: 1 | Q69: na | R69: na
M70: 3 | N70: =$A$10 -> 1990 | O70: =O69-12 -> 108 | P70: 1 | Q70: na | R70: na
M71: 4 | N71: =$A$11 -> 1991 | O71: 120 | P71: 1 | Q71: na | R71: na
M72: 5 | N72: =$A$11 -> 1991 | O72: =O71-12 -> 108 | P72: 1 | Q72: na | R72: na
M73: 6 | N73: 1991 | O73: 96 | P73: 1 | Q73: na | R73: na
M74: 7 | N74: =$A$12 -> 1992 | O74: 120 | P74: 1 | Q74: na | R74: na
M75: 8 | N75: =$A$12 -> 1992 | O75: 108 | P75: 1 | Q75: na | R75: na
M76: 9 | N76: 1992 | O76: 96 | P76: 1 | Q76: na | R76: na
M77: 10 | N77: 1992 | O77: 84 | P77: 1 | Q77: na | R77: na
M78: 11 | N78: =$A$13 -> 1993 | O78: 120 | P78: 1 | Q78: na | R78: na
M79: 12 | N79: =$A$13 -> 1993 | O79: 108 | P79: 1 | Q79: na | R79: na
M80: 13 | N80: 1993 | O80: 96 | P80: 1 | Q80: na | R80: na
M81: 14 | N81: 1993 | O81: 84 | P81: 1 | Q81: na | R81: na
M82: 15 | N82: 1993 | O82: 72 | P82: 1 | Q82: na | R82: na
M83: 16 | N83: =$A$14 -> 1994 | O83: 120 | P83: 1 | Q83: na | R83: na
M84: 17 | N84: =$A$14 -> 1994 | O84: 108 | P84: 1 | Q84: na | R84: na
M85: 18 | N85: 1994 | O85: 96 | P85: 1 | Q85: na | R85: na
M86: 19 | N86: 1994 | O86: 84 | P86: 1 | Q86: na | R86: na
M87: 20 | N87: 1994 | O87: 72 | P87: 1 | Q87: na | R87: na
M88: 21 | N88: 1994 | O88: 60 | P88: 1 | Q88: na | R88: na
M89: 22 | N89: =$A$15 -> 1995 | O89: 120 | P89: 1 | Q89: na | R89: na
M90: 23 | N90: =$A$15 -> 1995 | O90: =O89-12 -> 108 | P90: 1 | Q90: na | R90: na
M91: 24 | N91: 1995 | O91: 96 | P91: 1 | Q91: na | R91: na
M92: 25 | N92: 1995 | O92: 84 | P92: 1 | Q92: na | R92: na
M93: 26 | N93: 1995 | O93: 72 | P93: 1 | Q93: na | R93: na
M94: 27 | N94: 1995 | O94: 60 | P94: 1 | Q94: na | R94: na
M95: 28 | N95: 1995 | O95: 48 | P95: 1 | Q95: na | R95: na
M96: 29 | N96: =$A$16 -> 1996 | O96: 120 | P96: 1 | Q96: na | R96: na
M97: 30 | N97: =$A$16 -> 1996 | O97: 108 | P97: 1 | Q97: na | R97: na
M98: 31 | N98: 1996 | O98: 96 | P98: 1 | Q98: na | R98: na
M99: 32 | N99: 1996 | O99: 84 | P99: 1 | Q99: na | R99: na
M100: 33 | N100: 1996 | O100: 72 | P100: 1 | Q100: na | R100: na
M101: 34 | N101: 1996 | O101: 60 | P101: 1 | Q101: na | R101: na
M102: 35 | N102: 1996 | O102: 48 | P102: 1 | Q102: na | R102: na
M103: 36 | N103: 1996 | O103: 36 | P103: 1 | Q103: na | R103: na
M104: 37 | N104: =$A$17 -> 1997 | O104: 120 | P104: 1 | Q104: na | R104: na
M105: 38 | N105: =$A$17 -> 1997 | O105: 108 | P105: 1 | Q105: na | R105: na
M106: 39 | N106: 1997 | O106: 96 | P106: 1 | Q106: na | R106: na
M107: 40 | N107: 1997 | O107: 84 | P107: 1 | Q107: na | R107: na
M108: 41 | N108: 1997 | O108: 72 | P108: 1 | Q108: na | R108: na
M109: 42 | N109: 1997 | O109: 60 | P109: 1 | Q109: na | R109: na
M110: 43 | N110: 1997 | O110: 48 | P110: 1 | Q110: na | R110: na
M111: 44 | N111: 1997 | O111: 36 | P111: 1 | Q111: na | R111: na
M112: 45 | N112: 1997 | O112: 24 | P112: 1 | Q112: na | R112: na

Sheet GLM Calculation - Hoerl (hidden)
I1: Generalized Linear Model
I2: Poisson with Log-Link
I3: Smoothing with Hoerl Curve
D5: Suggested Starting Values
D6: Value: | F6: 1 | G6: 1 | H6: 1 | I6: 1 | J6: 1 | K6: 1 | L6: 1 | M6: 1 | N6: 1 | O6: =$U$22 -> 1966.490909 | P6: =$U$22 -> 1966.490909 | Q6: =$U$22 -> 1966.490909 | R6: 1 | S6: 1
D7: Parameter: | F7: =LN(F6) -> 0 | G7: 0 | H7: 0 | I7: 0 | J7: 0 | K7: 0 | L7: 0 | M7: 0 | N7: 0 | O7: =LN(O6) -> 7.584005969 | P7: =LN(P6) -> 7.584005969 | Q7: =LN(Q6) -> 7.584005969 | R7: =LN(R6) -> 0 | S7: 0
D9: GLM Fitted Values
D10: Value: | F10: =EXP(F11) -> 0.02620767376 | G10: =EXP(G11) -> 0.08936338828 | H10: 0.234703547 | I10: 0.3016402313 | J10: 0.6605073034 | K10: 0.7316402237 | L10: 0.7925255233 | M10: 0.723894096 | N10: 0.788187481 | O10: 14280 | P10: 6177.061788 | Q10: 747.6974221 | R10: 0.2497551904 | W10: =SUM(W84:W128) -> 10418.07804 | X10: check
D11: Parameter: | F11: -3.64170302 | G11: -2.415044208 | H11: -1.449432063 | I11: -1.198520259 | J11: -0.4147470977 | K11: -0.3124663835 | L11: -0.2325305677 | M11: -0.3231101735 | N11: -0.2380192974 | O11: 9.566615236 | P11: 8.728597999 | Q11: 6.61699838 | R11: -1.387274079 | S11: 1.561029519 | W11: 10418.07804 | X11: Future Payments
D12: Std Error: | F12: 1.364312378 | G12: 0.7757654703 | H12: 0.527380898 | I12: 0.4837059895 | J12: 0.3869967621 | K12: 0.3781546315 | L12: 0.372146979 | M12: 0.38144808 | N12: 0.3765188295 | O12: 0.269280763 | P12: 0.3573997295 | Q12: 0.6914641335 | R12: 2.551566876 | S12: 4.706550191 | W12: 3784.473855 | X12: Standard Error
Z15: Sum VM | AA15: =SUM(AA24:AA78) -> 42454.40148
D16: Weighted Actual: | F16: =SUMPRODUCT(F$24:F$78,$AE$24:$AE$78)/SUM(F$24:F$78) -> 58.1 | G16: 220.1111111 | H16: 650.25 | I16: 954.5714286 | J16: 2434.666667 | K16: 3221.4 | L16: 4310.5 | M16: 5116.666667 | N16: 8062 | O16: 7637.9 | P16: 2984.666667 | Q16: 136.5555556 | R16: 37.36904762 | S16: 52.43141487 | Z16: # Points | AA16: =COUNT($U$24:$U$78) -> 55
D17: Weighted Fitted: | F17: =SUMPRODUCT(F$24:F$78,$W$24:$W$78)/SUM(F$24:F$78) -> 58.1 | G17: 220.1111111 | H17: 650.25 | I17: 954.5714286 | J17: 2434.666667 | K17: 3221.4 | L17: 4310.5 | M17: 5116.666667 | N17: 8062 | O17: 7637.9 | P17: 2984.666667 | Q17: 136.5555556 | R17: 37.36904762 | S17: 52.43141487 | Z17: # Param | AA17: =COUNT($F$11:$S$11) -> 14
Z18: Avg VM | AA18: =AA15/(AA16-AA17) -> 1035.473207
F21: DESIGN MATRIX (X) | U21: RESPONSE (Y) | W21: RESULTS OF GLM FIT | AD21: WEIGHTS
F22: Accident Year (excl. latest) | O22: Development Age | U22: =SUMPRODUCT(CountWts,ActualLRs)/SUM(CountWts) -> 1966.490909 | X22: =SUMPRODUCT(CountWts,X$24:X$78)/SUM(CountWts) -> 1966.490909
A23: Index | B23: Accident Year | C23: Calendar Year | D23: Age | F23: ='Source Data'!$A$8 -> 1988 | G23: =F23+1 -> 1989 | H23: =G23+1 -> 1990 | I23: 1991 | J23: 1992 | K23: 1993 | L23: 1994 | M23: 1995 | N23: 1996 | O23: ='Source Data'!B6 -> 12 | P23: ='Source Data'!C6 -> 24 | Q23: =P23+12 -> 36 | R23: Time Liag | S23: Log(t) | U23: Loss Ratio | W23: Expected Loss | X23: Fitted LR | Z23: QLL | AA23: V/M Ratio | AB23: Standard Residual | AD23: Earned Premium | AE23: Loss Dollars
A24: 1 | B24: ='Source Data'!N8 -> 1988 | C24: =B24+D24/12-1 -> 1988 | D24: ='Source Data'!O8 -> 12 | F24: =($B24=F$23)*1 -> 1 | G24: 0 | H24: 0 | I24: 0 | J24: 0 | K24: 0 | L24: 0 | M24: 0 | N24: 0 | O24: =($D24=O$23)*1 -> 1 | P24: 0 | Q24: =($D24>=Q$23)*1 -> 0 | R24: =MAX($D24-Q$23,0)/12 -> 0 | S24: =LN(1+MAX($D24-Q$23,0)/12) -> 0 | U24: =AE24/AD24 -> 267 | W24: =$AD24*X24 -> 374.2455812 | X24: =EXP(SUMPRODUCT($F$11:$S$11,$F24:$S24)) -> 374.2455812 | Z24: =$AD24*($U24*LN(X24)-X24) -> 1207.705981 | AA24: =($AE24-W24)^2/W24 -> 30.73280026 | AB24: =($AE24-W24)/(W24*AA$18)^0.5 -> -0.1722787189 | AD24: ='Source Data'!P8 -> 1 | AE24: ='Source Data'!Q8 -> 267 | AG24: 12 | AH24: =SUMPRODUCT(($AG24=$D$24:$D$78)*1,$AB$24:$AB$78)/SUMPRODUCT(($AG24=$D$24:$D$78)*1) -> 0.04317989914
A25: =A24+1 -> 2 | B25: ='Source Data'!N9 -> 1989 | C25: 1989 | D25: ='Source Data'!O9 -> 12 | F25: 0 | G25: 1 | H25: 0 | I25: 0 | J25: 0 | K25: 0 | L25: 0 | M25: 0 | N25: 0 | O25: 1 | P25: 0 | Q25: 0 | R25: =MAX($D25-Q$23,0)/12 -> 0 | S25: =LN(1+MAX($D25-Q$23,0)/12) -> 0 | U25: 2071 | W25: 1276.109185 | X25: 1276.109185 | Z25: 13534.79441 | AA25: 495.1389866 | AB25: 0.6915030958 | AD25: ='Source Data'!P9 -> 1 | AE25: ='Source Data'!Q9 -> 2071 | AG25: =AG24+12 -> 24 | AH25: =SUMPRODUCT(($AG25=$D$24:$D$78)*1,$AB$24:$AB$78)/SUMPRODUCT(($AG25=$D$24:$D$78)*1) -> -0.02749621694
A26: 3 | B26: ='Source Data'!N10 -> 1990 | C26: 1990 | D26: ='Source Data'!O10 -> 12 | F26: 0 | G26: 0 | H26: 1 | I26: 0 | J26: 0 | K26: 0 | L26: 0 | M26: 0 | N26: 0 | O26: 1 | P26: 0 | Q26: 0 | R26: 0 | S26: 0 | U26: 4183 | W26: 3351.566651 | X26: 3351.566651 | Z26: 30602.61056 | AA26: 206.2562037 | AB26: 0.446307389 | AD26: ='Source Data'!P10 -> 1 | AE26: ='Source Data'!Q10 -> 4183 | AG26: =AG25+12 -> 36 | AH26: -0.3030029057
A27: 4 | B27: ='Source Data'!N11 -> 1991 | C27: 1991 | D27: ='Source Data'!O11 -> 12 | F27: 0 | G27: 0 | H27: 0 | I27: 1 | J27: 0 | K27: 0 | L27: 0 | M27: 0 | N27: 0 | O27: 1 | P27: 0 | Q27: 0 | R27: 0 | S27: 0 | U27: 3837 | W27: 4307.422503 | X27: 4307.422503 | Z27: 27800.95792 | AA27: 51.37581264 | AB27: -0.2227460028 | AD27: ='Source Data'!P11 -> 1 | AE27: ='Source Data'!Q11 -> 3837 | AG27: 48 | AH27: 0.1542389033
A28: 5 | B28: ='Source Data'!N12 -> 1992 | C28: 1992 | D28: ='Source Data'!O12 -> 12 | F28: 0 | G28: 0 | H28: 0 | I28: 0 | J28: 1 | K28: 0 | L28: 0 | M28: 0 | N28: 0 | O28: 1 | P28: 0 | Q28: 0 | R28: 0 | S28: 0 | U28: 9195 | W28: 9432.044293 | X28: 9432.044293 | Z28: 74719.38324 | AA28: 5.957350821 | AB28: -0.07585027418 | AD28: ='Source Data'!P12 -> 1 | AE28: ='Source Data'!Q12 -> 9195 | AG28: 60 | AH28: 0.0957862462
A29: 6 | B29: ='Source Data'!N13 -> 1993 | C29: 1993 | D29: ='Source Data'!O13 -> 12 | F29: 0 | G29: 0 | H29: 0 | I29: 0 | J29: 0 | K29: 1 | L29: 0 | M29: 0 | N29: 0 | O29: 1 | P29: 0 | Q29: 0 | R29: 0 | S29: 0 | U29: 10839 | W29: 10447.82239 | X29: 10447.82239 | Z29: 89857.89702 | AA29: 14.64610648 | AB29: 0.1189300662 | AD29: ='Source Data'!P13 -> 1 | AE29: ='Source Data'!Q13 -> 10839 | AG29: 72 | AH29: 0.199273241
A30: 7 | B30: ='Source Data'!N14 -> 1994 | C30: 1994 | D30: ='Source Data'!O14 -> 12 | F30: 0 | G30: 0 | H30: 0 | I30: 0 | J30: 0 | K30: 0 | L30: 1 | M30: 0 | N30: 0 | O30: 1 | P30: 0 | Q30: 0 | R30: 0 | S30: 0 | U30: 9949 | W30: 11317.26447 | X30: 11317.26447 | Z30: 81547.54389 | AA30: 165.424045 | AB30: -0.3996960765 | AD30: ='Source Data'!P14 -> 1 | AE30: ='Source Data'!Q14 -> 9949 | AG30: 84 | AH30: -0.4735004541
A31: 8 | B31: ='Source Data'!N15 -> 1995 | C31: 1995 | D31: ='Source Data'!O15 -> 12 | F31: 0 | G31: 0 | H31: 0 | I31: 0 | J31: 0 | K31: 0 | L31: 0 | M31: 1 | N31: 0 | O31: 1 | P31: 0 | Q31: 0 | R31: 0 | S31: 0 | U31: 10114 | W31: 10337.20769 | X31: 10337.20769 | Z31: 83151.60251 | AA31: 4.819645195 | AB31: -0.06822414491 | AD31: ='Source Data'!P15 -> 1 | AE31: ='Source Data'!Q15 -> 10114 | AG31: 96 | AH31: -0.0226843328
A32: 9 | B32: ='Source Data'!N16 -> 1996 | C32: 1996 | D32: ='Source Data'!O16 -> 12 | F32: 0 | G32: 0 | H32: 0 | I32: 0 | J32: 0 | K32: 0 | L32: 0 | M32: 0 | N32: 1 | O32: 1 | P32: 0 | Q32: 0 | R32: 0 | S32: 0 | U32: 11644 | W32: 11255.31723 | X32: 11255.31723 | Z32: 97366.85388 | AA32: 13.42248232 | AB32: 0.1138536577 | AD32: ='Source Data'!P16 -> 1 | AE32: ='Source Data'!Q16 -> 11644 | AG32: 108 | AH32: 0.2799670844
A33: 10 | B33: ='Source Data'!N17 -> 1997 | C33: 1997 | D33: ='Source Data'!O17 -> 12 | F33: 0 | G33: 0 | H33: 0 | I33: 0 | J33: 0 | K33: 0 | L33: 0 | M33: 0 | N33: 0 | O33: 1 | P33: 0 | Q33: 0 | R33: 0 | S33: 0 | U33: 14280 | W33: 14280 | X33: 14280 | Z33: 122331.2656 | AA33: 4.541383755e-26 | AB33: 6.622541189e-15 | AD33: ='Source Data'!P17 -> 1 | AE33: ='Source Data'!Q17 -> 14280 | AG33: 120 | AH33: -0.005428547452
A34: 11 | B34: ='Source Data'!N18 -> 1988 | C34: 1989 | D34: ='Source Data'!O18 -> 24 | F34: 1 | G34: 0 | H34: 0 | I34: 0 | J34: 0 | K34: 0 | L34: 0 | M34: 0 | N34: 0 | O34: 0 | P34: 1 | Q34: 0 | R34: 0 | S34: 0 | U34: 177 | W34: 161.8864201 | X34: 161.8864201 | Z34: 738.4939912 | AA34: 1.410991092 | AB34: 0.03691413558 | AD34: ='Source Data'!P18 -> 1 | AE34: ='Source Data'!Q18 -> 177
A35: 12 | B35: ='Source Data'!N19 -> 1989 | C35: 1990 | D35: ='Source Data'!O19 -> 24 | F35: 0 | G35: 1 | H35: 0 | I35: 0 | J35: 0 | K35: 0 | L35: 0 | M35: 0 | N35: 0 | O35: 0 | P35: 1 | Q35: 0 | R35: 0 | S35: 0 | U35: 947 | W35: 552.003171 | X35: 552.003171 | Z35: 5426.932269 | AA35: 282.6478236 | AB35: 0.5224604136 | AD35: ='Source Data'!P19 -> 1 | AE35: ='Source Data'!Q19 -> 947
A36: 13 | B36: ='Source Data'!N20 -> 1990 | C36: 1991 | D36: ='Source Data'!O20 -> 24 | F36: 0 | G36: 0 | H36: 1 | I36: 0 | J36: 0 | K36: 0 | L36: 0 | M36: 0 | N36: 0 | O36: 0 | P36: 1 | Q36: 0 | R36: 0 | S36: 0 | U36: -86 | W36: 1449.778312 | X36: 1449.778312 | Z36: -2075.786582 | AA36: 1626.879781 | AB36: -1.253453704 | AD36: ='Source Data'!P20 -> 1 | AE36: ='Source Data'!Q20 -> -86
A37: 14 | B37: ='Source Data'!N21 -> 1991 | C37: 1992 | D37: ='Source Data'!O21 -> 24 | F37: 0 | G37: 0 | H37: 0 | I37: 1 | J37: 0 | K37: 0 | L37: 0 | M37: 0 | N37: 0 | O37: 0 | P37: 1 | Q37: 0 | R37: 0 | S37: 0 | U37: 1587 | W37: 1863.250347 | X37: 1863.250347 | Z37: 10086.98303 | AA37: 40.95759552 | AB37: -0.19888306 | AD37: ='Source Data'!P21 -> 1 | AE37: ='Source Data'!Q21 -> 1587
A38: 15 | B38: ='Source Data'!N22 -> 1992 | C38: 1993 | D38: ='Source Data'!O22 -> 24 | F38: 0 | G38: 0 | H38: 0 | I38: 0 | J38: 1 | K38: 0 | L38: 0 | M38: 0 | N38: 0 | O38: 0 | P38: 1 | Q38: 0 | R38: 0 | S38: 0 | U38: 4594 | W38: 4079.994425 | X38: 4079.994425 | Z38: 34113.83661 | AA38: 64.75541475 | AB38: 0.2500740408 | AD38: ='Source Data'!P22 -> 1 | AE38: ='Source Data'!Q22 -> 4594
A39: 16 | B39: ='Source Data'!N23 -> 1993 | C39: 1994 | D39: ='Source Data'!O23 -> 24 | F39: 0 | G39: 0 | H39: 0 | I39: 0 | J39: 0 | K39: 1 | L39: 0 | M39: 0 | N39: 0 | O39: 0 | P39: 1 | Q39: 0 | R39: 0 | S39: 0 | U39: 4026 | W39: 4519.386869 | X39: 4519.386869 | Z39: 29363.95901 | AA39: 53.86363442 | AB39: -0.2280753731 | AD39: ='Source Data'!P23 -> 1 | AE39: ='Source Data'!Q23 -> 4026
A40: 17 | B40: ='Source Data'!N24 -> 1994 | C40: 1995 | D40: ='Source Data'!O24 -> 24 | F40: =($B40=F$23)*1 -> 0 | G40: 0 | H40: 0 | I40: 0 | J40: 0 | K40: 0 | L40: 1 | M40: 0 | N40: 0 | O40: 0 | P40: 1 | Q40: 0 | R40: 0 | S40: 0 | U40: 6157 | W40: 4895.479126 | X40: 4895.479126 | Z40: 47414.80805 | AA40: 325.0825657 | AB40: 0.5603087523 | AD40: ='Source Data'!P24 -> 1 | AE40: ='Source Data'!Q24 -> 6157
A41: 18 | B41: ='Source Data'!N25 -> 1995 | C41: 1996 | D41: ='Source Data'!O25 -> 24 | F41: 0 | G41: 0 | H41: 0 | I41: 0 | J41: 0 | K41: 0 | L41: 0 | M41: 1 | N41: 0 | O41: 0 | P41: 1 | Q41: 0 | R41: 0 | S41: 0 | U41: 4980 | W41: 4471.538559 | X41: 4471.538559 | Z41: 37387.79081 | AA41: 57.81746778 | AB41: 0.2362980298 | AD41: ='Source Data'!P25 -> 1 | AE41: ='Source Data'!Q25 -> 4980
A42: 19 | B42: ='Source Data'!N26 -> 1996 | C42: 1997 | D42: ='Source Data'!O26 -> 24 | F42: 0 | G42: 0 | H42: 0 | I42: 0 | J42: 0 | K42: 0 | L42: 0 | M42: 0 | N42: 1 | O42: 0 | P42: 1 | Q42: 0 | R42: 0 | S42: 0 | U42: 4480 | W42: 4868.682771 | X42: 4868.682771 | Z42: 33169.10981 | AA42: 31.02980902 | AB42: -0.1731091876 | AD42: ='Source Data'!P26 -> 1 | AE42: ='Source Data'!Q26 -> 4480
A43: 20 | B43: ='Source Data'!N27 -> 1988 | C43: 1990 | D43: ='Source Data'!O27 -> 36 | F43: 1 | G43: 0 | H43: 0 | I43: 0 | J43: 0 | K43: 0 | L43: 0 | M43: 0 | N43: 0 | O43: 0 | P43: 0 | Q43: 1 | R43: 0 | S43: 0 | U43: -29 | W43: 19.59541011 | X43: 19.59541011 | Z43: -105.8789756 | AA43: 120.5136239 | AB43: -0.3411525643 | AD43: ='Source Data'!P27 -> 1 | AE43: ='Source Data'!Q27 -> -29
A44: 21 | B44: ='Source Data'!N28 -> 1989 | C44: 1991 | D44: ='Source Data'!O28 -> 36 | F44: 0 | G44: 1 | H44: 0 | I44: 0 | J44: 0 | K44: 0 | L44: 0 | M44: 0 | N44: 0 | O44: =($D44=O$23)*1 -> 0 | P44: 0 | Q44: 1 | R44: 0 | S44: 0 | U44: -1240 | W44: 66.81677505 | X44: 66.81677505 | Z44: -5277.239949 | AA44: 25559.00195 | AB44: -4.968239376 | AD44: ='Source Data'!P28 -> 1 | AE44: ='Source Data'!Q28 -> -1240
A45: 22 | B45: ='Source Data'!N29 -> 1990 | C45: 1992 | D45: ='Source Data'!O29 -> 36 | F45: 0 | G45: 0 | H45: 1 | I45: 0 | J45: 0 | K45: 0 | L45: 0 | M45: 0 | N45: 0 | O45: 0 | P45: 0 | Q45: 1 | R45: 0 | S45: 0 | U45: 977 | W45: 175.4872371 | X45: 175.4872371 | Z45: 4873.225055 | AA45: 3660.794483 | AB45: 1.880261446 | AD45: ='Source Data'!P29 -> 1 | AE45: ='Source Data'!Q29 -> 977
A46: 23 | B46: ='Source Data'!N30 -> 1991 | C46: 1993 | D46: ='Source Data'!O30 -> 36 | F46: 0 | G46: 0 | H46: 0 | I46: 1 | J46: 0 | K46: 0 | L46: 0 | M46: 0 | N46: 0 | O46: 0 | P46: 0 | Q46: 1 | R46: 0 | S46: 0 | U46: 571 | W46: 225.5356234 | X46: 225.5356234 | Z46: 2868.415384 | AA46: 529.1653431 | AB46: 0.7148686692 | AD46: ='Source Data'!P30 -> 1 | AE46: ='Source Data'!Q30 -> 571
A47: 24 | B47: ='Source Data'!N31 -> 1992 | C47: 1994 | D47: ='Source Data'!O31 -> 36 | F47: 0 | G47: 0 | H47: 0 | I47: 0 | J47: 1 | K47: 0 | L47: 0 | M47: 0 | N47: 0 | O47: 0 | P47: 0 | Q47: 1 | R47: 0 | S47: 0 | U47: 729 | W47: 493.8596081 | X47: 493.8596081 | Z47: 4027.581577 | AA47: 111.9569266 | AB47: 0.328818354 | AD47: ='Source Data'!P31 -> 1 | AE47: ='Source Data'!Q31 -> 729
A48: 25 | B48: ='Source Data'!N32 -> 1993 | C48: 1995 | D48: ='Source Data'!O32 -> 36 | F48: 0 | G48: 0 | H48: 0 | I48: 0 | J48: 0 | K48: 1 | L48: 0 | M48: 0 | N48: 0 | O48: 0 | P48: 0 | Q48: 1 | R48: 0 | S48: 0 | U48: 838 | W48: 547.0455092 | X48: 547.0455092 | Z48: 4736.152304 | AA48: 154.74858 | AB48: 0.3865840248 | AD48: ='Source Data'!P32 -> 1 | AE48: ='Source Data'!Q32 -> 838
A49: 26 | B49: ='Source Data'!N33 -> 1994 | C49: 1996 | D49: ='Source Data'!O33 -> 36 | F49: 0 | G49: 0 | H49: 0 | I49: 0 | J49: 0 | K49: 0 | L49: 1 | M49: 0 | N49: 0 | O49: 0 | P49: 0 | Q49: 1 | R49: 0 | S49: 0 | U49: 558 | W49: 592.5692908 | X49: 592.5692908 | Z49: 2969.963749 | AA49: 2.01670232 | AB49: -0.04413178218 | AD49: ='Source Data'!P33 -> 1 | AE49: ='Source Data'!Q33 -> 558
A50: 27 | B50: ='Source Data'!N34 -> 1995 | C50: 1997 | D50: ='Source Data'!O34 -> 36 | F50: 0 | G50: 0 | H50: 0 | I50: 0 | J50: 0 | K50: 0 | L50: 0 | M50: 1 | N50: 0 | O50: 0 | P50: 0 | Q50: 1 | R50: 0 | S50: 0 | U50: 256 | W50: 541.2537495 | X50: 541.2537495 | Z50: 1069.981631 | AA50: 150.3355897 | AB50: -0.3810320171 | AD50: ='Source Data'!P34 -> 1 | AE50: ='Source Data'!Q34 -> 256
A51: 28 | B51: ='Source Data'!N35 -> 1988 | C51: 1991 | D51: ='Source Data'!O35 -> 48 | F51: 1 | G51: 0 | H51: 0 | I51: 0 | J51: 0 | K51: 0 | L51: 0 | M51: 0 | N51: 0 | O51: 0 | P51: 0 | Q51: 1 | R51: 1 | S51: 0.6931471806 | U51: 167 | W51: 14.44061166 | X51: 14.44061166 | Z51: 431.4568184 | AA51: 1611.729996 | AB51: 1.247603865 | AD51: ='Source Data'!P35 -> 1 | AE51: ='Source Data'!Q35 -> 167
A52: 29 | B52: ='Source Data'!N36 -> 1989 | C52: 1992 | D52: ='Source Data'!O36 -> 48 | F52: 0 | G52: 1 | H52: 0 | I52: 0 | J52: 0 | K52: 0 | L52: 0 | M52: 0 | N52: 0 | O52: 0 | P52: 0 | Q52: 1 | R52: 1 | S52: 0.6931471806 | U52: 48 | W52: 49.23985237 | X52: 49.23985237 | Z52: 137.8019062 | AA52: 0.03121930339 | AB52: -0.005490882764 | AD52: ='Source Data'!P36 -> 1 | AE52: ='Source Data'!Q36 -> 48
A53: 30 | B53: ='Source Data'!N37 -> 1990 | C53: 1993 | D53: ='Source Data'!O37 -> 48 | F53: 0 | G53: 0 | H53: 1 | I53: 0 | J53: 0 | K53: 0 | L53: 0 | M53: 0 | N53: 0 | O53: 0 | P53: 0 | Q53: 1 | R53: 1 | S53: 0.6931471806 | U53: 92 | W53: 129.323297 | X53: 129.323297 | Z53: 318.0097242 | AA53: 10.7716748 | AB53: -0.1019934268 | AD53: ='Source Data'!P37 -> 1 | AE53: ='Source Data'!Q37 -> 92
A54: 31 | B54: ='Source Data'!N38 -> 1991 | C54: 1994 | D54: ='Source Data'!O38 -> 48 | F54: 0 | G54: 0 | H54: 0 | I54: 1 | J54: 0 | K54: 0 | L54: 0 | M54: 0 | N54: 0 | O54: 0 | P54: 0 | Q54: 1 | R54: 1 | S54: 0.6931471806 | U54: 305 | W54: 166.2058785 | X54: 166.2058785 | Z54: 1393.328433 | AA54: 115.9032901 | AB54: 0.3345634155 | AD54: ='Source Data'!P38 -> 1 | AE54: ='Source Data'!Q38 -> 305
A55: 32 | B55: ='Source Data'!N39 -> 1992 | C55: 1995 | D55: ='Source Data'!O39 -> 48 | F55: 0 | G55: 0 | H55: 0 | I55: 0 | J55: 1 | K55: 0 | L55: 0 | M55: 0 | N55: 0 | O55: 0 | P55: 0 | Q55: 1 | R55: 1 | S55: 0.6931471806 | U55: 137 | W55: 363.9441469 | X55: 363.9441469 | Z55: 443.9449097 | AA55: 141.5152469 | AB55: -0.3696853016 | AD55: ='Source Data'!P39 -> 1 | AE55: ='Source Data'!Q39 -> 137
A56: 33 | B56: ='Source Data'!N40 -> 1993 | C56: 1996 | D56: ='Source Data'!O40 -> 48 | F56: =($B56=F$23)*1 -> 0 | G56: 0 | H56: 0 | I56: 0 | J56: 0 | K56: 1 | L56: 0 | M56: 0 | N56: 0 | O56: 0 | P56: 0 | Q56: 1 | R56: 1 | S56: 0.6931471806 | U56: 251 | W56: 403.1388838 | X56: 403.1388838 | Z56: 1102.680679 | AA56: 57.41505194 | AB56: -0.235474264 | AD56: ='Source Data'!P40 -> 1 | AE56: ='Source Data'!Q40 -> 251
A57: 34 | B57: ='Source Data'!N41 -> 1994 | C57: 1997 | D57: ='Source Data'!O41 -> 48 | F57: 0 | G57: 0 | H57: 0 | I57: 0 | J57: 0 | K57: 0 | L57: 1 | M57: 0 | N57: 0 | O57: 0 | P57: 0 | Q57: 1 | R57: 1 | S57: 0.6931471806 | U57: 578 | W57: 436.68711 | X57: 436.68711 | Z57: 3077.100283 | AA57: 45.7291558 | AB57: 0.2101489184 | AD57: ='Source Data'!P41 -> 1 | AE57: ='Source Data'!Q41 -> 578
A58: 35 | B58: ='Source Data'!N42 -> 1988 | C58: 1992 | D58: ='Source Data'!O42 -> 60 | F58: 1 | G58: 0 | H58: 0 | I58: 0 | J58: 0 | K58: 0 | L58: 0 | M58: 0 | N58: 0 | O58: 0 | P58: 0 | Q58: 1 | R58: 2 | S58: 1.098612289 | U58: 29 | W58: 6.791782426 | X58: 6.791782426 | Z58: 48.7639066 | AA58: 72.61789275 | AB58: 0.2648209799 | AD58: ='Source Data'!P42 -> 1 | AE58: ='Source Data'!Q42 -> 29
A59: 36 | B59: ='Source Data'!N43 -> 1989 | C59: 1993 | D59: ='Source Data'!O43 -> 60 | F59: 0 | G59: 1 | H59: 0 | I59: 0 | J59: 0 | K59: 0 | L59: 0 | M59: 0 | N59: 0 | O59: 0 | P59: 0 | Q59: 1 | R59: 2 | S59: 1.098612289 | U59: 85 | W59: 23.15873952 | X59: 23.15873952 | Z59: 243.9428997 | AA59: 165.1359951 | AB59: 0.3993479331 | AD59: ='Source Data'!P43 -> 1 | AE59: ='Source Data'!Q43 -> 85
A60: 37 | B60: ='Source Data'!N44 -> 1990 | C60: 1994 | D60: ='Source Data'!O44 -> 60 | F60: 0 | G60: 0 | H60: 1 | I60: 0 | J60: 0 | K60: 0 | L60: 0 | M60: 0 | N60: 0 | O60: 0 | P60: 0 | Q60: 1 | R60: 2 | S60: 1.098612289 | U60: 109 | W60: 60.82399532 | X60: 60.82399532 | Z60: 386.9463011 | AA60: 38.15808901 | AB60: 0.1919658054 | AD60: ='Source Data'!P44 -> 1 | AE60: ='Source Data'!Q44 -> 109
A61: 38 | B61: ='Source Data'!N45 -> 1991 | C61: 1995 | D61: ='Source Data'!O45 -> 60 | F61: 0 | G61: 0 | H61: 0 | I61: 1 | J61: 0 | K61: 0 | L61: 0 | M61: 0 | N61: 0 | O61: 0 | P61: 0 | Q61: 1 | R61: 2 | S61: 1.098612289 | U61: 215 | W61: 78.17079994 | X61: 78.17079994 | Z61: 858.9918778 | AA61: 239.5041371 | AB61: 0.4809357674 | AD61: ='Source Data'!P45 -> 1 | AE61: ='Source Data'!Q45 -> 215
A62: 39 | B62: ='Source Data'!N46 -> 1992 | C62: 1996 | D62: ='Source Data'!O46 -> 60 | F62: 0 | G62: 0 | H62: 0 | I62: 0 | J62: 1 | K62: 0 | L62: 0 | M62: 0 | N62: 0 | O62: 0 | P62: 0 | Q62: 1 | R62: 2 | S62: 1.098612289 | U62: -115 | W62: 171.1720749 | X62: 171.1720749 | Z62: -762.5790486 | AA62: 478.4335091 | AB62: -0.6797377066 | AD62: ='Source Data'!P46 -> 1 | AE62: ='Source Data'!Q46 -> -115
A63: 40 | B63: ='Source Data'!N47 -> 1993 | C63: 1997 | D63: ='Source Data'!O47 -> 60 | F63: 0 | G63: 0 | H63: 0 | I63: 0 | J63: 0 | K63: 1 | L63: 0 | M63: 0 | N63: 0 | O63: 0 | P63: 0 | Q63: 1 | R63: 2 | S63: 1.098612289 | U63: 153 | W63: 189.6063443 | X63: 189.6063443 | Z63: 612.8710135 | AA63: 7.067402981 | AB63: -0.08261530199 | AD63: ='Source Data'!P47 -> 1 | AE63: ='Source Data'!Q47 -> 153
A64: 41 | B64: ='Source Data'!N48 -> 1988 | C64: 1993 | D64: ='Source Data'!O48 -> 72 | F64: 1 | G64: 0 | H64: 0 | I64: 0 | J64: 0 | K64: 0 | L64: 0 | M64: 0 | N64: 0 | O64: =($D64=O$23)*1 -> 0 | P64: 0 | Q64: 1 | R64: 3 | S64: 1.386294361 | U64: 20 | W64: 2.657855362 | X64: 2.657855362 | Z64: 16.89253549 | AA64: 113.1551344 | AB64: 0.3305732438 | AD64: ='Source Data'!P48 -> 1 | AE64: ='Source Data'!Q48 -> 20
A65: 42 | B65: ='Source Data'!N49 -> 1989 | C65: 1994 | D65: ='Source Data'!O49 -> 72 | F65: 0 | G65: 1 | H65: 0 | I65: 0 | J65: 0 | K65: 0 | L65: 0 | M65: 0 | N65: 0 | O65: 0 | P65: 0 | Q65: 1 | R65: 3 | S65: 1.386294361 | U65: 60 | W65: 9.062802098 | X65: 9.062802098 | Z65: 123.1878992 | AA65: 286.2909398 | AB65: 0.5258166927 | AD65: ='Source Data'!P49 -> 1 | AE65: ='Source Data'!Q49 -> 60
A66: 43 | B66: ='Source Data'!N50 -> 1990 | C66: 1995 | D66: ='Source Data'!O50 -> 72 | F66: 0 | G66: 0 | H66: 1 | I66: 0 | J66: 0 | K66: 0 | L66: 0 | M66: 0 | N66: 0 | O66: 0 | P66: 0 | Q66: 1 | R66: 3 | S66: 1.386294361 | U66: 6 | W66: 23.80249719 | X66: 23.80249719 | Z66: -4.783754192 | AA66: 13.31494354 | AB66: -0.1133966518 | AD66: ='Source Data'!P50 -> 1 | AE66: ='Source Data'!Q50 -> 6
A67: 44 | B67: ='Source Data'!N51 -> 1991 | C67: 1996 | D67: ='Source Data'!O51 -> 72 | F67: 0 | G67: 0 | H67: 0 | I67: 1 | J67: 0 | K67: 0 | L67: 0 | M67: 0 | N67: 0 | O67: 0 | P67: 0 | Q67: 1 | R67: 3 | S67: 1.386294361 | U67: 75 | W67: 30.59089157 | X67: 30.59089157 | Z67: 225.9617812 | AA67: 64.46915439 | AB67: 0.249520685 | AD67: ='Source Data'!P51 -> 1 | AE67: ='Source Data'!Q51 -> 75
A68: 45 | B68: ='Source Data'!N52 -> 1992 | C68: 1997 | D68: ='Source Data'!O52 -> 72 | F68: 0 | G68: 0 | H68: 0 | I68: 0 | J68: 1 | K68: 0 | L68: 0 | M68: 0 | N68: 0 | O68: 0 | P68: 0 | Q68: 1 | R68: 3 | S68: 1.386294361 | U68: 68 | W68: 66.98545221 | X68: 66.98545221 | Z68: 218.9188794 | AA68: 0.01536613071 | AB68: 0.003852235495 | AD68: ='Source Data'!P52 -> 1 | AE68: ='Source Data'!Q52 -> 68
A69: 46 | B69: ='Source Data'!N53 -> 1988 | C69: 1994 | D69: ='Source Data'!O53 -> 84 | F69: 1 | G69: 0 | H69: 0 | I69: 0 | J69: 0 | K69: 0 | L69: 0 | M69: 0 | N69: 0 | O69: 0 | P69: 0 | Q69: 1 | R69: 4 | S69: 1.609437912 | U69: -50 | W69: 0.9404273626 | X69: 0.9404273626 | Z69: 2.130615934 | AA69: 2759.306293 | AB69: -1.632414797 | AD69: ='Source Data'!P53 -> 1 | AE69: ='Source Data'!Q53 -> -50
A70: 47 | B70: ='Source Data'!N54 -> 1989 | C70: 1995 | D70: ='Source Data'!O54 -> 84 | F70: 0 | G70: 1 | H70: 0 | I70: 0 | J70: 0 | K70: 0 | L70: 0 | M70: 0 | N70: 0 | O70: 0 | P70: 0 | Q70: 1 | R70: 4 | S70: 1.609437912 | U70: 9 | W70: 3.20668581 | X70: 3.20668581 | Z70: 7.280455703 | AA70: 10.46641027 | AB70: 0.1005378154 | AD70: ='Source Data'!P54 -> 1 | AE70: ='Source Data'!Q54 -> 9
A71: 48 | B71: ='Source Data'!N55 -> 1990 | C71: 1996 | D71: ='Source Data'!O55 -> 84 | F71: 0 | G71: 0 | H71: 1 | I71: 0 | J71: 0 | K71: 0 | L71: 0 | M71: 0 | N71: 0 | O71: 0 | P71: 0 | Q71: 1 | R71: 4 | S71: 1.609437912 | U71: -97 | W71: 8.42202325 | X71: 8.42202325 | Z71: -215.114482 | AA71: 1319.612005 | AB71: -1.128895381 | AD71: ='Source Data'!P55 -> 1 | AE71: ='Source Data'!Q55 -> -97
A72: 49 | B72: ='Source Data'!N56 -> 1991 | C72: 1997 | D72: ='Source Data'!O56 -> 84 | F72: =($B72=F$23)*1 -> 0 | G72: 0 | H72: 0 | I72: 1 | J72: 0 | K72: 0 | L72: 0 | M72: 0 | N72: 0 | O72: 0 | P72: 0 | Q72: 1 | R72: 4 | S72: 1.609437912 | U72: 92 | W72: 10.82395675 | X72: 10.82395675 | Z72: 208.2981376 | AA72: 608.7930829 | AB72: 0.7667705456 | AD72: ='Source Data'!P56 -> 1 | AE72: ='Source Data'!Q56 -> 92
A73: 50 | B73: ='Source Data'!N57 -> 1988 | C73: 1995 | D73: ='Source Data'!O57 -> 96 | F73: 1 | G73: 0 | H73: 0 | I73: 0 | J73: 0 | K73: 0 | L73: 0 | M73: 0 | N73: 0 | O73: 0 | P73: 0 | Q73: 1 | R73: 5 | S73: 1.791759469 | U73: 0 | W73: 0.3122080105 | X73: 0.3122080105 | Z73: -0.3122080105 | AA73: 0.3122080105 | AB73: -0.01736411238 | AD73: ='Source Data'!P57 -> 1 | AE73: ='Source Data'!Q57 -> 0
A74: 51 | B74: ='Source Data'!N58 -> 1989 | C74: 1996 | D74: ='Source Data'!O58 -> 96 | F74: 0 | G74: 1 | H74: 0 | I74: 0 | J74: 0 | K74: 0 | L74: 0 | M74: 0 | N74: 0 | O74: 0 | P74: 0 | Q74: 1 | R74: 5 | S74: 1.791759469 | U74: -10 | W74: 1.064572382 | X74: 1.064572382 | Z74: -1.690304371 | AA74: 114.9990025 | AB74: -0.3332557134 | AD74: ='Source Data'!P58 -> 1 | AE74: ='Source Data'!Q58 -> -10
A75: 52 | B75: ='Source Data'!N59 -> 1990 | C75: 1997 | D75: ='Source Data'!O59 -> 96 | F75: 0 | G75: 0 | H75: 1 | I75: 0 | J75: 0 | K75: 0 | L75: 0 | M75: 0 | N75: 0 | O75: 0 | P75: 0 | Q75: 1 | R75: 5 | S75: 1.791759469 | U75: 18 | W75: 2.795987471 | X75: 2.795987471 | Z75: 15.71134871 | AA75: 82.67633506 | AB75: 0.2825668273 | AD75: ='Source Data'!P59 -> 1 | AE75: ='Source Data'!Q59 -> 18
A76: 53 | B76: ='Source Data'!N60 -> 1988 | C76: 1996 | D76: ='Source Data'!O60 -> 108 | F76: 1 | G76: 0 | H76: 0 | I76: 0 | J76: 0 | K76: 0 | L76: 0 | M76: 0 | N76: 0 | O76: 0 | P76: 0 | Q76: 1 | R76: 6 | S76: 1.945910149 | U76: 0 | W76: 0.09918922093 | X76: 0.09918922093 | Z76: -0.09918922093 | AA76: 0.09918922093 | AB76: -0.009787297884 | AD76: ='Source Data'!P60 -> 1 | AE76: ='Source Data'!Q60 -> 0
A77: 54 | B77: ='Source Data'!N61 -> 1989 | C77: 1997 | D77: ='Source Data'!O61 -> 108 | F77: 0 | G77: 1 | H77: 0 | I77: 0 | J77: 0 | K77: 0 | L77: 0 | M77: 0 | N77: 0 | O77: 0 | P77: 0 | Q77: 1 | R77: 6 | S77: 1.945910149 | U77: 11 | W77: 0.3382171552 | X77: 0.3382171552 | Z77: -12.26295546 | AA77: 336.0965334 | AB77: 0.5697214666 | AD77: ='Source Data'!P61 -> 1 | AE77: ='Source Data'!Q61 -> 11
A78: 55 | B78: ='Source Data'!N62 -> 1988 | C78: 1997 | D78: ='Source Data'!O62 -> 120 | F78: 1 | G78: 0 | H78: 0 | I78: 0 | J78: 0 | K78: 0 | L78: 0 | M78: 0 | N78: 0 | O78: 0 | P78: 0 | Q78: 1 | R78: 7 | S78: 2.079441542 | U78: 0 | W78: 0.0305144919 | X78: 0.0305144919 | Z78: -0.0305144919 | AA78: 0.0305144919 | AB78: -0.005428547452 | AD78: ='Source Data'!P62 -> 1 | AE78: ='Source Data'!Q62 -> 0
B82: Inputs for Future Payments (lower right triangle)
A84: =A78+1 -> 56 | B84: ='Source Data'!N68 -> 1989 | C84: =B84+D84/12-1 -> 1998 | D84: ='Source Data'!O68 -> 120 | F84: =($B84=F$23)*1 -> 0 | G84: 1 | H84: 0 | I84: 0 | J84: 0 | K84: 0 | L84: 0 | M84: 0 | N84: 0 | O84: =($D84=O$23)*1 -> 0 | P84: 0 | Q84: =($D84>=Q$23)*1 -> 1 | R84: =MAX($D84-Q$23,0)/12 -> 7 | S84: =LN(1+MAX($D84-Q$23,0)/12) -> 2.079441542 | W84: =$AD84*X84 -> 0.1040488527 | X84: =EXP(SUMPRODUCT($F$11:$S$11,$F84:$S84)) -> 0.1040488527 | AD84: ='Source Data'!P68 -> 1
A85: =A84+1 -> 57 | B85: ='Source Data'!N69 -> 1990 | C85: 1999 | D85: ='Source Data'!O69 -> 120 | F85: 0 | G85: 0 | H85: 1 | I85: 0 | J85: 0 | K85: 0 | L85: 0 | M85: 0 | N85: 0 | O85: 0 | P85: 0 | Q85: 1 | R85: 7 | S85: 2.079441542 | W85: 0.2732733759 | X85: 0.2732733759 | AD85: ='Source Data'!P69 -> 1
A86: 58 | B86: ='Source Data'!N70 -> 1990 | C86: 1998 | D86: ='Source Data'!O70 -> 108 | F86: 0 | G86: 0 | H86: 1 | I86: 0 | J86: 0 | K86: 0 | L86: 0 | M86: 0 | N86: 0 | O86: 0 | P86: 0 | Q86: 1 | R86: 6 | S86: 1.945910149 | W86: 0.8882918108 | X86: 0.8882918108 | AD86: ='Source Data'!P70 -> 1
A87: 59 | B87: ='Source Data'!N71 -> 1991 | C87: 2000 | D87: ='Source Data'!O71 -> 120 | F87: 0 | G87: 0 | H87: 0 | I87: 1 | J87: 0 | K87: 0 | L87: 0 | M87: 0 | N87: 0 | O87: 0 | P87: 0 | Q87: 1 | R87: 7 | S87: 2.079441542 | W87: 0.3512100494 | X87: 0.3512100494 | AD87: ='Source Data'!P71 -> 1
A88: 60 | B88: ='Source Data'!N72 -> 1991 | C88: 1999 | D88: ='Source Data'!O72 -> 108 | F88: 0 | G88: 0 | H88: 0 | I88: 1 | J88: 0 | K88: 0 | L88: 0 | M88: 0 | N88: 0 | O88: 0 | P88: 0 | Q88: 1 | R88: 6 | S88: 1.945910149 | W88: 1.141629731 | X88: 1.141629731 | AD88: ='Source Data'!P72 -> 1
A89: 61 | B89: ='Source Data'!N73 -> 1991 | C89: 1998 | D89: ='Source Data'!O73 -> 96 | F89: 0 | G89: 0 | H89: 0 | I89: 1 | J89: 0 | K89: 0 | L89: 0 | M89: 0 | N89: 0 | O89: 0 | P89: 0 | Q89: 1 | R89: 5 | S89: 1.791759469 | W89: 3.593393957 | X89: 3.593393957 | AD89: ='Source Data'!P73 -> 1
A90: 62 | B90: ='Source Data'!N74 -> 1992 | C90: 2001 | D90: ='Source Data'!O74 -> 120 | F90: 0 | G90: 0 | H90: 0 | I90: 0 | J90: 1 | K90: 0 | L90: 0 | M90: 0 | N90: 0 | O90: 0 | P90: 0 | Q90: 1 | R90: 7 | S90: 2.079441542 | W90: 0.7690512689 | X90: 0.7690512689 | AD90: ='Source Data'!P74 -> 1
A91: 63 | B91: ='Source Data'!N75 -> 1992 | C91: 2000 | D91: ='Source Data'!O75 -> 108 | F91: 0 | G91: 0 | H91: 0 | I91: 0 | J91: 1 | K91: 0 | L91: 0 | M91: 0 | N91: 0 | O91: 0 | P91: 0 | Q91: 1 | R91: 6 | S91: 1.945910149 | W91: 2.499848154 | X91: 2.499848154 | AD91: ='Source Data'!P75 -> 1
A92: 64 | B92: ='Source Data'!N76 -> 1992 | C92: 1999 | D92: ='Source Data'!O76 -> 96 | F92: 0 | G92: 0 | H92: 0 | I92: 0 | J92: 1 | K92: 0 | L92: 0 | M92: 0 | N92: 0 | O92: 0 | P92: 0 | Q92: 1 | R92: 5 | S92: 1.791759469 | W92: 7.868522519 | X92: 7.868522519 | AD92: ='Source Data'!P76 -> 1
A93: 65 | B93: ='Source Data'!N77 -> 1992 | C93: 1998 | D93: ='Source Data'!O77 -> 84 | F93: 0 | G93: 0 | H93: 0 | I93: 0 | J93: 1 | K93: 0 | L93: 0 | M93: 0 | N93: 0 | O93: 0 | P93: 0 | Q93: 1 | R93: 4 | S93: 1.609437912 | W93: 23.70142223 | X93: 23.70142223 | AD93: ='Source Data'!P77 -> 1
A94: 66 | B94: ='Source Data'!N78 -> 1993 | C94: 2002 | D94: ='Source Data'!O78 -> 120 | F94: 0 | G94: 0 | H94: 0 | I94: 0 | J94: 0 | K94: 1 | L94: 0 | M94: 0 | N94: 0 | O94: 0 | P94: 0 | Q94: 1 | R94: 7 | S94: 2.079441542 | W94: 0.8518737636 | X94: 0.8518737636 | AD94: ='Source Data'!P78 -> 1
A95: 67 | B95: ='Source Data'!N79 -> 1993 | C95: 2001 | D95: ='Source Data'!O79 -> 108 | F95: 0 | G95: 0 | H95: 0 | I95: 0 | J95: 0 | K95: 1 | L95: 0 | M95: 0 | N95: 0 | O95: 0 | P95: 0 | Q95: 1 | R95: 6 | S95: 1.945910149 | W95: 2.769067734 | X95: 2.769067734 | AD95: ='Source Data'!P79 -> 1
A96: 68 | B96: ='Source Data'!N80 -> 1993 | C96: 2000 | D96: ='Source Data'!O80 -> 96 | F96: 0 | G96: 0 | H96: 0 | I96: 0 | J96: 0 | K96: 1 | L96: 0 | M96: 0 | N96: 0 | O96: 0 | P96: 0 | Q96: 1 | R96: 5 | S96: 1.791759469 | W96: 8.715918123 | X96: 8.715918123 | AD96: ='Source Data'!P80 -> 1
A97: 69 | B97: ='Source Data'!N81 -> 1993 | C97: 1999 | D97: ='Source Data'!O81 -> 84 | F97: 0 | G97: 0 | H97: 0 | I97: 0 | J97: 0 | K97: 1 | L97: 0 | M97: 0 | N97: 0 | O97: 0 | P97: 0 | Q97: 1 | R97: 4 | S97: 1.609437912 | W97: 26.25393205 | X97: 26.25393205 | AD97: ='Source Data'!P81 -> 1
A98: 70 | B98: ='Source Data'!N82 -> 1993 | C98: 1998 | D98: ='Source Data'!O82 -> 72 | F98: 0 | G98: 0 | H98: 0 | I98: 0 | J98: 0 | K98: 1 | L98: 0 | M98: 0 | N98: 0 | O98: 0 | P98: 0 | Q98: 1 | R98: 3 | S98: 1.386294361 | W98: 74.19940852 | X98: 74.19940852 | AD98: ='Source Data'!P82 -> 1
A99: 71 | B99: ='Source Data'!N83 -> 1994 | C99: 2003 | D99: ='Source Data'!O83 -> 120 | F99: 0 | G99: 0 | H99: 0 | I99: 0 | J99: 0 | K99: 0 | L99: 1 | M99: 0 | N99: 0 | O99: 0 | P99: 0 | Q99: 1 | R99: 7 | S99: 2.079441542 | W99: 0.9227646026 | X99: 0.9227646026 | AD99: ='Source Data'!P83 -> 1
A100: 72 | B100: ='Source Data'!N84 -> 1994 | C100: 2002 | D100: ='Source Data'!O84 -> 108 | F100: =($B100=F$23)*1 -> 0 | G100: 0 | H100: 0 | I100: 0 | J100: 0 | K100: 0 | L100: 1 | M100: 0 | N100: 0 | O100: 0 | P100: 0 | Q100: 1 | R100: 6 | S100: 1.945910149 | W100: 2.99950274 | X100: 2.99950274 | AD100: ='Source Data'!P84 -> 1
A101: 73 | B101: ='Source Data'!N85 -> 1994 | C101: 2001 | D101: ='Source Data'!O85 -> 96 | F101: 0 | G101: 0 | H101: 0 | I101: 0 | J101: 0 | K101: 0 | L101: 1 | M101: 0 | N101: 0 | O101: 0 | P101: 0 | Q101: 1 | R101: 5 | S101: 1.791759469 | W101: 9.441235388 | X101: 9.441235388 | AD101: ='Source Data'!P85 -> 1
A102: 74 | B102: ='Source Data'!N86 -> 1994 | C102: 2000 | D102: ='Source Data'!O86 -> 84 | F102: 0 | G102: 0 | H102: 0 | I102: 0 | J102: 0 | K102: 0 | L102: 1 | M102: 0 | N102: 0 | O102: 0 | P102: 0 | Q102: 1 | R102: 4 | S102: 1.609437912 | W102: 28.43871969 | X102: 28.43871969 | AD102: ='Source Data'!P86 -> 1
A103: 75 | B103: ='Source Data'!N87 -> 1994 | C103: 1999 | D103: ='Source Data'!O87 -> 72 | F103: 0 | G103: 0 | H103: 0 | I103: 0 | J103: 0 | K103: 0 | L103: 1 | M103: 0 | N103: 0 | O103: 0 | P103: 0 | Q103: 1 | R103: 3 | S103: 1.386294361 | W103: 80.37410078 | X103: 80.37410078 | AD103: ='Source Data'!P87 -> 1
A104: 76 | B104: ='Source Data'!N88 -> 1994 | C104: 1998 | D104: ='Source Data'!O88 -> 60 | F104: 0 | G104: 0 | H104: 0 | I104: 0 | J104: 0 | K104: 0 | L104: 1 | M104: 0 | N104: 0 | O104: =($D104=O$23)*1 -> 0 | P104: 0 | Q104: 1 | R104: 2 | S104: 1.098612289 | W104: 205.3849179 | X104: 205.3849179 | AD104: ='Source Data'!P88 -> 1
A105: 77 | B105: ='Source Data'!N89 -> 1995 | C105: 2004 | D105: ='Source Data'!O89 -> 120 | F105: 0 | G105: 0 | H105: 0 | I105: 0 | J105: 0 | K105: 0 | L105: 0 | M105: 1 | N105: 0 | O105: 0 | P105: 0 | Q105: 1 | R105: 7 | S105: 2.079441542 | W105: 0.8428546819 | X105: 0.8428546819 | AD105: ='Source Data'!P89 -> 1
A106: 78 | B106: ='Source Data'!N90 -> 1995 | C106: 2003 | D106: ='Source Data'!O90 -> 108 | F106: 0 | G106: 0 | H106: 0 | I106: 0 | J106: 0 | K106: 0 | L106: 0 | M106: 1 | N106: 0 | O106: 0 | P106: 0 | Q106: 1 | R106: 6 | S106: 1.945910149 | W106: 2.739750658 | X106: 2.739750658 | AD106: ='Source Data'!P90 -> 1
A107: 79 | B107: ='Source Data'!N91 -> 1995 | C107: 2002 | D107: ='Source Data'!O91 -> 96 | F107: 0 | G107: 0 | H107: 0 | I107: 0 | J107: 0 | K107: 0 | L107: 0 | M107: 1 | N107: 0 | O107: 0 | P107: 0 | Q107: 1 | R107: 5 | S107: 1.791759469 | W107: 8.623639688 | X107: 8.623639688 | AD107: ='Source Data'!P91 -> 1
A108: 80 | B108: ='Source Data'!N92 -> 1995 | C108: 2001 | D108: ='Source Data'!O92 -> 84 | F108: 0 | G108: 0 | H108: 0 | I108: 0 | J108: 0 | K108: 0 | L108: 0 | M108: 1 | N108: 0 | O108: 0 | P108: 0 | Q108: 1 | R108: 4 | S108: 1.609437912 | W108: 25.97597261 | X108: 25.97597261 | AD108: ='Source Data'!P92 -> 1
A109: 81 | B109: ='Source Data'!N93 -> 1995 | C109: 2000 | D109: ='Source Data'!O93 -> 72 | F109: 0 | G109: 0 | H109: 0 | I109: 0 | J109: 0 | K109: 0 | L109: 0 | M109: 1 | N109: 0 | O109: 0 | P109: 0 | Q109: 1 | R109: 3 | S109: 1.386294361 | W109: 73.41383377 | X109: 73.41383377 | AD109: ='Source Data'!P93 -> 1
A110: 82 | B110: ='Source Data'!N94 -> 1995 | C110: 1999 | D110: ='Source Data'!O94 -> 60 | F110: 0 | G110: 0 | H110: 0 | I110: 0 | J110: 0 | K110: 0 | L110: 0 | M110: 1 | N110: 0 | O110: 0 | P110: 0 | Q110: 1 | R110: 2 | S110: 1.098612289 | W110: 187.5989165 | X110: 187.5989165 | AD110: ='Source Data'!P94 -> 1
A111: 83 | B111: ='Source Data'!N95 -> 1995 | C111: 1998 | D111: ='Source Data'!O95 -> 48 | F111: 0 | G111: 0 | H111: 0 | I111: 0 | J111: 0 | K111: 0 | L111: 0 | M111: 1 | N111: 0 | O111: 0 | P111: 0 | Q111: 1 | R111: 1 | S111: 0.6931471806 | W111: 398.8707132 | X111: 398.8707132 | AD111: ='Source Data'!P95 -> 1
A112: 84 | B112: ='Source Data'!N96 -> 1996 | C112: 2005 | D112: ='Source Data'!O96 -> 120 | F112: 0 | G112: 0 | H112: 0 | I112: 0 | J112: 0 | K112: 0 | L112: 0 | M112: 0 | N112: 1 | O112: 0 | P112: 0 | Q112: 1 | R112: 7 | S112: 2.079441542 | W112: 0.9177136714 | X112: 0.9177136714 | AD112: ='Source Data'!P96 -> 1
A113: 85 | B113: ='Source Data'!N97 -> 1996 | C113: 2004 | D113: ='Source Data'!O97 -> 108 | F113: 0 | G113: 0 | H113: 0 | I113: 0 | J113: 0 | K113: 0 | L113: 0 | M113: 0 | N113: 1 | O113: 0 | P113: 0 | Q113: 1 | R113: 6 | S113: 1.945910149 | W113: 2.983084379 | X113: 2.983084379 | AD113: ='Source Data'!P97 -> 1
A114: 86 | B114: ='Source Data'!N98 -> 1996 | C114: 2003 | D114: ='Source Data'!O98 -> 96 | F114: 0 | G114: 0 | H114: 0 | I114: 0 | J114: 0 | K114: 0 | L114: 0 | M114: 0 | N114: 1 | O114: 0 | P114: 0 | Q114: 1 | R114: 5 | S114: 1.791759469 | W114: 9.389556954 | X114: 9.389556954 | AD114: ='Source Data'!P98 -> 1
A115: 87 | B115: ='Source Data'!N99 -> 1996 | C115: 2002 | D115: ='Source Data'!O99 -> 84 | F115: 0 | G115: 0 | H115: 0 | I115: 0 | J115: 0 | K115: 0 | L115: 0 | M115: 0 | N115: 1 | O115: 0 | P115: 0 | Q115: 1 | R115: 4 | S115: 1.609437912 | W115: 28.28305484 | X115: 28.28305484 | AD115: ='Source Data'!P99 -> 1
A116: 88 | B116: ='Source Data'!N100 -> 1996 | C116: 2001 | D116: ='Source Data'!O100 -> 72 | F116: =($B116=F$23)*1 -> 0 | G116: 0 | H116: 0 | I116: 0 | J116: 0 | K116: 0 | L116: 0 | M116: 0 | N116: 1 | O116: 0 | P116: 0 | Q116: 1 | R116: 3 | S116: 1.386294361 | W116: 79.93415753 | X116: 79.93415753 | AD116: ='Source Data'!P100 -> 1
A117: 89 | B117: ='Source Data'!N101 -> 1996 | C117: 2000 | D117: ='Source Data'!O101 -> 60 | F117: 0 | G117: 0 | H117: 0 | I117: 0 | J117: 0 | K117: 0 | L117: 0 | M117: 0 | N117: 1 | O117: 0 | P117: 0 | Q117: 1 | R117: 2 | S117: 1.098612289 | W117: 204.2607036 | X117: 204.2607036 | AD117: ='Source Data'!P101 -> 1
A118: 90 | B118: ='Source Data'!N102 -> 1996 | C118: 1999 | D118: ='Source Data'!O102 -> 48 | F118: 0 | G118: 0 | H118: 0 | I118: 0 | J118: 0 | K118: 0 | L118: 0 | M118: 0 | N118: 1 | O118: 0 | P118: 0 | Q118: 1 | R118: 1 | S118: 0.6931471806 | W118: 434.2968183 | X118: 434.2968183 | AD118: ='Source Data'!P102 -> 1
A119: 91 | B119: ='Source Data'!N103 -> 1996 | C119: 1998 | D119: ='Source Data'!O103 -> 36 | F119: 0 | G119: 0 | H119: 0 | I119: 0 | J119: 0 | K119: 0 | L119: 0 | M119: 0 | N119: 1 | O119: 0 | P119: 0 | Q119: 1 | R119: 0 | S119: 0 | W119: 589.3257477 | X119: 589.3257477 | AD119: ='Source Data'!P103 -> 1
A120: 92 | B120: ='Source Data'!N104 -> 1997 | C120: 2006 | D120: ='Source Data'!O104 -> 120 | F120: 0 | G120: 0 | H120: 0 | I120: 0 | J120: 0 | K120: 0 | L120: 0 | M120: 0 | N120: 0 | O120: 0 | P120: 0 | Q120: 1 | R120: 7 | S120: 2.079441542 | W120: 1.16433424 | X120: 1.16433424 | AD120: ='Source Data'!P104 -> 1
A121: 93 | B121: ='Source Data'!N105 -> 1997 | C121: 2005 | D121: ='Source Data'!O105 -> 108 | F121: 0 | G121: 0 | H121: 0 | I121: 0 | J121: 0 | K121: 0 | L121: 0 | M121: 0 | N121: 0 | O121: 0 | P121: 0 | Q121: 1 | R121: 6 | S121: 1.945910149 | W121: 3.784739609 | X121: 3.784739609 | AD121: ='Source Data'!P105 -> 1
A122: 94 | B122: ='Source Data'!N106 -> 1997 | C122: 2004 | D122: ='Source Data'!O106 -> 96 | F122: 0 | G122: 0 | H122: 0 | I122: 0 | J122: 0 | K122: 0 | L122: 0 | M122: 0 | N122: 0 | O122: 0 | P122: 0 | Q122: 1 | R122: 5 | S122: 1.791759469 | W122: 11.91284711 | X122: 11.91284711 | AD122: ='Source Data'!P106 -> 1
A123: 95 | B123: ='Source Data'!N107 -> 1997 | C123: 2003 | D123: ='Source Data'!O107 -> 84 | F123: 0 | G123: 0 | H123: 0 | I123: 0 | J123: 0 | K123: 0 | L123: 0 | M123: 0 | N123: 0 | O123: 0 | P123: 0 | Q123: 1 | R123: 4 | S123: 1.609437912 | W123: 35.88366413 | X123: 35.88366413 | AD123: ='Source Data'!P107 -> 1
A124: 96 | B124: ='Source Data'!N108 -> 1997 | C124: 2002 | D124: ='Source Data'!O108 -> 72 | F124: 0 | G124: 0 | H124: 0 | I124: 0 | J124: 0 | K124: 0 | L124: 0 | M124: 0 | N124: 0 | O124: 0 | P124: 0 | Q124: 1 | R124: 3 | S124: 1.386294361 | W124: 101.4151575 | X124: 101.4151575 | AD124: ='Source Data'!P108 -> 1
A125: 97 | B125: ='Source Data'!N109 -> 1997 | C125: 2001 | D125: ='Source Data'!O109 -> 60 | F125: 0 | G125: 0 | H125: 0 | I125: 0 | J125: 0 | K125: 0 | L125: 0 | M125: 0 | N125: 0 | O125: 0 | P125: 0 | Q125: 1 | R125: 2 | S125: 1.098612289 | W125: 259.1524333 | X125: 259.1524333 | AD125: ='Source Data'!P109 -> 1
A126: 98 | B126: ='Source Data'!N110 -> 1997 | C126: 2000 | D126: ='Source Data'!O110 -> 48 | F126: 0 | G126: 0 | H126: 0 | I126: 0 | J126: 0 | K126: 0 | L126: 0 | M126: 0 | N126: 0 | O126: 0 | P126: 0 | Q126: 1 | R126: 1 | S126: 0.6931471806 | W126: 551.0069987 | X126: 551.0069987 | AD126: ='Source Data'!P110 -> 1
A127: 99 | B127: ='Source Data'!N111 -> 1997 | C127: 1999 | D127: ='Source Data'!O111 -> 36 | F127: 0 | G127: 0 | H127: 0 | I127: 0 | J127: 0 | K127: 0 | L127: 0 | M127: 0 | N127: 0 | O127: 0 | P127: 0 | Q127: 1 | R127: 0 | S127: 0 | W127: 747.6974221 | X127: 747.6974221 | AD127: ='Source Data'!P111 -> 1
A128: 100 | B128: ='Source Data'!N112 -> 1997 | C128: 1998 | D128: ='Source Data'!O112 -> 24 | F128: 0 | G128: 0 | H128: 0 | I128: 0 | J128: 0 | K128: 0 | L128: 0 | M128: 0 | N128: 0 | O128: 0 | P128: 1 | Q128: 0 | R128: 0 | S128: 0 | W128: 6177.061788 | X128: 6177.061788 | AD128: ='Source Data'!P112 -> 1

Sheet Fitted Triangle - Hoerl (hidden)
C2: Example to Illustrate the Fitted Triangle from the Hoerl Curve
B5: Fitted Incremental Triangle
B6: ="0-"&TEXT(B19,"#") -> 0-12 | C6: =TEXT(B19,"#")&"-"&TEXT(C19,"#") -> 12-24 | D6: 24-36 | E6: 36-48 | F6: 48-60 | G6: 60-72 | H6: 72-84 | I6: 84-96 | J6: 96-108 | K6: 108-120
A7: ='Source Data'!A8 -> 1988 | B7: ='GLM Calculation - Hoerl'!W24 -> 374.2455812 | C7: ='GLM Calculation - Hoerl'!W34 -> 161.8864201 | D7: ='GLM Calculation - Hoerl'!W43 -> 19.59541011 | E7: ='GLM Calculation - Hoerl'!W51 -> 14.44061166 | F7: ='GLM Calculation - Hoerl'!W58 -> 6.791782426 | G7: ='GLM Calculation - Hoerl'!W64 -> 2.657855362 | H7: ='GLM Calculation - Hoerl'!W69 -> 0.9404273626 | I7: ='GLM Calculation - Hoerl'!W73 -> 0.3122080105 | J7: ='GLM Calculation - Hoerl'!W76 -> 0.09918922093 | K7: ='GLM Calculation - Hoerl'!W78 -> 0.0305144919
A8: ='Source Data'!A9 -> 1989 | B8: ='GLM Calculation - Hoerl'!W25 -> 1276.109185 | C8: ='GLM Calculation - Hoerl'!W35 -> 552.003171 | D8: ='GLM Calculation - Hoerl'!W44 -> 66.81677505 | E8: ='GLM Calculation - Hoerl'!W52 -> 49.23985237 | F8: ='GLM Calculation - Hoerl'!W59 -> 23.15873952 | G8: ='GLM Calculation - Hoerl'!W65 -> 9.062802098 | H8: ='GLM Calculation - Hoerl'!W70 -> 3.20668581 | I8: ='GLM Calculation - Hoerl'!W74 -> 1.064572382 | J8: ='GLM Calculation - Hoerl'!W77 -> 0.3382171552
A9: ='Source Data'!A10 -> 1990 | B9: ='GLM Calculation - Hoerl'!W26 -> 3351.566651 | C9: ='GLM Calculation - Hoerl'!W36 -> 1449.778312 | D9: ='GLM Calculation - Hoerl'!W45 -> 175.4872371 | E9: ='GLM Calculation - Hoerl'!W53 -> 129.323297 | F9: ='GLM Calculation - Hoerl'!W60 -> 60.82399532 | G9: ='GLM Calculation - Hoerl'!W66 -> 23.80249719 | H9: ='GLM Calculation - Hoerl'!W71 -> 8.42202325 | I9: ='GLM Calculation - Hoerl'!W75 -> 2.795987471
A10: ='Source Data'!A11 -> 1991 | B10: ='GLM Calculation - Hoerl'!W27 -> 4307.422503 | C10: ='GLM Calculation - Hoerl'!W37 -> 1863.250347 | D10: ='GLM Calculation - Hoerl'!W46 -> 225.5356234 | E10: ='GLM Calculation - Hoerl'!W54 -> 166.2058785 | F10: ='GLM Calculation - Hoerl'!W61 -> 78.17079994 | G10: ='GLM Calculation - Hoerl'!W67 -> 30.59089157 | H10: ='GLM Calculation - Hoerl'!W72 -> 10.82395675
A11: ='Source Data'!A12 -> 1992 | B11: ='GLM Calculation - Hoerl'!W28 -> 9432.044293 | C11: ='GLM Calculation - Hoerl'!W38 -> 4079.994425 | D11: ='GLM Calculation - Hoerl'!W47 -> 493.8596081 | E11: ='GLM Calculation - Hoerl'!W55 -> 363.9441469 | F11: ='GLM Calculation - Hoerl'!W62 -> 171.1720749 | G11: ='GLM Calculation - Hoerl'!W68 -> 66.98545221
A12: ='Source Data'!A13 -> 1993 | B12: ='GLM Calculation - Hoerl'!W29 -> 10447.82239 | C12: ='GLM Calculation - Hoerl'!W39 -> 4519.386869 | D12: ='GLM Calculation - Hoerl'!W48 -> 547.0455092 | E12: ='GLM Calculation - Hoerl'!W56 -> 403.1388838 | F12: ='GLM Calculation - Hoerl'!W63 -> 189.6063443
A13: ='Source Data'!A14 -> 1994 | B13: ='GLM Calculation - Hoerl'!W30 -> 11317.26447 | C13: ='GLM Calculation - Hoerl'!W40 -> 4895.479126 | D13: ='GLM Calculation - Hoerl'!W49 -> 592.5692908 | E13: ='GLM Calculation - Hoerl'!W57 -> 436.68711
A14: ='Source Data'!A15 -> 1995 | B14: ='GLM Calculation - Hoerl'!W31 -> 10337.20769 | C14: ='GLM Calculation - Hoerl'!W41 -> 4471.538559 | D14: ='GLM Calculation - Hoerl'!W50 -> 541.2537495
A15: ='Source Data'!A16 -> 1996 | B15: ='GLM Calculation - Hoerl'!W32 -> 11255.31723 | C15: ='GLM Calculation - Hoerl'!W42 -> 4868.682771
A16: ='Source Data'!A17 -> 1997 | B16: ='GLM Calculation - Hoerl'!W33 -> 14280
B18: Fitted Cumulative Triangle
B19: 12 | C19: =B19+12 -> 24 | D19: =C19+12 -> 36 | E19: 48 | F19: 60 | G19: 72 | H19: 84 | I19: 96 | J19: 108 | K19: 120
A20: =A7 -> 1988 | B20: =B7 -> 374.2455812 | C20: =B20+C7 -> 536.1320014 | D20: 555.7274115 | E20: 570.1680231 | F20: 576.9598056 | G20: 579.6176609 | H20: 580.5580883 | I20: 580.8702963 | J20: 580.9694855 | K20: 581
A21: =A8 -> 1989 | B21: 1276.109185 | C21: 1828.112356 | D21: 1894.929131 | E21: 1944.168983 | F21: 1967.327723 | G21: 1976.390525 | H21: 1979.59721 | I21: 1980.661783 | J21: 1981
A22: 1990 | B22: 3351.566651 | C22: 4801.344963 | D22: 4976.8322 | E22: 5106.155497 | F22: 5166.979492 | G22: 5190.781989 | H22: 5199.204013 | I22: 5202
A23: 1991 | B23: 4307.422503 | C23: 6170.67285 | D23: 6396.208473 | E23: 6562.414352 | F23: 6640.585152 | G23: 6671.176043 | H23: 6682
A24: 1992 | B24: 9432.044293 | C24: 13512.03872 | D24: 14005.89833 | E24: 14369.84247 | F24: 14541.01455 | G24: 14608
A25: 1993 | B25: 10447.82239 | C25: 14967.20926 | D25: 15514.25477 | E25: 15917.39366 | F25: 16107
A26: 1994 | B26: 11317.26447 | C26: 16212.7436 | D26: 16805.31289 | E26: 17242
A27: 1995 | B27: 10337.20769 | C27: 14808.74625 | D27: 15350
A28: 1996 | B28: 11255.31723 | C28: =B28+C15 -> 16124
A29: 1997 | B29: 14280
C32: Age-to-Age Factors
B33: =C20/B20 -> 1.432567352 | C33: 1.0365496 | D33: 1.025985063 | E33: 1.011911896 | F33: 1.004606656 | G33: 1.001622496 | H33: 1.000537772 | I33: 1.00017076 | J33: 1.000052523
B34: 1.432567352 | C34: 1.0365496 | D34: 1.025985063 | E34: 1.011911896 | F34: 1.004606656 | G34: 1.001622496 | H34: 1.000537772 | I34: 1.00017076
B35: 1.432567352 | C35: 1.0365496 | D35: 1.025985063 | E35: 1.011911896 | F35: 1.004606656 | G35: 1.001622496 | H35: 1.000537772
B36: 1.432567352 | C36: 1.0365496 | D36: 1.025985063 | E36: 1.011911896 | F36: 1.004606656 | G36: 1.001622496
B37: =C24/B24 -> 1.432567352 | C37: =D24/C24 -> 1.0365496 | D37: =E24/D24 -> 1.025985063 | E37: =F24/E24 -> 1.011911896 | F37: =G24/F24 -> 1.004606656
B38: =C25/B25 -> 1.432567352 | C38: =D25/C25 -> 1.0365496 | D38: =E25/D25 -> 1.025985063 | E38: =F25/E25 -> 1.011911896
B39: =C26/B26 -> 1.432567352 | C39: =D26/C26 -> 1.0365496 | D39: =E26/D26 -> 1.025985063
B40: =C27/B27 -> 1.432567352 | C40: =D27/C27 -> 1.0365496
B41: =C28/B28 -> 1.432567352
A43: ATA | B43: =SUM(C$20:C28)/SUM(B$20:B28) -> 1.432567352 | C43: =SUM(D$20:D27)/SUM(C$20:C27) -> 1.0365496 | D43: =SUM(E$20:E26)/SUM(D$20:D26) -> 1.025985063 | E43: =SUM(F$20:F25)/SUM(E$20:E25) -> 1.011911896 | F43: =SUM(G$20:G24)/SUM(F$20:F24) -> 1.004606656 | G43: =SUM(H$20:H23)/SUM(G$20:G23) -> 1.001622496 | H43: =SUM(I$20:I22)/SUM(H$20:H22) -> 1.000537772 | I43: =SUM(J$20:J21)/SUM(I$20:I21) -> 1.00017076 | J43: =SUM(K$20:K20)/SUM(J$20:J20) -> 1.000052523
A44: LDF | B44: =B43*C44 -> 1.55245654 | C44: 1.083688343 | D44: 1.045476592 | E44: 1.018997868 | F44: 1.007002558 | G44: 1.002384915 | H44: 1.000761184 | I44: 1.000223292 | J44: =J43*K44 -> 1.000052523 | K44: 1
A45: Increm | B45: =1/B44 -> 0.6441404152 | C45: =1/C44-1/B44 -> 0.2786341138 | D45: =1/D44-1/C44 -> 0.03372703977 | E45: 0.02485475329 | F45: 0.01168981485 | G45: 0.004574621965 | H45: 0.001618635736 | I45: 0.000537363185 | J45: 0.0001707215507 | K45: 5.25206401e-05
J47: Tail for next 8 years: | K47: =1+SUM(L55:S55) -> 1.000022287
D49: 1 | E49: =D49+1 -> 2 | F49: =E49+1 -> 3 | G49: 4 | H49: 5 | I49: 6 | J49: 7 | K49: 8 | L49: 9 | M49: 10 | N49: 11 | O49: 12 | P49: 13 | Q49: 14 | R49: 15 | S49: 16
D50: ='GLM Calculation - Hoerl'!R10 -> 0.2497551904
D51: =$D$50^(D49-1) -> 1 | E51: =$D$50^(E49-1) -> 0.2497551904 | F51: 0.06237765516 | G51: 0.01557914314 | H51: 0.003890971863 | I51: 0.0009717904186 | J51: 0.0002427097011 | K51: 6.061800761e-05 | L51: 1.513966204e-05 | M51: 3.781209175e-06 | N51: 9.443766177e-07 | O51: 2.35862962e-07 | P51: 5.890799899e-08 | Q51: 1.471257851e-08 | R51: 3.674542847e-09 | S51: 9.177361486e-10
D52: ='GLM Calculation - Hoerl'!S11 -> 1.561029519
D53: =D49^$D$52 -> 1 | E53: =E49^$D$52 -> 2.950643286 | F53: 5.556487768 | G53: 8.706295802 | H53: 12.33425178 | I53: 16.39521333 | J53: 20.85561431 | K53: 25.68917325 | L53: 30.87455631 | M53: 36.3939772 | N53: 42.23229884 | O53: 48.37642613 | P53: 54.81487841 | Q53: 61.53747834 | R53: 68.53511914 | S53: 75.79958659
D54: =D51*D53 -> 1 | E54: =E51*E53 -> 0.7369384759 | F54: 0.3466006779 | G54: 0.1356366285 | H54: 0.04799222662 | I54: 0.01593271122 | J54: 0.005061859915 | K54: 0.0015572265 | L54: 0.0004674303481 | M54: 0.0001376132405 | N54: 3.988319553e-05 | O54: 1.141020716e-05 | P54: 3.229034802e-06 | Q54: 9.053749812e-07 | R54: 2.518352318e-07 | S54: 6.956402066e-08
D55: =$D$45*D54 -> 0.03372703977 | E55: =$D$45*E54 -> 0.02485475329 | F55: 0.01168981485 | G55: 0.004574621965 | H55: 0.001618635736 | I55: 0.000537363185 | J55: 0.0001707215507 | K55: 5.25206401e-05 | L55: 1.576504194e-05 | M55: 4.641287236e-06 | N55: 1.345142122e-06 | O55: 3.848325106e-07 | P55: 1.089057852e-07 | Q55: 3.0535618e-08 | R55: 8.493656879e-09 | S55: 2.346188492e-09
